Workbook

Sheet 封面
A8: 汕头市濠江区2023年政府预算调整草案
A15: 编制部门：汕头市濠江区财政局
A18: 编制时间：2023年12月

Sheet 目录
A1: 汕头市濠江区2023年政府预算调整草案目录
A2: 一、一般公共预算
A3: 1.汕头市濠江区2023年一般公共财政预算收入计划调整表
A4: 2.汕头市濠江区2023年一般公共预算支出科目调整情况表
A5: 3.汕头市濠江区2023年一般公共预算支出项目调整情况表
A6: 4.汕头市濠江区2023年公共财政上级财力性补助收支预算调整表
A7: 二、政府性基金预算
A8: 5.汕头市濠江区2023年政府性基金预算收入计划调整表
A9: 6.汕头市濠江区2023年本级政府性基金预算收入项目调整表
A10: 7.汕头市濠江区2023年政府性基金预算支出科目调整表
A11: 8.汕头市濠江区2023年本级政府性基金预算支出项目调整表
A12: 三、国有资本经营预算
A13: 9.汕头市濠江区2023年国有资本经营预算收入计划调整表
A14: 10.汕头市濠江区2023年国有资本经营预算支出计划调整表
A15: 四、社会保险基金预算
A16: 11.汕头市濠江区2023年社会保险基金预算收入计划调整表
A17: 12.汕头市濠江区2023年社会保险基金预算支出计划调整表
A18: 五、其他
A19: 13.汕头市濠江区2023年新增债券资金年限利率表
A20: 14.汕头市濠江区2023年新增债券资金分配表
A21: 15.汕头市濠江区新增债券资金用途调整明细表
A22: 16.汕头市濠江区2023年收回存量资金及安排表

Sheet （附表1）一般公共预算收入
A1: 附表1
A2: 汕头市濠江区2023年一般公共财政预算收入计划调整表
N3: 单位：万元
A4: 科目名称 | B4: 年初预算数 | D4: 11月情况（不打印） | H4: 变动因素 | J4: 调整后计划数 | L4: 比增% | N4: 备注
B6: 总库 | C6: 本级 | H6: 总库 | I6: 本级 | J6: 总库 | K6: 本级 | L6: 总库 | M6: 本级
A7: 一、税收收入 | B7: =SUM(B8:B23) -> 242,263 | C7: 38,773 | D7: 173,363 | E7: 29,580 | F7: 20,203 | G7: 4,109 | H7: -48,697 | I7: -5,083 | J7: 193,566 | K7: 33,689 | L7: =IF(B7=0,IF(J7=0,0,100),100*(J7/B7-1)) -> -20 | M7: =IF(C7=0,IF(K7=0,0,100),100*(K7/C7-1)) -> -13
A8: 1.增值税 | B8: 113,450 | C8: 14,181 | D8: 90,826 | E8: 12,366 | F8: 12,410 | G8: =F8*0.125+287 -> 1,838 | H8: =J8-B8 -> -10,214 | I8: =K8-C8 -> 23 | J8: =F8+D8 -> 103,236 | K8: =G8+E8 -> 14,204 | L8: =IF(B8=0,IF(J8=0,0,100),100*(J8/B8-1)) -> -9 | M8: =IF(C8=0,IF(K8=0,0,100),100*(K8/C8-1)) -> 0 | O8: 市与区共享收入
A9: 2.消费税 | B9: 11 | D9: 36 | H9: =J9-B9 -> 25 | I9: =K9-C9 -> 0 | J9: =F9+D9 -> 36 | K9: =G9+E9 -> 0 | L9: 241 | M9: 0
A10: 3.车辆购置税 | B10: 574 | D10: 668 | F10: 60 | H10: 154 | I10: 0 | J10: 728 | K10: 0 | L10: 27 | M10: 0 | O10: 市本级固定收入
A11: 4.企业所得税 | B11: 62,769 | C11: 6,277 | D11: 34,529 | E11: 3,357 | F11: 180 | G11: =F11*0.1 -> 18 | H11: -28,060 | I11: -2,902 | J11: 34,709 | K11: 3,375 | L11: -45 | M11: -46 | O11: 市与区共享收入
A12: 5.个人所得税 | B12: 9,719 | C12: 972 | D12: 7,882 | E12: 788 | F12: 550 | G12: =F12*0.1 -> 55 | H12: -1,287 | I12: -129 | J12: 8,432 | K12: 843 | L12: -13 | M12: -13 | O12: 市与区共享收入
A13: 6.资源税 | B13: 657 | C13: 657 | D13: 317 | E13: 317 | F13: 45 | G13: =F13/2 -> 23 | H13: -295 | I13: -318 | J13: 362 | K13: 340 | L13: -45 | M13: -48 | O13: 区级固定收入
A14: 7.城市维护建设税 | B14: 7,268 | C14: 3,634 | D14: 5,955 | E14: 2,977 | F14: 700 | G14: =F14/2 -> 350 | H14: -613 | I14: -307 | J14: 6,655 | K14: 3,327 | L14: -8 | M14: -8 | O14: 市与区共享收入
A15: 8.房产税 | B15: 7,650 | C15: 3,825 | D15: 6,236 | E15: 3,118 | F15: 3,116 | G15: =F15/2 -> 1,558 | H15: 1,702 | I15: 851 | J15: 9,352 | K15: 4,676 | L15: 22 | M15: 22 | O15: 市与区共享收入
A16: 9.印花税 | B16: 2,959 | C16: 2,959 | D16: 2,305 | E16: 2,305 | F16: 65 | G16: 65 | H16: -589 | I16: -589 | J16: 2,370 | K16: 2,370 | L16: -20 | M16: -20 | O16: 区级固定收入
A17: 10.城镇土地使用税 | B17: 4,226 | D17: 2,331 | F17: 1,800 | H17: -95 | I17: 0 | J17: 4,131 | K17: 0 | L17: -2 | M17: 0 | O17: 市本级固定收入
A18: 11.土地增值税 | B18: 23,810 | C18: 5,953 | D18: 11,737 | E18: 2,934 | F18: 700 | G18: =F18*0.25 -> 175 | H18: -11,373 | I18: -2,844 | J18: 12,437 | K18: 3,109 | L18: -48 | M18: -48 | O18: 市与区共享收入
A19: 12.车船税 | B19: 4 | D19: 3 | H19: -1 | I19: 0 | J19: 3 | K19: 0 | L19: -16 | M19: 0 | O19: 市本级固定收入
A20: 13.耕地占用税 | B20: 197 | C20: 99 | D20: 2,505 | E20: 1,252 | F20: 55 | G20: =F20/2 -> 28 | H20: 2,363 | I20: 1,181 | J20: 2,560 | K20: 1,280 | L20: 1,199 | M20: 1,198 | O20: 市与区共享收入
A21: 14.契税 | B21: 8,229 | D21: 7,696 | F21: 522 | H21: -11 | I21: 0 | J21: 8,218 | K21: 0 | L21: -0 | M21: 0 | O21: 市本级固定收入
A22: 15.环境保护税 | B22: 330 | C22: 165 | D22: 330 | E22: 165 | H22: -0 | I22: -0 | J22: 330 | K22: 165 | L22: -0 | M22: -0 | O22: 市与区共享收入
A23: 16.其他税收收入 | B23: 410 | C23: 51 | D23: 7 | E23: 1 | H23: -403 | I23: -50 | J23: 7 | K23: 1 | L23: -98 | M23: -98
A24: 二、非税收入 | B24: =SUM(B25:B39) -> 10,519 | C24: =SUM(C25:C39) -> 6,752 | D24: =SUM(D25:D39) -> 41,470 | E24: =SUM(E25:E39) -> 32,938 | F24: =SUM(F25:F39) -> 479 | G24: 377 | H24: 31,431 | I24: 26,563 | J24: 41,949 | K24: 33,315 | L24: 299 | M24: 393
A25: 1.教育费附加收入 | B25: 3,059 | C25: 1,530 | D25: 2,597 | E25: 1,298 | F25: =G25*2 -> 92 | G25: =G8*0.025 -> 46 | H25: =J25-B25 -> -370 | I25: =K25-C25 -> -186 | J25: 2,689 | K25: 1,344 | L25: -12 | M25: -12 | O25: 市与区共享收入
A26: 2.地方教育附加收入 | B26: 2,042 | C26: 715 | D26: 1,724 | E26: 604 | F26: =G26/0.35 -> 88 | G26: =G25*2/3 -> 31 | H26: =J26-B26 -> -230 | I26: =K26-C26 -> -80 | J26: 1,812 | K26: 635 | L26: -11 | M26: -11 | O26: 市与区共享收入
A27: 3.农田水利建设 | B27: 0 | D27: 800 | E27: 800 | H27: 800 | I27: 800 | J27: 800 | K27: 800 | L27: 100 | M27: 100
A28: 4.森林植被恢复费 | D28: 49 | H28: 49 | I28: 0 | J28: 49 | K28: 0 | L28: 100 | M28: 0
A29: 5.水利建设专项收入 | H29: 0 | I29: 0 | J29: 0 | K29: 0 | L29: 0 | M29: 0
A30: 6.教育资金收入 | D30: 950 | E30: 950 | H30: 950 | I30: 950 | J30: 950 | K30: 950 | L30: 100 | M30: 100
A31: 7.捐赠收入 | B31: 50 | C31: 50 | D31: 25 | E31: 25 | H31: -25 | I31: -25 | J31: 25 | K31: 25 | L31: -50 | M31: -50
A32: 8.政府住房基金收入 | B32: 100 | C32: 100 | D32: 132 | E32: 132 | H32: 32 | I32: 32 | J32: 132 | K32: 132 | L32: 32 | M32: 32
A33: 9.行政事业性收费收入 | B33: 1,255 | C33: 1,229 | D33: 2,659 | E33: 2,659 | F33: 100 | G33: 100 | H33: 1,504 | I33: 1,530 | J33: 2,759 | K33: 2,759 | L33: 120 | M33: 124
A34: 10.罚没收入 | B34: 500 | C34: 500 | D34: 14,503 | E34: 14,499 | H34: 14,003 | I34: 13,999 | J34: 14,503 | K34: 14,499 | L34: 2,801 | M34: 2,800 | N34: 主要是涉土罚没收入增加。
A35: 9.国有资产经营收入 | H35: 0 | I35: 0 | J35: 0 | K35: 0 | L35: 0 | M35: 0
A36: 11.国有资源(资产)有偿使用收入 | B36: 3,000 | C36: 2,137 | D36: 16,017 | E36: 11,223 | F36: 200 | G36: 200 | H36: 13,217 | I36: 9,286 | J36: 16,217 | K36: 11,423 | L36: 441 | M36: 435 | N36: 主要是土地及附着物资产处置、海砂处置和光伏项目等收入增加。
A37: 12.水土保持补偿费 | B37: 23 | C37: 18 | D37: 80 | E37: 60 | H37: 57 | I37: 42 | J37: 80 | K37: 60 | L37: 247 | M37: 242
A38: 13.防空地下室易地建设费 | B38: 309 | C38: 294 | D38: 300 | E38: 291 | H38: -9 | I38: -3 | J38: 300 | K38: 291 | L38: -3 | M38: -1
A39: 14.其他收入 | B39: 180 | C39: 180 | D39: =1237+397 -> 1,634 | E39: 397 | H39: 1,454 | I39: 217 | J39: 1,634 | K39: 397 | L39: 805 | M39: 120
A40: 征收收入小计 | B40: =+B7+B24 -> 252,781 | C40: =+C7+C24 -> 45,525 | D40: =+D7+D24 -> 214,833 | E40: =+E7+E24 -> 62,518 | F40: =+F7+F24 -> 20,682 | G40: 4,486 | H40: -17,266 | I40: 21,479 | J40: 235,515 | K40: 67,004 | L40: -7 | M40: 47
A41: 其中：税务局 | B41: =+B7+B25+B26+B37+B38+275 -> 247,971 | C41: =+C7+C25+C26+C37+C38+275 -> 41,603 | D41: 179,483 | E41: 31,869 | H41: =J41-B41 -> -48,003 | I41: =K41-C41 -> -5,448 | J41: =J40-J42 -> 199,967 | K41: =K40-K42 -> 36,155 | L41: -19 | M41: -13
A42: 财政局 | B42: =SUM(B27:B39)-B37-B38-275 -> 4,811 | C42: =C40-C41 -> 3,922 | D42: 35,348 | E42: 30,649 | H42: =J42-B42 -> 30,737 | I42: =K42-C42 -> 26,927 | J42: =D42+200 -> 35,548 | K42: =E42+200 -> 30,849 | L42: 639 | M42: 687
A43: 三、转移性收入 | B43: =SUM(B44:B50) -> 0 | C43: =SUM(C44:C50) -> 241,964 | D43: 0 | E43: 0 | F43: 0 | G43: 0 | H43: 0 | I43: -48,557 | J43: 0 | K43: 193,407 | L43: 0 | M43: -20
A44: 1.上级财力性补助收入 | C44: 45,024 | H44: =J44-B44 -> 0 | I44: =K44-C44 -> 11,851 | K44: =47875+9000 -> 56,875 | L44: 0 | M44: 26 | N44: 按去年金额预测省临时救助、一次性专项补助。
A45: 2.上级专项性补助收入 | C45: 46,946 | H45: =J45-B45 -> 0 | I45: =K45-C45 -> 15,635 | K45: 62,581 | L45: 0 | M45: 33 | N45: 其中中央直达资金24713万元。
A46: 3.上级债券转贷收入 | C46: 4,200 | H46: 0 | I46: 3,100 | K46: 7,300 | L46: 0 | M46: 74
A47: 4.再融资债券收入 | C47: 6,000 | H47: 0 | I47: 3,200 | K47: 9,200 | L47: 0 | M47: 53
A48: 5.上年结余收入 | C48: 31,076 | H48: 0 | I48: -457 | K48: 30,619 | L48: 0 | M48: -1
A49: 6.预算稳定调节基金 | C49: 695 | H49: 0 | I49: -332 | K49: 363 | L49: 0 | M49: -48
A50: 7.调入资金 | C50: =107923+100 -> 108,023 | H50: 0 | I50: -81,554 | K50: =744+5000+(4669.86+3026.67+319.09+4304.27+2752.34+2000+1199.87+952.49)+1500 -> 26,469 | L50: 0 | M50: -75 | N50: 其中国有资本经营预算调入744万元、政府性基金预算调入5000万元、专户结余调入20725万元。
A51: 收入合计 | B51: =B43+B40 -> 252,781 | C51: =C43+C40 -> 287,489 | D51: 214,833 | E51: 62,518 | F51: 20,682 | G51: 4,486 | H51: -17,266 | I51: -27,078 | J51: 235,515 | K51: 260,410 | L51: -7 | M51: -9

Sheet （附表2）一般公共预算支出科目
A1: 附表2
A2: 汕头市濠江区2023年一般公共预算支出科目调整情况表
M3: 单位：万元
A4: 功能分类代码 | B4: 功能分类名称 | C4: 年初预算数 | F4: 变动因素 | J4: 调整后计划数 | M4: 备注
C5: 合计 | D5: 本级支出 | E5: 上级支出 | F5: 政策性因素 | G5: 决算后结转资金变化 | H5: 预留、功能分类调整 | I5: 上级支出 | J5: 合计 | K5: 本级支出 | L5: 上级支出
A6: 201 | B6: 一般公共服务支出 | C6: =D6+E6 -> 23,444 | D6: 23,287 | E6: 157 | F6: -1,069 | G6: 0 | H6: 480 | I6: =L6-E6 -> 261 | J6: =K6+L6 -> 23,116 | K6: 22,697 | L6: 418 | N6: =E6+I6-L6 -> 0
A7: 20101 | B7: 人大事务 | C7: 1,081 | D7: 1,081 | E7: 0 | F7: -136 | G7: 0 | H7: 4 | I7: 9 | J7: 959 | K7: 950 | L7: 9 | N7: =E7+I7-L7 -> 0
A8: 2010101 | B8: 行政运行 | C8: 675 | D8: 675 | E8: 0 | F8: 5 | G8: 0 | H8: 4 | I8: 0 | J8: 684 | K8: 684 | M8: 调增人员经费。 | N8: 0
A9: 2010104 | B9: 人大会议 | C9: 16 | D9: 16 | E9: 0 | F9: 0 | G9: 0 | H9: 0 | I9: 0 | J9: 16 | K9: 16 | N9: 0
A10: 2010105 | B10: 人大立法 | C10: 24 | D10: 24 | E10: 0 | F10: 0 | G10: 0 | H10: 0 | I10: 0 | J10: 24 | K10: 24 | L10: 0 | M10: 0 | N10: 0
A11: 2010106 | B11: 人大监督 | C11: 2 | D11: 2 | E11: 0 | F11: 0 | G11: 0 | H11: 0 | I11: 0 | J11: 2 | K11: 2 | N11: 0
A12: 2010108 | B12: 代表工作 | C12: 104 | D12: 104 | E12: 0 | F12: -6 | G12: 0 | H12: 0 | I12: 9 | J12: 107 | K12: 98 | L12: 9 | M12: 调减区人大办代表履职活动保障经费。 | N12: 0
A13: 2010199 | B13: 其他人大事务支出 | C13: 261 | D13: 261 | E13: 0 | F13: -135 | G13: 0 | H13: 0 | I13: 0 | J13: 126 | K13: 126 | L13: 0 | M13: 调减各街道人大工委工作经费等。 | N13: 0
A14: 20102 | B14: 政协事务 | C14: 628 | D14: 628 | E14: 0 | F14: -2 | G14: 0 | H14: 1 | I14: 0 | J14: 627 | K14: 627 | N14: 0
A15: 2010201 | B15: 行政运行 | C15: 478 | D15: 478 | E15: 0 | F15: 8 | G15: 0 | H15: 1 | I15: 0 | J15: 487 | K15: 487 | M15: 调增人员经费。 | N15: 0
A16: 2010204 | B16: 政协会议 | C16: 22 | D16: 22 | E16: 0 | F16: 0 | G16: 0 | H16: 0 | I16: 0 | J16: 22 | K16: 22 | N16: 0
A17: 2010206 | B17: 参政议政 | C17: 6 | D17: 6 | E17: 0 | F17: 0 | G17: 0 | H17: 0 | I17: 0 | J17: 6 | K17: 6 | N17: 0
A18: 2010299 | B18: 其他政协事务支出 | C18: 123 | D18: 123 | E18: 0 | F18: -10 | G18: 0 | H18: 0 | I18: 0 | J18: 113 | K18: 113 | M18: 调减政协工作室工作经费、委员活动经费等，调增文史工作经费。 | N18: 0
A19: 20103 | B19: 政府办公厅（室）及相关机构事务 | C19: 3,573 | D19: 3,573 | E19: 0 | F19: -83 | G19: 0 | H19: 11 | I19: 0 | J19: 3,501 | K19: 3,501 | N19: 0
A20: 2010301 | B20: 行政运行 | C20: 2,090 | D20: 2,090 | E20: 0 | F20: 50 | G20: 0 | H20: 11 | I20: 0 | J20: 2,151 | K20: 2,151 | M20: 调增人员经费。 | N20: 0
A21: 2010399 | B21: 其他政府办公厅（室）及相关机构事务支出 | C21: 1,482 | D21: 1,482 | E21: 0 | F21: -133 | G21: 0 | H21: 0 | I21: 0 | J21: 1,350 | K21: 1,350 | M21: 调减政府在线二期、信息化终端设备更新项目经费等，调增“百千万工程”指挥部办公室工作经费等。 | N21: 0
A22: 20104 | B22: 发展与改革事务 | C22: 568 | D22: 566 | E22: 2 | F22: -98 | G22: 0 | H22: 8 | I22: 0 | J22: 478 | K22: 476 | L22: 2 | N22: 0
A23: 2010401 | B23: 行政运行 | C23: 299 | D23: 299 | E23: 0 | F23: 0 | G23: 0 | H23: 1 | I23: 0 | J23: 300 | K23: 300 | N23: 0
A24: 2010404 | B24: 战略规划与实施 | C24: 3 | D24: 3 | E24: 0 | F24: -2 | G24: 0 | H24: 0 | I24: 0 | J24: 1 | K24: 1 | M24: 调减区经济动员办公室工作经费。 | N24: 0
A25: 2010408 | B25: 物价管理 | C25: 2 | D25: 0 | E25: 2 | I25: 0 | J25: 2 | K25: 0 | L25: 2 | N25: 0
A26: 2010499 | B26: 其他发展与改革事务支出 | C26: 265 | D26: 265 | E26: 0 | F26: -96 | G26: 0 | H26: 7 | I26: 0 | J26: 175 | K26: 175 | M26: 调减可行性研究报告专家评审费、概算审查经费。 | N26: 0
A27: 20105 | B27: 统计信息事务 | C27: 462 | D27: 409 | E27: 54 | F27: -27 | G27: 0 | H27: 0 | I27: -8 | J27: 427 | K27: 382 | L27: 46 | N27: 0
A28: 2010501 | B28: 行政运行 | C28: 261 | D28: 261 | E28: 0 | F28: 0 | G28: 0 | H28: 0 | I28: 0 | J28: 261 | K28: 261 | N28: 0
A29: 2010502 | B29: 一般行政管理事务 | C29: 10 | D29: 10 | E29: 0 | F29: 0 | G29: 0 | H29: 0 | I29: 0 | J29: 10 | K29: 10 | N29: 0
A30: 2010507 | B30: 专项普查活动 | C30: 49 | D30: 35 | E30: 14 | F30: 0 | G30: 0 | H30: 0 | I30: 12 | J30: 61 | K30: 35 | L30: 26 | N30: 0
A31: 2010508 | B31: 统计抽样调查 | C31: 17 | D31: 17 | E31: 0 | F31: 0 | G31: 0 | H31: 0 | I31: 0 | J31: 17 | K31: 17 | N31: 0
A32: 2010550 | B32: 事业运行 | C32: 57 | D32: 57 | E32: 0 | F32: 0 | G32: 0 | H32: 0 | I32: 0 | J32: 57 | K32: 57 | N32: 0
A33: 2010599 | B33: 其他统计信息事务支出 | C33: 69 | D33: 29 | E33: 40 | F33: -27 | G33: 0 | H33: 0 | I33: -20 | J33: 22 | K33: 2 | L33: 20 | M33: 调减2022年街道（镇）统计工作补助资金。 | N33: 0
A34: 20106 | B34: 财政事务 | C34: 1,090 | D34: 1,090 | E34: 0 | F34: 57 | G34: 0 | H34: 0 | I34: 28 | J34: 1,176 | K34: 1,148 | L34: 28 | N34: 0
A35: 2010601 | B35: 行政运行 | C35: 709 | D35: 709 | E35: 0 | F35: 34 | G35: 0 | H35: 0 | I35: 0 | J35: 743 | K35: 743 | M35: 调增人员经费。 | N35: 0
A36: 2010607 | B36: 信息化建设 | C36: 129 | D36: 129 | E36: 0 | F36: 8 | G36: 0 | H36: 0 | I36: 0 | J36: 137 | K36: 137 | M36: 调增财政局系统维护费。 | N36: 0
A37: 2010608 | B37: 财政委托业务支出 | C37: 2 | D37: 2 | E37: 0 | F37: 0 | G37: 0 | H37: 0 | I37: 0 | J37: 2 | K37: 2 | N37: 0
A38: 2010699 | B38: 其他财政事务支出 | C38: 250 | D38: 250 | E38: 0 | F38: 15 | G38: 0 | H38: 0 | I38: 28 | J38: 293 | K38: 265 | L38: 28 | M38: 调增人行联网系统国库端建设费用。 | N38: 0
A39: 20107 | B39: 税收事务 | C39: 2,821 | D39: 2,800 | E39: 21 | F39: 900 | G39: 0 | H39: 0 | I39: 0 | J39: 3,721 | K39: 3,700 | L39: 21 | N39: 0
A40: 2010799 | B40: 税收事务 | C40: 2,821 | D40: 2,800 | E40: 21 | F40: 900 | G40: 0 | H40: 0 | I40: 0 | J40: 3,721 | K40: 3,700 | L40: 21 | M40: 调增税务局征管经费。 | N40: 0
A41: 20108 | B41: 审计事务 | C41: 375 | D41: 375 | E41: 0 | F41: -6 | G41: 0 | H41: 0 | I41: 0 | J41: 369 | K41: 369 | N41: 0
A42: 2010801 | B42: 行政运行 | C42: 241 | D42: 241 | E42: 0 | F42: 8 | G42: 0 | H42: 0 | I42: 0 | J42: 250 | K42: 250 | M42: 调增人员经费。 | N42: 0
A43: 2010804 | B43: 审计业务 | C43: 76 | D43: 76 | E43: 0 | F43: -13 | G43: 0 | H43: 0 | I43: 0 | J43: 63 | K43: 63 | M43: 调减审计经费。 | N43: 0
A44: 2010806 | B44: 信息化建设 | C44: 2 | D44: 2 | E44: 0 | F44: 0 | G44: 0 | H44: 0 | I44: 0 | J44: 2 | K44: 2 | N44: 0
A45: 2010850 | B45: 事业运行 | C45: 56 | D45: 56 | E45: 0 | F45: -1 | G45: 0 | H45: 0 | I45: 0 | J45: 55 | K45: 55 | M45: 调减人员经费。 | N45: 0
A46: 20111 | B46: 纪检监察事务 | C46: =D46+E46 -> 1,333 | D46: 1,333 | E46: 0 | F46: 35 | G46: 0 | H46: 7 | I46: =L46-E46 -> 0 | J46: =K46+L46 -> 1,375 | K46: 1,375 | N46: 0
A47: 2011001 | B47: 行政运行 | C47: 1,099 | D47: 1,099 | E47: 0 | F47: 35 | G47: 0 | H47: 7 | I47: 0 | J47: 1,140 | K47: 1,140 | M47: 调增人员经费。 | N47: 0
A48: 2011104 | B48: 大案要案查处 | C48: 35 | D48: 35 | F48: 0 | G48: 0 | H48: 0 | I48: 0 | J48: 35 | K48: 35 | N48: 0
A49: 2011105 | B49: 派驻派出机构 | C49: 30 | D49: 30 | E49: 0 | I49: 0 | J49: 30 | K49: 30 | N49: 0
A50: 2011199 | B50: 其他纪检监察事务支出 | C50: 170 | D50: 170 | E50: 0 | F50: 0 | G50: 0 | H50: 0 | I50: 0 | J50: 170 | K50: 170 | M50: 0.00 | N50: 0
A51: 20113 | B51: 商贸事务 | C51: 1,041 | D51: 1,041 | E51: 0 | F51: -20 | G51: 0 | H51: 21 | I51: 0 | J51: 1,042 | K51: 1,042 | N51: 0
A52: 2011301 | B52: 行政运行 | C52: 431 | D52: 431 | E52: 0 | F52: -2 | G52: 0 | H52: 0 | I52: 0 | J52: 429 | K52: 429 | M52: 调减人员经费。 | N52: 0
A53: 2011308 | B53: 招商引资 | C53: 44 | D53: 44 | E53: 0 | F53: 10 | G53: 0 | H53: 0 | I53: 0 | J53: 54 | K53: 54 | M53: 调增招商引资工作经费。 | N53: 0
A54: 2011399 | B54: 其他商贸事务支出 | C54: 566 | D54: 566 | E54: 0 | F54: -27 | G54: 0 | H54: 21 | I54: 0 | J54: 559 | K54: 559 | M54: 调减人员经费。 | N54: 0
A55: 20114 | B55: 知识产权事务 | C55: 66 | D55: 66 | E55: 0 | F55: 0 | G55: 0 | H55: 5 | I55: 25 | J55: 96 | K55: 71 | L55: 25 | N55: 0
A56: 2011409 | B56: 知识产权宏观管理 | C56: 35 | D56: 35 | E56: 0 | I56: 25 | J56: 60 | K56: 35 | L56: 25 | N56: 0
A57: 2011499 | B57: 其他知识产权事务支出 | C57: 31 | D57: 31 | E57: 0 | F57: 0 | G57: 0 | H57: 5 | I57: 0 | J57: 36 | K57: 36 | N57: 0
A58: 20125 | B58: 港澳台事务 | C58: 50 | D58: 50 | E58: 0 | F58: 0 | G58: 0 | H58: 0 | I58: 0 | J58: 50 | K58: 50 | N58: 0
A59: 2012504 | B59: 港澳事务 | C59: 50 | D59: 50 | E59: 0 | F59: 0 | G59: 0 | H59: 0 | I59: 0 | J59: 50 | K59: 50 | N59: 0
A60: 20126 | B60: 档案事务 | C60: 203 | D60: 203 | E60: 0 | F60: -30 | G60: 0 | H60: 0 | I60: 0 | J60: 173 | K60: 173 | N60: 0
A61: 2012604 | B61: 档案馆 | C61: 203 | D61: 203 | E61: 0 | F61: -30 | G61: 0 | H61: 0 | I61: 0 | J61: 173 | K61: 173 | M61: 调减档案馆工作经费。 | N61: 0
A62: 20128 | B62: 民主党派及工商联事务 | C62: 86 | D62: 86 | E62: 0 | F62: 7 | G62: 0 | H62: 3 | I62: 0 | J62: 96 | K62: 96 | N62: 0
A63: 2012801 | B63: 行政运行 | C63: 83 | D63: 83 | E63: 0 | F63: 7 | G63: 0 | H63: 3 | I63: 0 | J63: 93 | K63: 93 | M63: 调增人员经费。 | N63: 0
A64: 2012802 | B64: 一般行政管理事务 | C64: 2 | D64: 2 | E64: 0 | F64: 0 | G64: 0 | H64: 0 | I64: 0 | J64: 2 | K64: 2 | M64: 0.00 | N64: 0
A65: 2012899 | B65: 其他民主党派及工商联事务支出 | C65: 1 | D65: 1 | E65: 0 | F65: 0 | G65: 0 | H65: 0 | I65: 0 | J65: 1 | K65: 1 | M65: 0.00 | N65: 0
A66: 20129 | B66: 群众团体事务 | C66: 978 | D66: 978 | E66: 0 | F66: 9 | G66: 0 | H66: 7 | I66: 9 | J66: 1,003 | K66: 994 | L66: 9 | N66: 0
A67: 2012901 | B67: 行政运行 | C67: 351 | D67: 351 | E67: 0 | F67: 14 | G67: 0 | H67: 2 | I67: 0 | J67: 367 | K67: 367 | M67: 调增人员经费。 | N67: 0
A68: 2012902 | B68: 一般行政管理事务 | C68: 54 | D68: 54 | E68: 0 | F68: -4 | G68: 0 | H68: 5 | I68: 0 | J68: 56 | K68: 56 | M68: 调增共青团品牌活动及改革工作经费、妇儿工委监测评估经费等，调减青年人才团建活动经费。 | N68: 0
A69: 2012906 | B69: 工会事务 | C69: 570 | D69: 570 | E69: 0 | F69: 0 | G69: 0 | H69: 0 | I69: 0 | J69: 570 | K69: 570 | M69: 0.00 | N69: 0
A70: 2012999 | B70: 其他群众团体事务支出 | C70: 2 | D70: 2 | E70: 0 | F70: -1 | I70: 9 | J70: 10 | K70: 2 | L70: 9 | M70: 调减广东省第四期“妇女之家”示范点（濠江区）经费。 | N70: 0
A71: 20131 | B71: 党委办公厅（室）及相关机构事务 | C71: 8 | D71: 8 | E71: 0 | F71: -0 | G71: 0 | H71: 0 | I71: 0 | J71: 8 | K71: 8 | N71: =E71+I71-L71 -> 0
A72: 2013199 | B72: 其他党委办公厅（室）及相关机构事务支出 | C72: 8 | D72: 8 | E72: 0 | F72: -0 | I72: 0 | J72: 8 | K72: 8 | N72: 0
A73: 20132 | B73: 组织事务 | C73: 4,978 | D73: 4,898 | E73: 81 | F73: -1,456 | G73: 0 | H73: 113 | I73: 112 | J73: 3,748 | K73: 3,555 | L73: 193 | N73: 0
A74: 2013201 | B74: 行政运行 | C74: 409 | D74: 409 | E74: 0 | F74: 26 | G74: 0 | H74: 7 | I74: 0 | J74: 442 | K74: 442 | M74: 调增人员经费。 | N74: 0
A75: 2013250 | B75: 事业运行 | C75: 9 | D75: 9 | E75: 0 | F75: -0 | G75: 0 | H75: 84 | I75: 0 | J75: 93 | K75: 93 | M75: 调剂人员经费。 | N75: 0
A76: 2013299 | B76: 其他组织事务支出 | C76: 4,560 | D76: 4,479 | E76: 81 | F76: -1,482 | G76: 0 | H76: 22 | I76: 112 | J76: 3,212 | K76: 3,019 | L76: 193 | M76: 调减人员经费、社区一般工作人员工作补贴和“两委”干部医疗保险等。 | N76: 0
A77: 20133 | B77: 宣传事务 | C77: 288 | D77: 288 | E77: 0 | F77: 12 | G77: 0 | H77: 21 | I77: 0 | J77: 321 | K77: 321 | N77: 0
A78: 2013301 | B78: 行政运行 | C78: 241 | D78: 241 | E78: 0 | F78: 16 | G78: 0 | H78: 1 | I78: 0 | J78: 257 | K78: 257 | M78: 调增人员经费。 | N78: 0
A79: 2013350 | B79: 事业运行 | C79: 38 | D79: 38 | E79: 0 | F79: -0 | G79: 0 | H79: 21 | I79: 0 | J79: 59 | K79: 59 | M79: 调剂人员经费。 | N79: 0
A80: 2013399 | B80: 其他宣传事务支出 | C80: 9 | D80: 9 | E80: 0 | F80: -4 | G80: 0 | H80: 0 | I80: 0 | J80: 5 | K80: 5 | M80: 调减理论学习中心组经费。 | N80: 0
A81: 20134 | B81: 统战事务 | C81: 277 | D81: 277 | E81: 0 | F81: 4 | G81: 0 | H81: 8 | I81: 5 | J81: 294 | K81: 289 | L81: 5 | N81: 0
A82: 2013401 | B82: 行政运行 | C82: 255 | D82: 255 | E82: 0 | F82: 4 | G82: 0 | H82: 1 | I82: 0 | J82: 260 | K82: 260 | M82: 调增人员经费。 | N82: 0
A83: 2013405 | B83: 华侨事务 | C83: 10 | D83: 10 | E83: 0 | F83: 0 | G83: 0 | H83: 0 | I83: 0 | J83: 10 | K83: 10 | N83: 0
A84: 2013499 | B84: 其他统战事务支出 | C84: 12 | D84: 12 | E84: 0 | F84: 0 | G84: 0 | H84: 8 | I84: 5 | J84: 25 | K84: 20 | L84: 5 | N84: 0
A85: 20136 | B85: 其他共产党事务支出 | C85: 1,113 | D85: 1,113 | E85: 0 | F85: -135 | G85: 0 | H85: 32 | I85: 0 | J85: 1,009 | K85: 1,009 | N85: 0
A86: 2013601 | B86: 行政运行 | C86: 247 | D86: 247 | E86: 0 | F86: 21 | G86: 0 | H86: 2 | I86: 0 | J86: 269 | K86: 269 | M86: 调增人员经费。 | N86: 0
A87: 2013650 | B87: 事业运行 | C87: 1 | D87: 1 | E87: 0 | H87: 0 | I87: 0 | J87: 1 | K87: 1 | N87: 0
A88: 2013699 | B88: 其他共产党事务支出 | C88: 864 | D88: 864 | E88: 0 | F88: -156 | G88: 0 | H88: 30 | I88: 0 | J88: 739 | K88: 739 | M88: 调减雪亮工程维保费用、粤平安网格手机移动终端费用等。 | N88: 0
A89: 20138 | B89: 市场监督管理事务 | C89: 1,451 | D89: 1,451 | E89: 0 | F89: -20 | G89: 0 | H89: 16 | I89: 82 | J89: 1,528 | K89: 1,447 | L89: 82 | N89: 0
A90: 2013801 | B90: 行政运行 | C90: 1,175 | D90: 1,175 | E90: 0 | F90: -2 | G90: 0 | H90: 5 | I90: 0 | J90: 1,178 | K90: 1,178 | M90: 调剂人员经费。 | N90: 0
A91: 2013815 | B91: 质量安全监管 | C91: 0 | E91: 0 | I91: 50 | J91: 50 | K91: 0 | L91: 50 | N91: 0
A92: 2013816 | B92: 食品安全监管 | C92: 127 | D92: 127 | E92: 0 | F92: -7 | G92: 0 | H92: 0 | I92: 25 | J92: 145 | K92: 120 | L92: 25 | M92: 调减明厨亮灶联网监管系统专项经费。 | N92: 0
A93: 2013850 | B93: 事业运行 | C93: 21 | D93: 21 | E93: 0 | F93: -0 | H93: 11 | I93: 0 | J93: 32 | K93: 32 | M93: 调剂人员经费。 | N93: 0
A94: 2013899 | B94: 其他市场监督管理事务 | C94: 128 | D94: 128 | E94: 0 | F94: -11 | G94: 0 | H94: 0 | I94: 7 | J94: 124 | K94: 117 | L94: 7 | M94: 调减市场监督局工作经费。 | N94: 0
A95: 20199 | B95: 其他一般公共服务支出 | C95: 973 | D95: 973 | E95: 0 | F95: -79 | G95: 0 | H95: 221 | I95: 0 | J95: 1,114 | K95: 1,114 | N95: 0
A96: 2019999 | B96: 其他一般公共服务支出 | C96: 973 | D96: 973 | E96: 0 | F96: -79 | G96: 0 | H96: 221 | I96: 0 | J96: 1,114 | K96: 1,114 | M96: 调增党政办及公安局工作经费，调剂预留经费。 | N96: 0
A97: 203 | B97: 国防支出 | C97: 342 | D97: 342 | E97: 0 | F97: -84 | G97: 0 | H97: 3 | I97: 5 | J97: 266 | K97: 261 | L97: 5 | M97: =M98+M102 -> 0.00 | N97: 0
A98: 20306 | B98: 国防动员 | C98: 147 | D98: 147 | E98: 0 | F98: -62 | G98: 0 | H98: 0 | I98: 5 | J98: 90 | K98: 85 | L98: 5 | N98: 0
A99: 2030601 | B99: 兵役征集 | C99: 72 | D99: 72 | E99: 0 | F99: -38 | G99: 0 | H99: 0 | I99: 5 | J99: 39 | K99: 34 | L99: 5 | M99: 调减退役军人事务局2022年省财政大学毕业生入伍补助。 | N99: 0
A100: 2030603 | B100: 人民防空 | C100: 13 | D100: 13 | E100: 0 | F100: -2 | G100: 0 | H100: 0 | I100: 0 | J100: 11 | K100: 11 | M100: 调减人防训练演练经费。 | N100: 0
A101: 2030607 | B101: 民兵 | C101: 62 | D101: 62 | E101: 0 | F101: -22 | G101: 0 | H101: 0 | I101: 0 | J101: 40 | K101: 40 | M101: 调减民兵事业费。 | N101: 0
A102: 20399 | B102: 其他国防支出 | C102: 195 | D102: 195 | E102: 0 | F102: -22 | G102: 0 | H102: 3 | I102: 0 | J102: 176 | K102: 176 | N102: 0
A103: 2039999 | B103: 其他国防支出 | C103: 195 | D103: 195 | E103: 0 | F103: -22 | H103: 3 | I103: 0 | J103: 176 | K103: 176 | M103: 调减武装部营房管理费等经费。 | N103: 0
A104: 204 | B104: 公共安全支出 | C104: 3,623 | D104: 3,585 | E104: 38 | F104: -460 | G104: 0 | H104: -20 | I104: 91 | J104: 3,233 | K104: 3,105 | L104: 129 | M104: =M105+M107+M110+M113+M123 -> 0.00 | N104: 0
A105: 20402 | B105: 公安 | C105: 1,958 | D105: 1,958 | E105: 0 | F105: -446 | G105: 0 | H105: -25 | I105: 0 | J105: 1,488 | K105: 1,488 | N105: 0
A106: 2040299 | B106: 其他公安支出 | C106: =D106+E106 -> 1,958 | D106: 1,958 | E106: 0 | F106: -446 | G106: 0 | H106: -25 | I106: =L106-E106 -> 0 | J106: =K106+L106 -> 1,488 | K106: 1,488 | M106: 调减预留公安专项经费、“平安汕头”智能视频监控系统租赁资金等。 | N106: 0
A107: 20404 | B107: 检察 | C107: 163 | D107: 163 | E107: 0 | F107: 27 | G107: 0 | H107: 0 | I107: 0 | J107: 189 | K107: 189 | N107: 0
A108: 2040401 | B108: 行政运行 | C108: 115 | D108: 115 | E108: 0 | F108: 27 | G108: 0 | H108: 0 | I108: 0 | J108: 142 | K108: 142 | M108: 调增人员经费。 | N108: 0
A109: 2040499 | B109: 其他检察支出 | C109: 48 | D109: 48 | E109: 0 | F109: 0 | G109: 0 | H109: 0 | I109: 0 | J109: 48 | K109: 48 | N109: 0
A110: 20405 | B110: 法院 | C110: 332 | D110: 332 | E110: 0 | F110: -17 | G110: 0 | H110: 0 | I110: 0 | J110: 314 | K110: 314 | N110: 0
A111: 2040501 | B111: 行政运行 | C111: 159 | D111: 159 | E111: 0 | F111: 43 | G111: 0 | H111: 0 | I111: 0 | J111: 202 | K111: 202 | M111: 调增人员经费。 | N111: 0
A112: 2040599 | B112: 其他法院支出 | C112: 173 | D112: 173 | E112: 0 | F112: -60 | G112: 0 | H112: 0 | I112: 0 | J112: 113 | K112: 113 | M112: 调减书记员经费、诉前调解中心工作经费。 | N112: 0
A113: 20406 | B113: 司法 | C113: 1,144 | D113: 1,106 | E113: 38 | F113: -14 | G113: 0 | H113: 5 | I113: 35 | J113: 1,169 | K113: 1,097 | L113: 73 | N113: 0
A114: 2040601 | B114: 行政运行 | C114: 773 | D114: 773 | E114: 0 | F114: 23 | G114: 0 | H114: 5 | I114: 0 | J114: 801 | K114: 801 | M114: 调增人员经费。 | N114: 0
A115: 2040602 | B115: 一般行政管理事务 | C115: 95 | D115: 95 | E115: 0 | F115: -22 | G115: 0 | H115: 0 | I115: 0 | J115: 73 | K115: 73 | M115: 调减“广东省行政执法信息平台和行政执法监督网络平台”经费。 | N115: 0
A116: 2040604 | B116: 基层司法业务 | C116: 54 | D116: 54 | E116: 0 | F116: -8 | G116: 0 | H116: 0 | I116: 12 | J116: 58 | K116: 46 | L116: 12 | M116: 调减人民调解“以案定补”经费等。 | N116: 0
A117: 2040605 | B117: 普法宣传 | C117: 12 | D117: 12 | E117: 0 | F117: 0 | G117: 0 | H117: 0 | I117: 2 | J117: 14 | K117: 12 | L117: 2 | N117: 0
A118: 2040606 | B118: 律师公证管理 | C118: 3 | D118: 3 | E118: 0 | F118: -2 | G118: 0 | H118: 0 | I118: 0 | J118: 1 | K118: 1 | M118: 调减公共法律服务工作经费。 | N118: 0
A119: 2040607 | B119: 法律援助 | C119: 80 | D119: 42 | E119: 38 | F119: -2 | G119: 0 | H119: 0 | I119: 8 | J119: 85 | K119: 40 | L119: 46 | M119: 调减法律援助经费。 | N119: 0
A120: 2040610 | B120: 社区矫正 | C120: 86 | D120: 86 | E120: 0 | F120: -3 | G120: 0 | H120: 0 | I120: 4 | J120: 87 | K120: 83 | L120: 4 | M120: 调减社区矫正两级平台运行维护经费。 | N120: 0
A121: 2040613 | B121: 信息化建设 | C121: 2 | D121: 2 | E121: 0 | I121: 0 | J121: 2 | K121: 2 | M121: 0.00 | N121: 0
A122: 2040699 | B122: 其他司法支出 | C122: 39 | D122: 39 | E122: 0 | F122: 0 | G122: 0 | H122: 0 | I122: 9 | J122: 49 | K122: 39 | L122: 9 | M122: 0.00 | N122: 0
A123: 20499 | B123: 其他公共安全支出 | C123: 26 | D123: 26 | E123: 0 | F123: -10 | G123: 0 | H123: 0 | I123: 56 | J123: 72 | K123: 16 | L123: 56 | N123: 0
A124: 2049999 | B124: 其他公共安全支出 | C124: 26 | D124: 26 | E124: 0 | F124: -10 | G124: 0 | H124: 0 | I124: 56 | J124: 72 | K124: 16 | L124: 56 | M124: 调减见义勇为奖励经费。 | N124: 0
A125: 205 | B125: 教育支出 | C125: 83,789 | D125: 78,326 | E125: 5,464 | F125: -10,868 | G125: 0 | H125: 888 | I125: 822 | J125: 74,632 | K125: 68,346 | L125: 6,285 | M125: =M126+M128+M134+M137+M140+M143+M145 -> 0.00 | N125: 0
A126: 20501 | B126: 教育管理事务 | C126: 500 | D126: 500 | E126: 0 | F126: -4 | G126: 0 | H126: 1 | I126: 0 | J126: 496 | K126: 496 | N126: 0
A127: 2050101 | B127: 行政运行 | C127: 500 | D127: 500 | E127: 0 | F127: -4 | G127: 0 | H127: 1 | I127: 0 | J127: 496 | K127: 496 | M127: 调减人员经费。 | N127: 0
A128: 20502 | B128: 普通教育 | C128: 69,492 | D128: 64,441 | E128: 5,051 | F128: -637 | G128: 0 | H128: 874 | I128: 453 | J128: 70,182 | K128: 64,678 | L128: 5,504 | N128: 0
A129: 2050201 | B129: 学前教育 | C129: 1,868 | D129: 1,560 | E129: 307 | F129: -257 | G129: 0 | H129: 1 | I129: 4 | J129: 1,615 | K129: 1,304 | L129: 311 | M129: 调减濠江花园南区幼儿园、广澳街道中心幼儿园学前教育购买服务经费。 | N129: 0
A130: 2050202 | B130: 小学教育 | C130: 31,363 | D130: 29,374 | E130: 1,989 | F130: -877 | G130: 0 | H130: 229 | I130: 266 | J130: 30,981 | K130: 28,726 | L130: 2,255 | M130: 调减人员经费、河北小学教学用房及配套设施综合改建项目和华桥小学扩建教学综合楼及运动场地改造项目等。 | N130: 0
A131: 2050203 | B131: 初中教育 | C131: 16,919 | D131: 15,065 | E131: 1,853 | F131: -615 | G131: 0 | H131: 50 | I131: 281 | J131: 16,636 | K131: 14,501 | L131: 2,135 | M131: 调减人员经费和达濠中学改建运动场及配套设施项目等。 | N131: 0
A132: 2050204 | B132: 高中教育 | C132: 9,752 | D132: 9,338 | E132: 414 | F132: -215 | G132: 0 | H132: 29 | I132: 118 | J132: 9,684 | K132: 9,152 | L132: 532 | M132: 调减人员经费。 | N132: 0
A133: 2050299 | B133: 其他普通教育支出 | C133: 9,590 | D133: 9,103 | E133: 487 | F133: 1,328 | G133: 0 | H133: 565 | I133: -217 | J133: 11,266 | K133: 10,996 | L133: 270 | M133: 调增教育校舍改造（一般债券）项目资金、教师培训经费等，调减各学校工作经费等，区教师发展中心中心及人力资源服务产业园建设项目调整科目。 | N133: 0
A134: 20503 | B134: 职业教育 | C134: 6,319 | D134: 6,001 | E134: 318 | F134: -3,158 | G134: 0 | H134: 4 | I134: 87 | J134: 3,252 | K134: 2,848 | L134: 405 | N134: 0
A135: 2050302 | B135: 中等职业教育 | C135: 1,319 | D135: 1,001 | E135: 318 | F135: -158 | G135: 0 | H135: 4 | I135: 87 | J135: 1,252 | K135: 848 | L135: 405 | M135: 调减职业教育提质培优行动计划、广澳中学综合实训楼和学生宿舍楼及配套设施等项目经费。 | N135: =E135+I135-L135 -> 0
A136: 2050305 | B136: 高等职业教育 | C136: 5,000 | D136: 5,000 | E136: 0 | F136: -3,000 | G136: 0 | H136: 0 | I136: 0 | J136: 2,000 | K136: 2,000 | M136: 调减汕头幼儿师范高等专科学校建设项目经费。 | N136: 0
A137: 20507 | B137: 特殊教育 | C137: 212 | D137: 117 | E137: 95 | F137: -7 | G137: 0 | H137: 9 | I137: 31 | J137: 244 | K137: 119 | L137: 126 | N137: 0
A138: 2050701 | B138: 特殊学校教育 | C138: 201 | D138: 106 | E138: 95 | F138: -7 | G138: 0 | H138: 9 | I138: 31 | J138: 233 | K138: 108 | L138: 126 | M138: 调剂人员经费。 | N138: 0
A139: 2050799 | B139: 其他特殊教育支出 | C139: 11 | D139: 11 | E139: 0 | F139: 0 | G139: 0 | H139: 0 | I139: 0 | J139: 11 | K139: 11 | M139: 0.00 | N139: 0
A140: 20508 | B140: 进修及培训 | C140: 40 | D140: 40 | E140: 0 | F140: -3 | G140: 0 | H140: 0 | I140: 22 | J140: 60 | K140: 38 | L140: 22 | N140: 0
A141: 2050801 | B141: 教师进修 | C141: 30 | D141: 30 | E141: 0 | F141: -3 | G141: 0 | H141: 0 | I141: 22 | J141: 50 | K141: 28 | L141: 22 | M141: 调减中小学教师校本研修示范校和示范培育学校建设补助项目经费。 | N141: 0
A142: 2050802 | B142: 干部教育 | C142: 10 | D142: 10 | E142: 0 | F142: 0 | G142: 0 | H142: 0 | I142: 0 | J142: 10 | K142: 10 | M142: 0.00 | N142: 0
A143: 20509 | B143: 教育费附加安排的支出 | C143: 205 | D143: 205 | E143: 0 | F143: -52 | G143: 0 | H143: 0 | I143: 146 | J143: 299 | K143: 153 | L143: 146 | N143: 0
A144: 2050999 | B144: 其他教育费附加安排的支出 | C144: 205 | D144: 205 | E144: 0 | F144: -52 | G144: 0 | H144: 0 | I144: 146 | J144: 299 | K144: 153 | L144: 146 | M144: 调减项目经费。 | N144: 0
A145: 20599 | B145: 其他教育支出 | C145: 7,021 | D145: 7,021 | E145: 0 | F145: -7,006 | G145: 0 | H145: 0 | I145: 84 | J145: 98 | K145: 15 | L145: 84 | N145: 0
A146: 2059999 | B146: 其他教育支出 | C146: 7,021 | D146: 7,021 | E146: 0 | F146: -7,006 | G146: 0 | H146: 0 | I146: 84 | J146: 98 | K146: 15 | L146: 84 | M146: 调减粤东粤西粤北地区新建迁建高校资金。 | N146: 0
A147: 206 | B147: 科学技术支出 | C147: 2,518 | D147: 2,498 | E147: 20 | F147: -1,266 | G147: 0 | H147: -374 | I147: 1,085 | J147: 1,963 | K147: 858 | L147: 1,105 | N147: 0
A148: 20604 | B148: 技术研究与开发支出 | C148: =D148+E148 -> 795 | D148: 795 | E148: 0 | F148: 0 | G148: 0 | H148: 0 | I148: =L148-E148 -> 1,090 | J148: =K148+L148 -> 1,885 | K148: 795 | L148: 1,090 | N148: 0
A149: 2060499 | B149: 其他技术研究与开发支出 | C149: 795 | D149: 795 | E149: 0 | I149: 1,090 | J149: 1,885 | K149: 795 | L149: 1,090 | N149: 0
A150: 20607 | B150: 科学技术普及 | C150: 3 | D150: 3 | E150: 0 | F150: 0 | G150: 0 | H150: 0 | I150: 0 | J150: 3 | K150: 3 | N150: 0
A151: 2060799 | B151: 其他科学技术普及支出 | C151: 3 | D151: 3 | E151: 0 | F151: 0 | G151: 0 | H151: 0 | I151: 0 | J151: 3 | K151: 3 | N151: 0
A152: 20699 | B152: 其他科学技术支出 | C152: 1,720 | D152: 1,700 | E152: 20 | F152: -1,266 | G152: 0 | H152: -374 | I152: -5 | J152: 75 | K152: 60 | L152: 15 | N152: 0
A153: 2069999 | B153: 其他科学技术支出 | C153: 1,720 | D153: 1,700 | E153: 20 | F153: -1,266 | G153: 0 | H153: -374 | I153: -5 | J153: 75 | K153: 60 | L153: 15 | M153: 调减项目经费。 | N153: 0
A154: 207 | B154: 文化旅游体育与传媒支出 | C154: 3,425 | D154: 3,371 | E154: 54 | F154: -1,516 | G154: 0 | H154: 82 | I154: 255 | J154: 2,246 | K154: 1,937 | L154: 309 | N154: 0
A155: 20701 | B155: 文化和旅游 | C155: 1,340 | D155: 1,287 | E155: 54 | F155: -344 | G155: 0 | H155: 1 | I155: 29 | J155: 1,027 | K155: 944 | L155: 83 | N155: 0
A156: 2070101 | B156: 行政运行 | C156: 170 | D156: 170 | E156: 0 | F156: 11 | G156: 0 | H156: 0 | I156: 0 | J156: 181 | K156: 181 | M156: 调增人员经费。 | N156: 0
A157: 2070104 | B157: 图书馆 | C157: 63 | D157: 63 | E157: 0 | F157: -0 | G157: 0 | H157: 1 | I157: 0 | J157: 64 | K157: 64 | M157: 调剂人员经费。 | N157: 0
A158: 2070109 | B158: 群众文化 | C158: 193 | D158: 193 | E158: 0 | F158: -2 | G158: 0 | H158: 0 | I158: 0 | J158: 191 | K158: 191 | M158: 调减人员经费。 | N158: 0
A159: 2070110 | B159: 文化和旅游交流与合作 | C159: 0 | I159: 10 | J159: 10 | K159: 0 | L159: 10 | N159: 0
A160: 2070112 | B160: 文化和旅游市场管理 | C160: 2 | D160: 2 | E160: 0 | F160: 0 | G160: 0 | H160: 0 | I160: 0 | J160: 2 | K160: 2 | N160: 0
A161: 2070113 | B161: 旅游宣传 | C161: 4 | D161: 4 | E161: 0 | F161: 0 | G161: 0 | H161: 0 | I161: 0 | J161: 4 | K161: 4 | N161: 0
A162: 2070199 | B162: 其他文化和旅游支出 | C162: 908 | D162: 854 | E162: 54 | F162: -352 | G162: 0 | H162: 0 | I162: 19 | J162: 575 | K162: 502 | L162: 73 | M162: 调减国家级全域旅游示范区创建经费、创建省全域旅游示范区工作经费等。 | N162: 0
A163: 20702 | B163: 文物 | C163: 115 | D163: 115 | E163: 0 | F163: -9 | G163: 0 | H163: 1 | I163: 13 | J163: 119 | K163: 106 | L163: 13 | N163: 0
A164: 2070204 | B164: 文物保护 | C164: 19 | D164: 19 | E164: 0 | F164: -2 | G164: 0 | H164: 0 | I164: 0 | J164: 17 | K164: 17 | M164: 调减文物保护经费。 | N164: 0
A165: 2070205 | B165: 博物馆 | C165: 96 | D165: 96 | E165: 0 | F165: -7 | G165: 0 | H165: 1 | I165: 13 | J165: 102 | K165: 89 | L165: 13 | M165: 调减人员经费。 | N165: 0
A166: 20703 | B166: 体育 | C166: 17 | D166: 17 | E166: 0 | F166: -6 | G166: 0 | H166: 0 | I166: 13 | J166: 24 | K166: 11 | L166: 13 | N166: 0
A167: 2070307 | B167: 体育场馆 | C167: 10 | D167: 10 | E167: 0 | F167: -8 | I167: 0 | J167: 2 | K167: 2 | M167: 调减公共体育场馆向社会免费或低收费开放项目经费。 | N167: 0
A168: 2070399 | B168: 其他体育支出 | C168: 7 | D168: 7 | E168: 0 | F168: 2 | G168: 0 | H168: 0 | I168: 13 | J168: 22 | K168: 9 | L168: 13 | M168: 调增项目经费。 | N168: 0
A169: 20799 | B169: 其他文化旅游体育与传媒支出 | C169: 1,953 | D169: 1,953 | E169: 0 | F169: -1,157 | G169: 0 | H169: 80 | I169: 200 | J169: 1,075 | K169: 875 | L169: 200 | N169: 0
A170: 2079902 | B170: 宣传文化发展专项支出 | C170: 100 | D170: 100 | E170: 0 | F170: -5 | I170: 0 | J170: 95 | K170: 95 | M170: 调减新时代文明实践中心提质升级项目工作经费。 | N170: 0
A171: 2079999 | B171: 其他文化旅游体育与传媒支出 | C171: 1,853 | D171: 1,853 | E171: 0 | F171: -1,152 | G171: 0 | H171: 80 | I171: 200 | J171: 980 | K171: 780 | L171: 200 | M171: 调减创建经费、玉新街道黎明社区红色文化教育基地经费等。 | N171: 0
A172: 208 | B172: 社会保障和就业支出 | C172: 33,741 | D172: 18,353 | E172: 15,387 | F172: -1,761 | G172: 23 | H172: 221 | I172: 197 | J172: 32,420 | K172: 16,836 | L172: 15,584 | M172: =M173+M178+M184+M192+M195+M200+M207+M214+M220+M223+M226+M229+M232+M235+M238+M246+M244 -> 0.00 | N172: 0
A173: 20801 | B173: 人力资源和社会保障管理事务 | C173: 1,053 | D173: 778 | E173: 275 | F173: -30 | G173: 0 | H173: 74 | I173: -17 | J173: 1,081 | K173: 823 | L173: 258 | N173: 0
A174: 2080101 | B174: 行政运行 | C174: 438 | D174: 438 | E174: 0 | F174: -6 | G174: 0 | H174: 3 | I174: 0 | J174: 434 | K174: 434 | M174: 调减人员经费。 | N174: 0
A175: 2080102 | B175: 一般行政管理事务 | C175: 19 | D175: 19 | E175: 0 | F175: 0 | G175: 0 | H175: 67 | I175: 0 | J175: 86 | K175: 86 | N175: 0
A176: 2080111 | B176: 公共就业服务和职业技能鉴定机构 | C176: 265 | D176: 265 | E176: 0 | F176: -15 | G176: 0 | H176: 5 | I176: 0 | J176: 254 | K176: 254 | M176: 调减人员经费。 | N176: 0
A177: 2080199 | B177: 其他人力资源和社会保障管理事务支出 | C177: 332 | D177: 57 | E177: 275 | F177: -8 | G177: 0 | H177: 0 | I177: -17 | J177: 307 | K177: 49 | L177: 258 | M177: 调减人社局工作经费。 | N177: 0
A178: 20802 | B178: 民政管理事务 | C178: 1,443 | D178: 1,051 | E178: 392 | F178: -71 | G178: 0 | H178: 6 | I178: 0 | J178: 1,377 | K178: 986 | L178: 392 | N178: 0
A179: 2080201 | B179: 行政运行 | C179: 283 | D179: 283 | E179: 0 | F179: -1 | G179: 0 | H179: 0 | I179: 0 | J179: 282 | K179: 282 | M179: 调减人员经费。 | N179: 0
A180: 2080206 | B180: 社会组织管理 | C180: =D180+E180 -> 2 | D180: 2 | E180: 0 | F180: 0 | G180: 0 | H180: 0 | I180: =L180-E180 -> 0 | J180: =K180+L180 -> 2 | K180: 2 | N180: 0
A181: 2080207 | B181: 行政区划和地名管理 | C181: 1 | D181: 1 | E181: 0 | F181: 0 | G181: 0 | H181: 0 | I181: 0 | J181: 1 | K181: 1 | L181: 0 | N181: 0
A182: 2080208 | B182: 基层政权建设和社区治理 | C182: 696 | D182: 629 | E182: 68 | F182: -70 | G182: 0 | H182: 0 | I182: 0 | J182: 626 | K182: 559 | L182: 68 | M182: 调减居务监督委员会成员区级补贴经费。 | N182: 0
A183: 2080299 | B183: 其他民政管理事务支出 | C183: 460 | D183: 136 | E183: 324 | F183: -0 | G183: 0 | H183: 6 | I183: 0 | J183: 465 | K183: 141 | L183: 324 | M183: 调增民政局工作经费。 | N183: 0
A184: 20805 | B184: 行政事业单位养老支出 | C184: 9,147 | D184: 9,147 | E184: 0 | F184: -1,273 | G184: 0 | H184: 143 | I184: 0 | J184: 8,017 | K184: 8,017 | N184: 0
A185: 2080501 | B185: 行政单位离退休 | C185: 1,777 | D185: 1,777 | E185: 0 | F185: -3 | G185: 0 | H185: 18 | I185: 0 | J185: 1,792 | K185: 1,792 | M185: 调剂人员经费。 | N185: 0
A186: 2080502 | B186: 事业单位离退休 | C186: 722 | D186: 722 | E186: 0 | F186: -1 | G186: 0 | H186: 14 | I186: 0 | J186: 735 | K186: 735 | M186: 调剂人员经费。 | N186: 0
A187: 2080503 | B187: 离退休人员管理机构 | C187: 125 | D187: 125 | E187: 0 | F187: -6 | G187: 0 | H187: 0 | I187: 0 | J187: 120 | K187: 120 | M187: 调减人员经费。 | N187: 0
A188: 2080505 | B188: 机关事业单位基本养老保险缴费支出 | C188: 2,319 | D188: 2,319 | E188: 0 | F188: -5 | G188: 0 | H188: 71 | I188: 0 | J188: 2,385 | K188: 2,385 | M188: 调剂人员经费。 | N188: 0
A189: 2080506 | B189: 机关事业单位职业年金缴费支出 | C189: 1,203 | D189: 1,203 | E189: 0 | F189: -9 | G189: 0 | H189: 40 | I189: 0 | J189: 1,235 | K189: 1,235 | M189: 调剂人员经费。 | N189: 0
A190: 2080507 | B190: 对机关事业单位基本养老保险基金的补助 | C190: 3,000 | D190: 3,000 | E190: 0 | F190: -1,250 | G190: 0 | H190: 0 | I190: 0 | J190: 1,750 | K190: 1,750 | M190: 调减财政对机关事业单位养老保险的补助经费。 | N190: 0
A191: 2080599 | B191: 其他行政事业单位养老支出 | C191: 1 | D191: 1 | E191: 0 | F191: 0 | G191: 0 | H191: 0 | I191: 0 | J191: 1 | K191: 1 | M191: 0.00 | N191: 0
A192: 20807 | B192: 就业补助 | C192: 401 | D192: 25 | E192: 376 | F192: 0 | G192: 0 | H192: 0 | I192: -121 | J192: 280 | K192: 25 | L192: 255 | N192: 0
A193: 2080711 | B193: 就业见习补贴 | C193: 4 | E193: 4 | I193: -1 | J193: 4 | K193: 0 | L193: 4 | N193: 0
A194: 2080799 | B194: 其他就业补助支出 | C194: 397 | D194: 25 | E194: 372 | F194: 0 | G194: 0 | H194: 0 | I194: -120 | J194: 277 | K194: 25 | L194: 252 | N194: 0
A195: 20808 | B195: 抚恤 | C195: 1,686 | D195: 586 | E195: 1,100 | F195: 68 | G195: 15 | H195: 81 | I195: 172 | J195: 2,021 | K195: 749 | L195: 1,272 | N195: 0
A196: 2080801 | B196: 死亡抚恤 | C196: 360 | D196: 360 | E196: 0 | F196: 0 | G196: 0 | H196: 5 | I196: 0 | J196: 365 | K196: 365 | M196: 调剂预留基本经费。 | N196: 0
A197: 2080803 | B197: 在乡复员、退伍军人生活补助 | C197: 56 | D197: 36 | E197: 20 | F197: -2 | G197: 0 | H197: 0 | I197: 0 | J197: 54 | K197: 34 | L197: 20 | M197: 调减困难企业部分退役人员生活补助。 | N197: 0
A198: 2080805 | B198: 义务兵优待 | C198: 179 | D198: 179 | E198: 0 | F198: 70 | G198: 0 | H198: 76 | I198: 172 | J198: 497 | K198: 325 | L198: 172 | M198: 调增城乡义务兵优待金（含高原兵）及一次性大学生入伍奖励。 | N198: 0
A199: 2080899 | B199: 农村籍退役士兵老年生活补助 | C199: 1,091 | D199: 11 | E199: 1,080 | F199: -0 | G199: 15 | H199: 0 | I199: 0 | J199: 1,106 | K199: 26 | L199: 1,080 | M199: 调增2022年中央财政优抚对象补助经费。 | N199: =E199+I199-L199 -> 0
A200: 20809 | B200: 退役安置 | C200: 578 | D200: 361 | E200: 217 | F200: -49 | G200: 2 | H200: 1 | I200: -527 | J200: 5 | K200: 315 | L200: -310 | N200: 0
... 238 more rows

Sheet （附表3）一般公共预算支出项目
A1: 附表3
A2: 汕头市濠江区2023年一般公共预算支出项目调整情况表
H3: 单位：万元
A4: 序号 | B4: 股室 | C4: 单位 | D4: 项目名称 | E4: 年初预算数 | F4: 变动因素 | G4: 调整后计划数 | H4: 备注
A5: 合计 | E5: =E6+E7+E8+E9 -> 240,428 | F5: =F6+F7+F8+F9 -> -42,994 | G5: =E5+F5 -> 197,434
A6: 一、基本支出小计 | E6: 107,682 | F6: -2,507 | G6: 105,175
A7: 二、上年专项结转小计 | E7: 31,076 | F7: =-13792.38-1.39 -> -13,794 | G7: 17,282
A8: 三、新增一般债券支出小计 | E8: 4,200 | F8: 3,100 | G8: 7,300
A9: 四、项目支出小计 | E9: =E10+E11 -> 97,470 | F9: =F10+F11 -> -29,794 | G9: 67,677
A10: （一）无变动项目支出小计 | E10: 35,838 | F10: 0 | G10: 35,838
A11: （二）变动项目支出小计 | E11: =SUM(E12:E448) -> 61,632 | F11: =SUM(F12:F448)+5.22 -> -29,794 | G11: 31,838
A12: 1 | B12: 经建股 | C12: 达濠街道 | D12: 2021年汕头市城镇老旧小区改造资金（西园里） | E12: 196 | F12: -11 | G12: 185
A13: 2 | B13: 农业股 | C13: 达濠街道 | D13: 濠江区渔港码头片区雨污分流改造项目 | E13: 36 | F13: -16 | G13: 20
A14: 3 | B14: 行财股 | C14: 达濠街道 | D14: 2021年中央美术馆（站）免费开放补助资金 | E14: 2 | F14: -2 | G14: 0
A15: 4 | B15: 行财股 | C15: 达濠街道 | D15: 2021年省级财政公益性文化设施免费开放补助资金 | E15: 3 | F15: -3 | G15: 0
A16: 5 | B16: 行财股 | C16: 达濠街道 | D16: 2021年省级推动乡镇（街道）综合文化站达标升级 | E16: 1 | F16: -1 | G16: 0
A17: 6 | B17: 预算股 | C17: 达濠街道 | D17: 达濠古城日常管理和维护经费 | E17: 100 | F17: -17 | G17: 83 | H17: 使用上级资金支出（汕市财科教〔2022〕66号）。
A18: 7 | B18: 预算股 | C18: 礐石街道 | D18: 尾村社区工作经费 | E18: 8 | F18: -8 | G18: 0
A19: 8 | B19: 农业股 | C19: 滨海街道 | D19: 2022年汕头市濠江区滨海街道高标准农田建设项目（区级资金） | E19: 155 | F19: -140 | G19: 15
A20: 9 | B20: 行财股 | C20: 滨海中学 | D20: 2021年省级新强师工程-中小学教师教育科研能力提升计划（濠江区） | E20: 0 | F20: -0.14 | G20: 0
A21: 10 | B21: 行财股 | C21: 广澳街道 | D21: 2021年市级“两新”组织党建工作财政专项经费-市级 | E21: 0 | F21: -0.20 | G21: 0
A22: 11 | B22: 经建股 | C22: 玉新街道 | D22: 玉新街道黎明社区红色文化教育基地 | E22: 175 | F22: -170 | G22: 5
A23: 12 | B23: 农业股 | C23: 玉新街道 | D23: 提前下达2022年中央财政衔接推进乡村振兴补助资金（黎明社区建材产业服务区工程项目） | E23: 0 | F23: 10 | G23: 10 | H23: 该项目建设进度已达90%，已进入结算。
A24: 13 | B24: 行财股 | C24: 玉新街道 | D24: 高速公路爱心服务点防疫服务专项费用 | E24: 2 | F24: -0.18 | G24: 2
A25: 14 | B25: 工贸股 | C25: 各街道 | D25: 2021年中心城区居民生活垃圾袋装收集经费（补列） | E25: 200 | F25: -50 | G25: 150
A26: 15 | B26: 行财股 | C26: 各街道 | D26: 2022年区级街道党校区级配套运行经费 | E26: 21 | F26: -12 | G26: 9 | H26: 调减广澳街道、礐石街道、河浦街道、滨海街道各3万。
A27: 16 | B27: 行财股 | C27: 各街道 | D27: 2021年市级镇（街道）人大工作经费 | E27: 23 | F27: -13 | G27: 10 | H27: 调减达濠街道、滨海街道各5万，礐石街道2.5万。
A28: 17 | B28: 行财股 | C28: 各街道 | D28: 代表履职活动保障经费 | E28: 43 | F28: -6 | G28: 37 | H28: 调减玉新街道、滨海街道各3万。
A29: 18 | B29: 预算股 | C29: 各街道 | D29: 社区“两委”干部岗位补贴 | E29: 1,441 | F29: -587 | G29: 854
A30: 19 | B30: 预算股 | C30: 各街道 | D30: 社区“两委”干部养老保险 | E30: 202 | F30: -129 | G30: 73
A31: 20 | B31: 预算股 | C31: 各街道 | D31: 社区“两委”干部医疗保险 | E31: 203 | F31: -106 | G31: 97
A32: 21 | B32: 预算股 | C32: 各街道 | D32: 社区“两委”干部住房公积金 | E32: 166 | F32: -78 | G32: 88
A33: 22 | B33: 预算股 | C33: 各街道 | D33: 社区“两委”干部退转后补助资金 | E33: 152 | F33: -21 | G33: 131
A34: 23 | B34: 预算股 | C34: 各街道 | D34: 社区一般工作人员工作补贴 | E34: 1,393 | F34: -963 | G34: 430 | H34: 调增礐石街道社区一般工作人员工作补贴（计生）0.48万元，其他余额调减。
A35: 24 | B35: 预算股 | C35: 各街道 | D35: 纯居社区办公经费 | E35: 89 | F35: -3 | G35: 86 | H35: 使用上级资金支出（汕市财行〔2022〕150号）。
A36: 25 | B36: 预算股 | C36: 各街道 | D36: 困难社区办公经费 | E36: 148 | F36: -39 | G36: 109 | H36: 调增玉新街道17万元，其他余额调减。
A37: 26 | B37: 预算股 | C37: 各街道 | D37: 社区党组织服务群众专项经费 | E37: 37 | F37: -2 | G37: 35 | H37: 使用上级资金支出（汕市财行〔2022〕150号）。
A38: 27 | B38: 预算股 | C38: 各街道 | D38: 社区党组织书记绩效奖励经费 | E38: 22 | F38: -3 | G38: 19 | H38: 调增滨海街道0.748万元，其他余额调减。
A39: 28 | B39: 预算股 | C39: 各街道 | D39: 人大工委工作经费 | E39: 35 | F39: -35 | G39: 0
A40: 29 | B40: 预算股 | C40: 各街道 | D40: 农税改 | E40: 243 | F40: -243 | G40: 0
A41: 30 | B41: 预算股 | C41: 各街道 | D41: 社区两委干部任期岗位年金（2021年，区级） | E41: 246 | F41: 0.10 | G41: 246 | H41: 调增马滘街道0.1万元。
A42: 31 | B42: 预算股 | C42: 各街道 | D42: 人大工委工作经费（2022年，区级） | E42: 35 | F42: -35 | G42: 0
A43: 32 | B43: 国资股 | C43: 区政府办公室 | D43: 公务用车购置经费 | E43: 25 | F43: -7 | G43: 18
A44: 33 | B44: 经建股 | C44: 区政府办公室 | D44: 区政府大院屋面隔热防水工程项目经费 | E44: 50 | F44: -50 | G44: 0
A45: 34 | B45: 经建股 | C45: 区政府办公室 | D45: 区机关食堂设施升级改造项目经费 | E45: 30 | F45: -30 | G45: 0
A46: 35 | B46: 经建股 | C46: 区政府办公室 | D46: 政府大院零星修缮经费 | E46: 80 | F46: 80 | G46: 160
A47: 36 | B47: 行财股 | C47: 区政府办公室 | D47: 保密工作经费 | E47: 3 | F47: -1 | G47: 2
A48: 37 | B48: 行财股 | C48: 区政府办公室 | D48: 大型会议专项经费 | E48: 5 | F48: -2 | G48: 3
A49: 38 | B49: 行财股 | C49: 区政府办公室 | D49: 档案馆楼宇外物业管理费 | E49: 15 | F49: -10 | G49: 5
A50: 39 | B50: 行财股 | C50: 区政府办公室 | D50: 档案馆设施设备维保经费 | E50: 10 | F50: -5 | G50: 5
A51: 40 | B51: 行财股 | C51: 区政府办公室 | D51: 档案馆水电费 | E51: 60 | F51: -10 | G51: 50
A52: 41 | B52: 行财股 | C52: 区政府办公室 | D52: 档案数字化建设经费 | E52: 10 | F52: -5 | G52: 5
A53: 42 | B53: 行财股 | C53: 区政府办公室 | D53: 地方志经费 | E53: 23 | F53: -5 | G53: 18
A54: 43 | B54: 行财股 | C54: 区政府办公室 | D54: 濠江区“百千万工程”指挥部办公室工作经费 | E54: 0 | F54: 49 | G54: 49 | H54: 根据单位实际需求调增。
A55: 44 | B55: 行财股 | C55: 区政府办公室 | D55: 2022年区级濠江区“一江两岸”开发建设领导小组办公室工作经费 | E55: 2 | F55: -2 | G55: 0
A56: 45 | B56: 行财股 | C56: 区政府办公室 | D56: 濠江区“一江两岸”开发建设领导小组办公室工作经费 | E56: 49 | F56: -47 | G56: 1
A57: 46 | B57: 行财股 | C57: 区政府办公室 | D57: 2021年区级濠江区信息化终端设备更新项目 | E57: 20 | F57: -20 | G57: 0
A58: 47 | B58: 行财股 | C58: 区政府办公室 | D58: 2022年区级濠江区信息化终端设备更新项目 | E58: 10 | F58: -10 | G58: 0
A59: 48 | B59: 行财股 | C59: 区政府办公室 | D59: 2022年区级机关事务管理经费 | E59: 100 | F59: -14 | G59: 86
A60: 49 | B60: 行财股 | C60: 区政府办公室 | D60: 全区政务、党务公开工作经费 | E60: 3 | F60: -2 | G60: 1
A61: 50 | B61: 行财股 | C61: 区政府办公室 | D61: 网络维护费 | E61: 6 | F61: -2 | G61: 4
A62: 51 | B62: 行财股 | C62: 区政府办公室 | D62: 宣传工作经费 | E62: 6 | F62: -6 | G62: 0
A63: 52 | B63: 行财股 | C63: 区政府办公室 | D63: 2022年区级政府在线二期 | E63: 20 | F63: -20 | G63: 0
A64: 53 | B64: 行财股 | C64: 区政府办公室 | D64: 政府在线二期 | E64: 79 | F64: -50 | G64: 29
A65: 54 | B65: 行财股 | C65: 区政府办公室 | D65: 区委区政府法律顾问服务费 | E65: 0 | F65: 6 | G65: 6 | H65: 根据单位实际需求调增。
A66: 55 | B66: 行财股 | C66: 区人大常委会办公室 | D66: 2021年市级补助区（县）、镇两级人大换届选举工作经费 | E66: 0 | F66: -0.28 | G66: 0
A67: 56 | B67: 行财股 | C67: 区人大常委会办公室 | D67: 2021年区级街道人大工作经费 | E67: 7 | F67: -7 | G67: 0
A68: 57 | B68: 国资股 | C68: 区政协办公室 | D68: 车辆购置经费 | E68: 18 | F68: -2 | G68: 16
A69: 58 | B69: 行财股 | C69: 区政协办公室 | D69: 区政协委员履职经费 | E69: 20 | F69: -4 | G69: =E69+F69 -> 16
A70: 59 | B70: 行财股 | C70: 区政协办公室 | D70: 委员活动经费 | E70: 48 | F70: -7 | G70: 41
A71: 60 | B71: 行财股 | C71: 区政协办公室 | D71: 文史工作经费 | E71: 5 | F71: 4 | G71: 9 | H71: 根据单位实际需求调增。
A72: 61 | B72: 行财股 | C72: 区政协办公室 | D72: 政协工作室工作经费 | E72: 10 | F72: -5 | G72: 5
A73: 62 | B73: 行财股 | C73: 区政协办公室 | D73: 政协机关及专委会经费 | E73: 29 | F73: 3 | G73: 32 | H73: 根据单位实际需求调增。
A74: 63 | B74: 行财股 | C74: 区委组织部 | D74: 2019年市级科技创新战略专项（市人才发展专项-人才驿站运营经费） | E74: 25 | F74: -15 | G74: 10
A75: 64 | B75: 行财股 | C75: 区委组织部 | D75: 2023年老干部春节慰问活动经费 | E75: 80 | F75: -6 | G75: 74
A76: 65 | B76: 行财股 | C76: 区委组织部 | D76: 干部关爱基金 | E76: 100 | F76: -50 | G76: 50
A77: 66 | B77: 行财股 | C77: 区委组织部 | D77: 全区“两新”组织党建工作区级配套经费 | E77: 7 | F77: -7 | G77: 0
A78: 67 | B78: 行财股 | C78: 区委组织部 | D78: 全区庆祝“汕头人才周”系列活动经费 | E78: 50 | F78: -20 | G78: 30
A79: 68 | B79: 行财股 | C79: 区委组织部 | D79: 人才公寓（中海信）租赁经费 | E79: 50 | F79: -30 | G79: 20
A80: 69 | B80: 行财股 | C80: 区委组织部 | D80: 2019年市级人才发展专项资金（支持濠江区大学生创业中心建设经费） | E80: 15 | F80: -15 | G80: 0
A81: 70 | B81: 行财股 | C81: 区委组织部 | D81: 2022年区级优秀拔尖人才津贴 | E81: 18 | F81: -1 | G81: 18
A82: 71 | B82: 行财股 | C82: 区委组织部 | D82: 优秀拔尖人才津贴 | E82: 18 | F82: -6 | G82: 12
A83: 72 | B83: 预算股 | C83: 区委组织部 | D83: 社区干部大专班培训经费 | E83: 6 | F83: -2 | G83: 4
A84: 73 | B84: 行财股 | C84: 区委编办 | D84: 编办管理工作经费 | E84: 10 | F84: -5 | G84: 5
A85: 74 | B85: 行财股 | C85: 区委统战部 | D85: 春节慰问困难归侨侨眷经费 | E85: 2 | F85: -1 | G85: 2
A86: 75 | B86: 行财股 | C86: 区委宣传部 | D86: 2022年区级“濠江党建”专区建设经费 | E86: 50 | F86: -30 | G86: 20
A87: 76 | B87: 行财股 | C87: 区委宣传部 | D87: “濠江党建”专区建设经费 | E87: 80 | F87: -50 | G87: 30
A88: 77 | B88: 行财股 | C88: 区委宣传部 | D88: 2022年区级“今日濠江”建设运维工作经费 | E88: 5 | F88: -4 | G88: 1
A89: 78 | B89: 行财股 | C89: 区委宣传部 | D89: 2021年省级“学习强国”学习平台建设推广使用工作 | E89: 1.4 | F89: 1.4 | G89: 3 | H89: 单位申请调增往年被收回预算额度。
A90: 79 | B90: 行财股 | C90: 区委宣传部 | D90: 2022年区级区创建办网报资料收集整理购买服务经费 | E90: 27 | F90: -9 | G90: 18
A91: 80 | B91: 行财股 | C91: 区委宣传部 | D91: 全区人才工作宣传报道及氛围营造工作经费 | E91: 80 | F91: -60 | G91: 20
A92: 81 | B92: 行财股 | C92: 区委宣传部 | D92: 文明创建工作经费 | E92: 21 | F92: -11 | G92: 10
A93: 82 | B93: 行财股 | C93: 区委宣传部 | D93: 2021年中央新时代文明实践中心建设点项目经费 | E93: 3 | F93: 3 | G93: 6 | H93: 单位申请调增往年被收回预算额度。
A94: 83 | B94: 行财股 | C94: 区委宣传部 | D94: 宣传工作费用 | E94: 130 | F94: -50 | G94: 80
A95: 84 | B95: 行财股 | C95: 区委宣传部 | D95: 理论学习中心组经费 | E95: 9 | F95: -4 | G95: 5
A96: 85 | B96: 行财股 | C96: 区委政法委 | D96: 社会治理网格化工作专职网格员包干经费 | E96: 175 | F96: -10 | G96: 165
A97: 86 | B97: 行财股 | C97: 区委政法委 | D97: 维稳平安创建工作经费 | E97: 25 | F97: -10 | G97: 15
A98: 87 | B98: 行财股 | C98: 区委政法委 | D98: 雪亮工程维保费用 | E98: 100 | F98: -80 | G98: 20
A99: 88 | B99: 行财股 | C99: 区委政法委 | D99: 粤平安网格手机移动终端费用 | E99: 50 | F99: -30 | G99: 20
A100: 89 | B100: 行财股 | C100: 区委政法委 | D100: 2022年区级综治信息化建设工作经费 | E100: 10 | F100: -10 | G100: 0
A101: 90 | B101: 行财股 | C101: 区委政法委 | D101: 综治信息化建设工作经费 | E101: 42 | F101: -20 | G101: 22
A102: 91 | B102: 行财股 | C102: 区委政法委 | D102: 综治中心中海信电费 | E102: 22 | F102: 5 | G102: 27 | H102: 根据单位实际需求调增。
A103: 92 | B103: 国资股 | C103: 区财政局 | D103: 公务用车购置经费 | E103: 25 | F103: -25 | G103: 0
A104: 93 | B104: 行财股 | C104: 区财政局 | D104: 财政信息系统建设和维护经费 | E104: 99 | F104: 24 | G104: 123 | H104: 根据单位实际需求调增。
A105: 94 | B105: 行财股 | C105: 区财政局 | D105: 会计、监督、绩评等工作经费 | E105: 60 | F105: -7 | G105: 53
A106: 95 | B106: 行财股 | C106: 区财政局 | D106: 2022年区级会计档案资料整理等工作经费 | E106: 10 | F106: 10 | G106: 20 | H106: 根据单位实际需求调增。
A107: 96 | B107: 行财股 | C107: 区财政局 | D107: 惠企利民服务平台建设维护经费 | E107: 30 | F107: -16 | G107: 14
A108: 97 | B108: 行财股 | C108: 区财政局 | D108: 设备购置及维护经费 | E108: 18 | F108: 3 | G108: 21 | H108: 根据单位实际需求调增。
A109: 98 | B109: 行财股 | C109: 区财政局 | D109: 协税经费补助 | E109: 60 | F109: 12 | G109: 72 | H109: 根据单位实际需求调增。
A110: 99 | B110: 行财股 | C110: 区财政局 | D110: 预算、国库、债务管理工作经费 | E110: 40 | F110: 8 | G110: 48 | H110: 根据单位实际需求调增。
A111: 100 | B111: 预算股 | C111: 区财政局 | D111: 人行联网系统国库端建设费用 | E111: 0 | F111: 32 | G111: 32
A112: 101 | B112: 工贸股 | C112: 区发展改革局 | D112: 救灾物资管理经费 | E112: 9 | F112: 1 | G112: 10 | H112: 汕濠办文〔2020〕Z3-1233号。按批复文件，救灾物资管理包干经费为每年10万元，今年预算只下达9万元，需调增1万元。
A113: 102 | B113: 工贸股 | C113: 区发展改革局 | D113: 区经济动员办公室工作经费 | E113: 3 | F113: -2 | G113: 1
A114: 103 | B114: 工贸股 | C114: 区发展改革局 | D114: 可行性研究报告专家评审费 | E114: 20 | F114: -15 | G114: 5
A115: 104 | B115: 工贸股 | C115: 区发展改革局 | D115: 区级节能专项资金 | E115: 28 | F115: -8 | G115: 20
A116: 105 | B116: 工贸股 | C116: 区发展改革局 | D116: 春节慰问困难职工补助经费 | E116: 10 | F116: -0.16 | G116: 10
A117: 106 | B117: 经建股 | C117: 区发展改革局 | D117: 概算审查经费 | E117: 100 | F117: -80 | G117: 20
A118: 107 | B118: 行财股 | C118: 区法院 | D118: 书记员经费 | E118: 75 | F118: -40 | G118: 35
A119: 108 | B119: 行财股 | C119: 区法院 | D119: 2022年区级诉前调解中心工作经费 | E119: 20 | F119: -20 | G119: 0
A120: 109 | B120: 经建股 | C120: 区教育局 | D120: 2020年中小学校舍维修保障长效机制市级补助资金（民生学校教学楼屋面补漏及墙体维修项目，葛洲学校教学楼卫生间维修改造项目） | E120: 12 | F120: -7 | G120: 5
A121: 110 | B121: 经建股 | C121: 区教育局 | D121: 2020年教育发展专项资金（支持民办教育发展） | E121: 3 | F121: -3 | G121: 0
A122: 111 | B122: 经建股 | C122: 区教育局 | D122: 礐石中学场地修缮及消防安全设施修缮工程 | E122: 28 | F122: -28 | G122: 0
A123: 112 | B123: 经建股 | C123: 区教育局 | D123: 中小学校舍小型建设项目 | E123: 30 | F123: -30 | G123: 0
A124: 113 | B124: 行财股 | C124: 区教育局 | D124: 2021年市级教师学历提升专项补助资金-濠江 | E124: 6 | F124: -6 | G124: 0
A125: 114 | B125: 行财股 | C125: 区教育局 | D125: 2023年度10个名师工作室工作经费 | E125: 10 | F125: -5 | G125: 5
A126: 115 | B126: 行财股 | C126: 区教育局 | D126: 2023年度招聘教育系统高层次人才工作经费 | E126: 10 | F126: -5 | G126: 5
A127: 116 | B127: 行财股 | C127: 区教育局 | D127: 创客实验室及创客共同体人工智能课程设备项目（教育装备建设项目） | E127: 138 | F127: -90 | G127: 48
A128: 117 | B128: 行财股 | C128: 区教育局 | D128: 德育工作经费 | E128: 8 | F128: -5 | G128: 3
A129: 118 | B129: 行财股 | C129: 区教育局 | D129: 督导工作专项经费 | E129: 8 | F129: 7 | G129: 15 | H129: 广东省人民政府教育督导室《关于深化新时代教育督导体制机制改革重点任务完成情况的提醒函》，濠江区教育督导工作经费低于全市平均水平(14.29万元)，根据单位实际需求调增。
A130: 119 | B130: 行财股 | C130: 区教育局 | D130: 2022年区级濠江花园南区幼儿园、广澳街道中心幼儿园学前教育购买服务经费 | E130: 50 | F130: -15 | G130: 35
A131: 120 | B131: 行财股 | C131: 区教育局 | D131: 濠江花园南区幼儿园、广澳街道中心幼儿园学前教育购买服务经费 | E131: 243 | F131: -178 | G131: 65
A132: 121 | B132: 行财股 | C132: 区教育局 | D132: 濠江区中小学校智能灯光改造项目（教育装备建设项目） | E132: 138 | F132: -89 | G132: 49
A133: 122 | B133: 行财股 | C133: 区教育局 | D133: 华南师范大学品牌费、管理费 | E133: 100 | F133: -100 | G133: =E133+F133 -> 0
A134: 123 | B134: 行财股 | C134: 区教育局 | D134: 教师节活动经费 | E134: 266 | F134: -160 | G134: 106
A135: 124 | B135: 行财股 | C135: 区教育局 | D135: 2021年区级教师培训经费 | E135: 20 | F135: -20 | G135: 0
A136: 125 | B136: 行财股 | C136: 区教育局 | D136: 教师培训经费 | E136: 655 | F136: 150 | G136: 805 | H136: 根据创现指标规定，财政预算教师年培训经费需占教师年度工资总额的比例达2%以上（2023年度工资总额约40250万元）。
A137: 126 | B137: 行财股 | C137: 区教育局 | D137: 2022年区级教育办公设备购置项目-平板电脑（教育装备建设项目） | E137: 12 | F137: -12 | G137: 0
A138: 127 | B138: 行财股 | C138: 区教育局 | D138: 2022年区级教育经费审计经费 | E138: 4 | F138: -4 | G138: 0
A139: 128 | B139: 行财股 | C139: 区教育局 | D139: 教育综合改革工作经费--社区教育专项培训 | E139: 20 | F139: -15 | G139: 5
A140: 129 | B140: 行财股 | C140: 区教育局 | D140: 考点考务经费 | E140: 6 | F140: -3 | G140: 3
A141: 130 | B141: 行财股 | C141: 区教育局 | D141: 考试招生工作经费 | E141: 6 | F141: -2 | G141: 5
A142: 131 | B142: 行财股 | C142: 区教育局 | D142: 2022年区级美育工作经费 | E142: 2 | F142: -2 | G142: 0
A143: 132 | B143: 行财股 | C143: 区教育局 | D143: 民办代课教师补助 | E143: 2 | F143: -2 | G143: 0
A144: 133 | B144: 行财股 | C144: 区教育局 | D144: 2022年区级区公办中小学、幼儿园保安购买服务经费 | E144: 50 | F144: -5 | G144: 45
A145: 134 | B145: 行财股 | C145: 区教育局 | D145: 区公办中小学、幼儿园保安购买服务经费 | E145: 420 | F145: -312 | G145: 108
A146: 135 | B146: 行财股 | C146: 区教育局 | D146: 2021年省级提前下达2021年学前教育生均经费省补助资金 | E146: 3 | F146: -3 | G146: 0
A147: 136 | B147: 行财股 | C147: 区教育局 | D147: 统计工作经费 | E147: 5 | F147: -3 | G147: 2
A148: 137 | B148: 行财股 | C148: 区教育局 | D148: 校园网络、监控及广播系统项目（教育装备建设项目） | E148: 138 | F148: -89 | G148: 49
A149: 138 | B149: 行财股 | C149: 区教育局 | D149: 学科教学功能室及创新实验室项目（教育装备建设项目） | E149: 48 | F149: -40 | G149: 8
A150: 139 | B150: 行财股 | C150: 区教育局 | D150: 义务教育优质均衡发展区工作经费 | E150: 45 | F150: -10 | G150: 35
A151: 140 | B151: 行财股 | C151: 区教育局 | D151: 英语听说、录播及计算机室项目（教育装备建设项目） | E151: 47 | F151: -40 | G151: 7
A152: 141 | B152: 行财股 | C152: 区教育局 | D152: 2021年省级原民办代课教师生活补助经费（濠江区） | E152: 1 | F152: -1 | G152: 0
A153: 142 | B153: 行财股 | C153: 区教育局 | D153: 2021年市级原民办代课教师生活困难补助资金-濠江区 | E153: 1 | F153: -1 | G153: 0
A154: 143 | B154: 行财股 | C154: 区教育局 | D154: 云桌面计算机室及班班通互动教学系统项目（教育装备建设项目） | E154: 138 | F154: -89 | G154: 49
A155: 144 | B155: 行财股 | C155: 区教育局 | D155: 政府履行教育职责考核工作经费 | E155: 36 | F155: -26 | G155: 10
A156: 145 | B156: 行财股 | C156: 区教育局 | D156: 2022年区级智能灯光改造项目（教育装备建设项目） | E156: 50 | F156: -45 | G156: 5
A157: 146 | B157: 行财股 | C157: 区教育局 | D157: 智能灯光改造项目（教育装备建设项目） | E157: 15 | F157: -10 | G157: 5
A158: 147 | B158: 行财股 | C158: 区教育局 | D158: 智能图书设备、智慧教室及应用系统项目（教育装备建设项目） | E158: 138 | F158: -89 | G158: 49
A159: 148 | B159: 行财股 | C159: 区教育局 | D159: 2021年市级中小学校内课后服务工作市级补助资金（濠江区） | E159: 1 | F159: -1 | G159: 0
A160: 149 | B160: 行财股 | C160: 区教师发展中心 | D160: 2022年区级教育办公设备购置项目-复印机（教育装备建设项目） | E160: 35 | F160: -30 | G160: 5
A161: 150 | B161: 行财股 | C161: 区教师发展中心 | D161: 教学科研专项经费（含教科所） | E161: 18 | F161: -15 | G161: 3
A162: 151 | B162: 行财股 | C162: 区教师发展中心 | D162: 义务教育阶段质量检测 | E162: 6 | F162: -3 | G162: 3
A163: 152 | B163: 行财股 | C163: 区教育局及各学校 | D163: 教育综合改革工作经费--体育艺术特色教育经费 | E163: 27 | F163: -25 | G163: 2
A164: 153 | B164: 行财股 | C164: 区教育局及各学校 | D164: 考点考务经费 | E164: 24 | F164: -20 | G164: 4
A165: 154 | B165: 综合股 | C165: 各学校 | D165: 学前教育经费 | E165: 441 | F165: 14 | G165: 455 | H165: 调增中心幼儿园24万，调减南区幼儿园10万元。
A166: 155 | B166: 行财股 | C166: 达濠华侨中学 | D166: 2021年省级新强师工程-教师素质能力提升-中小学教师校本研修示范校和示范培育学校建设补助项目（濠江区） | E166: 3 | F166: -3 | G166: 0
A167: 156 | B167: 行财股 | C167: 达濠华侨中学 | D167: 2022年区级智慧消防信息技术服务（教育装备建设项目） | E167: 12 | F167: -12 | G167: 0
A168: 157 | B168: 经建股 | C168: 达濠中学 | D168: 汕头市达濠中学改建运动场及配套设施项目 | E168: 35 | F168: -35 | G168: 0
A169: 158 | B169: 行财股 | C169: 河浦中学 | D169: 2022年区级智慧消防信息技术服务（教育装备建设项目） | E169: 5 | F169: -5 | G169: 0
A170: 159 | B170: 经建股 | C170: 埭头学校 | D170: 埭头学校山体挡土墙及场区配套建设 | E170: 28 | F170: -28 | G170: 0
A171: 160 | B171: 经建股 | C171: 埭头学校 | D171: 埭头学校校舍综合改造工程 | E171: 24 | F171: -24 | G171: 0
A172: 161 | B172: 经建股 | C172: 西墩小学 | D172: 西墩小学教学楼墙体和卫生间及配套修缮 | E172: 16 | F172: -16 | G172: 0
A173: 162 | B173: 经建股 | C173: 溪头禧伦小学 | D173: 溪头禧伦小学校区场地及围墙维修改造项目 | E173: 2 | F173: -2 | G173: 0
A174: 163 | B174: 经建股 | C174: 玉石小学 | D174: 玉石小学教学楼墙体和卫生间及配套修缮项目升级改造工程 | E174: 1 | F174: -1 | G174: 0
A175: 164 | B175: 经建股 | C175: 岗背小学 | D175: 汕头市濠江区岗背小学运动场和场地配套升级改造项目 | E175: 20 | F175: -20 | G175: 0
A176: 165 | B176: 经建股 | C176: 葛洲学校 | D176: 葛洲学校教学楼卫生间维修改造项目 | E176: 2 | F176: -2 | G176: 0
A177: 166 | B177: 经建股 | C177: 葛洲学校 | D177: 葛洲学校运动场改造及配套项目 | E177: 3 | F177: -3 | G177: 0
A178: 167 | B178: 行财股 | C178: 韩师附属 | D178: 2022年区级韩山师范学院附属濠江实验学校开办经费 | E178: 20 | F178: -5 | G178: 15
A179: 168 | B179: 行财股 | C179: 濠江华附 | D179: 2022年区级购置平板电脑设备（教育装备建设项目） | E179: 0 | F179: 10 | G179: 10 | H179: 调增购置平板电脑设备（教育装备建设项目）10万元。
A180: 169 | B180: 行财股 | C180: 濠江华附 | D180: 2021年区级华南师范大学附属濠江实验学校购置办公电脑设备经费 | E180: 10 | F180: -10 | G180: 0 | H180: 调减额度用于购置平板电脑设备（教育装备建设项目）10万元。
A181: 170 | B181: 行财股 | C181: 濠江华附 | D181: 华附濠江实验学校开办补助经费（设备购置） | E181: 0 | F181: 5 | G181: 5 | H181: 项目已于2021年完成验收交付使用。
A182: 171 | B182: 行财股 | C182: 濠江华附 | D182: 华南师范大学附属濠江实验学校初中部理化生实验操作考试考点和中考考点设备采购配套项目 | E182: 0 | F182: 5 | G182: 5 | H182: 项目已于2021年完成验收交付使用。
A183: 172 | B183: 行财股 | C183: 濠江华附 | D183: 2022年区级教育办公设备购置项目-台式计算机（教育装备建设项目） | E183: 29 | F183: -29 | G183: 0
A184: 173 | B184: 行财股 | C184: 濠江华附 | D184: 2022年区级物理、化学、生物实验器材（教育设备建设项目） | E184: 25 | F184: -10 | G184: 15
A185: 174 | B185: 行财股 | C185: 濠江华附 | D185: 2022年区级智慧消防信息技术服务（教育装备建设项目） | E185: 12 | F185: -7.4 | G185: 4
A186: 175 | B186: 经建股 | C186: 河北小学 | D186: 河北小学教学用房及配套设施综合改建项目 | E186: 200 | F186: -200 | G186: 0
A187: 176 | B187: 经建股 | C187: 河南小学 | D187: 河南小学校舍维修工程 | E187: 16 | F187: -16 | G187: 0
A188: 177 | B188: 经建股 | C188: 玉新中学 | D188: 玉新中学运动场和校区排水管网及绿化配套等改造项目 | E188: 24 | F188: -24 | G188: 0
A189: 178 | B189: 经建股 | C189: 职教中心 | D189: 新校区运动场供水供电设施修缮经费 | E189: 20 | F189: -15 | G189: 5
A190: 179 | B190: 行财股 | C190: 职教中心 | D190: 2021年市级实施职业教育提升发展三年行动计划（2019-2021年）市级专项资金—濠江 | E190: 50 | F190: -40 | G190: 10
A191: 180 | B191: 经建股 | C191: 职教中心 | D191: 2019年运动场建设改造及配套设施修缮项目 | E191: 20 | F191: -15 | G191: 5
A192: 181 | B192: 经建股 | C192: 职教中心 | D192: 广澳中学综合实训楼和学生宿舍楼及配套设施 | E192: 250 | F192: -250 | G192: 0
A193: 182 | B193: 行财股 | C193: 区中心幼儿园 | D193: 2021年省级提前下达2021年学前教育生均经费省补助资金 | E193: 3 | F193: -3 | G193: 0
A194: 183 | B194: 经建股 | C194: 珠浦第二小学 | D194: 改建围墙大门和运动场及配套项目 | E194: 29 | F194: -24 | G194: 5
A195: 184 | B195: 经建股 | C195: 珠浦第二小学 | D195: 珠浦第二小学改建教学综合楼项目 | E195: 2 | F195: -2 | G195: 0
A196: 185 | B196: 经建股 | C196: 河浦中学 | D196: 汕头市河浦中学教学楼前景观改造工程项目 | E196: 8 | F196: -8 | G196: 0
A197: 186 | B197: 行财股 | C197: 河浦中学 | D197: 2021年市级普通高中高质量发展项目资金（濠江区） | E197: 1 | F197: -1 | G197: =E197+F197 -> 0
A198: 187 | B198: 经建股 | C198: 红光小学 | D198: 红光小学教学楼卫生间改造及配套 | E198: 3 | F198: -3 | G198: 0
A199: 188 | B199: 经建股 | C199: 华桥小学 | D199: 华桥小学扩建教学综合楼及运动场地改造项目 | E199: 100 | F199: -100 | G199: 0
A200: 189 | B200: 行财股 | C200: 金中南滨学校 | D200: 2022年区级汕头金中南滨学校博美校区开办经费 | E200: 80 | F200: -50 | G200: 30
... 248 more rows

Sheet （附表4）财力
A1: 附表4
A2: 汕头市濠江区2023年公共财政上级财力性补助收支预算调整表
AH3: 单位：万元
A4: 项目名称 | B4: 上级财力性补助收入 | H4: 使用范围 | AI4: 备注
B5: 年初预算数 | E5: 调整后计划数 | H5: 民生支出 | AF5: 运转支出 | AG5: 协调发展支出 | AH5: 合计
B6: 省 | C6: 市 | D6: 合计 | E6: 省 | F6: 市 | G6: 合计 | H6: 城市和农村居民最低生活保障金、被征地农民养老保障金 | I6: 农村、城镇特困人员供养 | J6: 临时救助 | K6: 老渔工生活困难补助 | L6: 城乡居民社会养老保险和基本医疗保险 | M6: 困难残疾人生活补贴和重度残疾人护理补贴、残疾学生及困难残疾人子女助学金、残疾人居家无障碍改造配套经费等 | N6: 食品安全监督抽检经费、农贸市场食用农产品快速检测 | O6: 城乡退伍士兵安置补助金、部分退役士兵社会保险接续等 | P6: 城乡义务兵优待金（含高原兵）及一次性大学生入伍奖励 | Q6: 殡葬惠民 | R6: 义务教育生均公用经费等 | S6: 助学金免学费补助 | T6: 教师奖励性绩效工资 | U6: 就业创业政策性补贴 | V6: 基本公共卫生 | W6: 二类疫苗费用 | X6: 农村已离岗接生员和赤脚医生生活困难补助 | Y6: 省城镇独生子女父母计生奖励等 | Z6: 高龄老人政府津贴、“银龄安康”行动60周岁以上老人保险费、百岁老人保健金 | AA6: 严重精神障碍患者长效针剂资金、监护补助 | AB6: 粮食风险基金 | AC6: “平安濠江”“平安汕头”智能视频监控系统租赁资金等 | AD6: 森林防火专项经费、消防经费（含装备款）等 | AE6: 小计
A7: 增值税和消费税税收返还收入 | B7: 525 | D7: =+B7+C7 -> 525 | E7: 525 | G7: =+E7+F7 -> 525 | Q7: 122 | AE7: =SUM(H7:AD7) -> 122 | AF7: =+AH7-AE7 -> 403 | AH7: 525 | AK7: =+G7-AH7 -> 0
A8: 增值税五五分成税收返还收入 | B8: 2564 | D8: 2564 | E8: 2564 | G8: 2564 | W8: 860 | AE8: 860 | AF8: 1704 | AH8: 2564 | AK8: 0
A9: 所得税基数返还收入 | B9: 1222 | D9: 1222 | E9: 1222 | G9: 1222 | AE9: 0 | AF9: 1222 | AH9: 1222 | AK9: 0
A10: 成品油税费改革税收返还支出 | B10: 44 | D10: 44 | E10: 44 | G10: 44 | AE10: 0 | AF10: 44 | AH10: 44 | AK10: 0
A11: 其他税收返还收入 | B11: 1156 | D11: 1156 | E11: 1156 | G11: 1156 | O11: 20 | S11: 26 | AE11: 45 | AF11: 1111 | AH11: 1156 | AK11: 0
A12: 其他一般性转移支付收入（下划机构经费） | B12: =48+697 -> 745 | C12: 727 | D12: 1472 | E12: 1059 | F12: 727 | G12: 1786 | H12: 1564 | J12: 15 | O12: 12 | AE12: 1591 | AF12: 194 | AH12: 1786 | AK12: 0
A13: 其他一般性转移支付收入（划转原公安边防部队经费基数） | B13: 251 | D13: 251 | E13: 251 | G13: 251 | AE13: 0 | AF13: 251 | AH13: 251 | AK13: 0
A14: 其他一般性转移支付收入（监察体制改革划转基数） | B14: 29 | D14: 29 | E14: 29 | G14: 29 | AE14: 0 | AF14: 29 | AH14: 29 | AK14: 0
A15: 其他一般性转移支付收入（监察体制改革转隶人员经费） | B15: 66 | D15: 66 | E15: 66 | G15: 66 | X15: 30 | AE15: 30 | AF15: 36 | AH15: 66 | AK15: 0
A16: 其他一般性转移支付收入（缓解县乡财政困难综合性财力补助） | B16: 50 | D16: 50 | E16: 50 | G16: 50 | AE16: 0 | AG16: =+AH16-AE16 -> 50 | AH16: 50 | AK16: 0
A17: 其他一般性转移支付收入（重点生态功能区转移支付收入） | B17: 876 | D17: 876 | E17: 901 | G17: 901 | P17: 249 | V17: 197 | Y17: 41 | AE17: 487 | AG17: =+AH17-AE17 -> 414 | AH17: 901 | AK17: 0
A18: 体制补助收入 | C18: 10788 | D18: 10788 | F18: 10788 | G18: 10788 | T18: 2036 | U18: 25 | Y18: 9 | Z18: 271 | AE18: 2341 | AF18: =+AH18-AE18 -> 8447 | AH18: 10788 | AK18: 0
A19: 调整工资转移支付补助收入 | B19: 1996 | D19: 1996 | E19: 1996 | G19: 1996 | L19: 1814 | AE19: 1814 | AF19: 182 | AH19: 1996 | AK19: 0
A20: 农村税费改革补助收入 | B20: 500 | C20: 760 | D20: 1260 | E20: 500 | F20: 760 | G20: 1260 | O20: 96 | S20: 52 | AC20: 99 | AE20: 247 | AF20: 1013 | AH20: 1260 | AK20: 0
A21: 县级基本财力保障机制奖补资金收入 | B21: 4534 | D21: 4534 | E21: 4534 | G21: 4534 | M21: 547 | AA21: 227 | AE21: 774 | AF21: 3760 | AH21: 4534 | AK21: 0
A22: 边境地区转移支付资金 | B22: 163 | D22: 163 | E22: 135 | F22: 55 | G22: 190 | AE22: 0 | AF22: =+AH22-AG22 -> 135 | AG22: 55 | AH22: 190 | AK22: 0
A23: 濠江区“天际电器项目”专项补助 | B23: 150 | D23: 150 | E23: 0 | G23: 0 | AE23: 0 | AK23: 0
A24: 中央支持基层落实减税降费和重点民生等转移支付资金 | B24: 5860 | D24: 5860 | E24: 8399 | G24: 8399 | H24: 110 | K24: 135 | AD24: 329 | AE24: 574 | AF24: =+AH24-AE24 -> 7825 | AH24: 8399 | AK24: 0
A25: 临时救助资金 | E25: 9000 | G25: 9000 | AF25: 9000 | AH25: 9000
A26: 中央均衡性补助收入 | B26: 12018 | D26: =+B26+C26 -> 12018 | E26: 12114 | G26: 12114 | N26: 120 | R26: 6638 | AB26: 434 | AD26: 536 | AE26: =SUM(H26:AD26) -> 7728 | AF26: =+AH26-AE26 -> 4387 | AH26: 12114 | AK26: =+G26-AH26 -> 0
A27: 合计 | B27: =SUM(B7:B26) -> 32749 | C27: 12275 | D27: =B27+C27 -> 45024 | E27: 44545 | F27: 12330 | G27: =E27+F27 -> 56875 | H27: =SUM(H7:H26) -> 1674 | I27: 0 | J27: 15 | K27: 135 | L27: 1814 | M27: 547 | N27: 120 | O27: 128 | P27: 249 | Q27: 122 | R27: 6638 | S27: 78 | T27: 2036 | U27: 25 | V27: 197 | W27: 860 | X27: 30 | Y27: 50 | Z27: 271 | AA27: 227 | AB27: 434 | AC27: 99 | AD27: 865 | AE27: =SUM(H27:AD27) -> 16614 | AF27: =SUM(AF7:AF26) -> 39742 | AG27: 519 | AH27: 56875 | AI27: 0 | AK27: =+G27-AH27 -> 0
A28: 说明：根据《广东省人民政府办公厅关于印发广东省财政一般性转移支付资金管理办法的通知》（粤府办〔2014〕31号）要求编制。

Sheet （附表5）政府性基金预算收入科目
A1: 附表5
A2: 汕头市濠江区2023年政府性基金预算收入计划调整表
J3: 单位：万元
A4: 科目名称 | B4: 年初预算数 | D4: 变动因素 | F4: 调整后计划数 | H4: 比增% | J4: 备注
B5: 总库 | C5: 本级 | D5: 总库 | E5: 本级 | F5: 总库 | G5: 本级 | H5: 总库 | I5: 本级
A6: 一、非税收入 | B6: =SUM(B7:B15) -> 239,952 | C6: 239,952 | D6: -118,447 | E6: -134,784 | F6: 121,505 | G6: 105,168 | H6: =IF(B6=0,IF(F6=0,0,100),100*(F6/B6-1)) -> -49 | I6: =IF(C6=0,IF(G6=0,0,100),100*(G6/C6-1)) -> -56
A7: 1.国有土地收益基金收入 | B7: =196292.12*0.05 -> 9,815 | C7: =196292.12*0.05 -> 9,815 | D7: =F7-B7 -> -6,835 | E7: =G7-C7 -> -6,835 | F7: 2,980 | G7: 2,980 | H7: -70 | I7: -70
A8: 2.农业土地开发资金收入 | B8: =870.5866*666.67*13*0.7*0.0001+179.811141 -> 708 | C8: =870.5866*666.67*13*0.7*0.0001+179.811141 -> 708 | D8: =F8-B8 -> 34 | E8: =G8-C8 -> -43 | F8: =950*0.7+77.06 -> 742 | G8: =950*0.7 -> 665 | H8: 5 | I8: -6
A9: 3.土地出让价款收入 | B9: =196292.12-196292.12*0.05-870.5866*666.67*13*0.0001-256.87-600+1200 -> 186,066 | C9: =196292.12-196292.12*0.05-870.5866*666.67*13*0.0001-256.87-600+1200 -> 186,066 | D9: -96,894 | E9: -113,154 | F9: =77091.75-F7-(F8/0.7)-1750+1500+16370.5 -> 89,172 | G9: =77091.75-G7-(G8/0.7)-1750+1500 -> 72,912 | H9: -52 | I9: -61
A10: 4.其他土地出让收入 | B10: =2000+6000+8000 -> 16,000 | C10: =2000+6000+8000 -> 16,000 | D10: -15,700 | E10: -15,700 | F10: 300 | G10: 300 | H10: -98 | I10: -98
A11: 5.补缴的土地价款 | B11: 5,000 | C11: 5,000 | D11: -4,200 | E11: -4,200 | F11: 800 | G11: 800 | H11: -84 | I11: -84
A12: 6.划拨土地收入 | B12: 20,000 | C12: 20,000 | D12: 4,083 | E12: 4,083 | F12: =17083+7000 -> 24,083 | G12: =17083+7000 -> 24,083 | H12: 20 | I12: 20
A13: 7.缴纳新增建设用地土地有偿使用费 | B13: =-10000+303.4155648 -> -9,697 | C13: =-10000+303.4155648 -> -9,697 | D13: 732 | E13: 732 | F13: -8,965 | G13: -8,965 | H13: -8 | I13: -8
A14: 8.福利彩票公益金收入 | B14: 60 | C14: 60 | D14: 33 | E14: 33 | F14: 93 | G14: 93 | H14: =IF(B14=0,IF(F14=0,0,100),100*(F14/B14-1)) -> 55 | I14: =IF(C14=0,IF(G14=0,0,100),100*(G14/C14-1)) -> 55
A15: 9.城市基础设施配套费收入 | B15: 12,000 | C15: 12,000 | D15: 300 | E15: 300 | F15: 12,300 | G15: 12,300 | H15: 2 | I15: 2
A16: 征收收入小计 | B16: =SUM(B6) -> 239,952 | C16: 239,952 | D16: -118,447 | E16: -134,784 | F16: 121,505 | G16: 105,168 | H16: -49 | I16: -56
A17: 二、转移性收入 | B17: =SUM(B18:B20) -> 0 | C17: =SUM(C18:C21) -> 31,024 | E17: =SUM(E18:E21) -> 112,251 | G17: =SUM(G18:G21) -> 143,275 | H17: 0 | I17: 362
A18: 1.上级专项性补助收入 | C18: 509 | E18: =G18-C18 -> 391 | G18: 900 | H18: 0 | I18: 77
A19: 2.上年结余收入 | C19: 5,215 | E19: =G19-C19 -> 0 | G19: 5,215 | H19: 0 | I19: 0
A20: 3.新增专项债券收入 | B20: 0 | C20: =24700 -> 24,700 | E20: =G20-C20 -> 85,300 | G20: 110,000 | H20: 0 | I20: 345
A21: 4.再融资专项债券转贷收入 | C21: 600 | E21: =G21-C21 -> 26,560 | G21: =30960-3800 -> 27,160 | I21: 4,427
A22: 收入合计 | B22: =+B17+B16 -> 239,952 | C22: 270,976 | D22: -118,447 | E22: -22,533 | F22: 121,505 | G22: 248,443 | H22: =IF(B22=0,IF(F22=0,0,100),100*(F22/B22-1)) -> -49 | I22: -8

Sheet （附表6）政府性基金预算收入项目
A1: 附表6
A2: 汕头市濠江区2023年本级政府性基金预算收入项目调整表
M3: 单位：万元
A4: 序号 | B4: 负责单位 | C4: 用地性质/项目 | D4: 用地位置 | E4: 面积（亩） | F4: 单位上报 | G4: 年初预算数 | H4: 截至9月实际收入 | I4: 变动因素 | J4: 调整后计划数 | K4: 尚欠收入 | L4: 出让方式 | M4: 备注 | N4: 1月 | O4: 2月 | P4: 3月 | Q4: 4月 | R4: 5月 | S4: 6月 | T4: 7月 | U4: 8月 | V4: 9月 | W4: 10月 | X4: 11月 | Y4: 12月
A5: 1 | B5: 区新城办 区土储中心 | C5: 居住用地 | D5: 南滨片区04-00205-01(统征地) | E5: 39 | F5: 19,930 | G5: 19,930 | H5: 0 | I5: -12,470 | J5: =G5+I5 -> 7,461 | K5: =G5-H5 -> 19930 | L5: 挂牌 | M5: 原名南滨片区HJ-003-00205(统征地)，按成交价14921万元50%编列7460.5万元。
A6: 2 | B6: 区新城办 区土储中心 | C6: 居住用地 | D6: 南滨片区HJ-003-00202（统征地） | E6: 182 | F6: 92,527 | G6: 66,871 | H6: 0 | I6: -66,871 | J6: 0 | K6: 66871 | L6: 挂牌 | M6: 限高从24米上升到54米。
A7: 中信项目小计 | E7: =SUM(E5:E6) -> 221 | F7: 112,457 | G7: 86,801 | H7: 0 | I7: -79,341 | J7: 7,461 | K7: 86801
A8: 3 | B8: 区招商局 区土储中心 | C8: 居住用地 | D8: 濠江区茂洲A15\B04地块 | E8: 73 | F8: 21,150 | G8: 21,150 | H8: 0 | I8: =J8-G8 -> -2,150 | J8: =11500+7000-3000+2000+1500 -> 19,000 | K8: 21150 | L8: 挂牌
A9: 4 | B9: 区招商局 区土储中心 | C9: 居住用地 | D9: 渔港B-02地块 | E9: 79 | F9: 12,843 | G9: 12,843 | H9: 12,843 | I9: 0 | J9: =G9+I9 -> 12,843 | K9: 0 | L9: 挂牌 | N9: 3500 | R9: 9342.5
A10: 5 | B10: 区招商局 区土储中心 | C10: 居住用地 | D10: 马滘大桥东西侧(马滘综合体) | E10: 131 | F10: 47,002 | G10: 35,000 | H10: 0 | I10: -35,000 | J10: 0 | K10: 35000 | L10: 挂牌
A11: 6 | B11: 区招商局 区土储中心 | C11: 商业用地 | D11: 汕头南新城市中心STN-02-03地块 | E11: 8 | F11: 1,519 | G11: 1,519 | H11: 0 | I11: -1,519 | J11: 0 | K11: 1519 | L11: 挂牌
A12: 7 | B12: 区招商局 区土储中心 | C12: 商业用地 | D12: 汕头南新城市中心HJ-023-02-00105地块 | E12: 8 | F12: 1,700 | G12: 1,700 | H12: 0 | I12: 17 | J12: 1,717 | K12: 1700 | L12: 挂牌 | M12: 2023年11月1日已出让。
A13: 8 | B13: 区工业和信息化局 区土储中心 | C13: 工业用地 | D13: 汕头南新城市中心STN-03-28地块 | E13: 45 | F13: 2,150 | G13: 2,271 | H13: 2,271 | I13: 0 | J13: 2,271 | K13: 0 | L13: 挂牌 | M13: 锦伦项目，首期缴50%。 | R13: 433 | S13: 1838
A14: 9 | B14: 区工业和信息化局 区土储中心 | C14: 工业用地 | D14: 汕头南新城市中心STN-03-31地块和STN-03-33地块 | E14: 84 | F14: 10,557 | G14: 4,200 | H14: 2,100 | I14: -2,100 | J14: 2,100 | K14: 2100 | L14: 挂牌 | M14: 原名汕头南新城市中心STN-03-33地块，首期缴50%，1年后缴50%。 | R14: 800 | S14: 1300
A15: 10 | B15: 区工业和信息化局 区土储中心 | C15: 工业用地 | D15: 风电产业园HJ-022-02-00201-1地块 | E15: 205 | G15: 9,648 | H15: 11,205 | I15: 1,557 | J15: 11,205 | K15: -1557 | L15: 挂牌 | M15: 原名青洲盐场海上风电产业园项目，8月10日，北京京能清洁能源电力股份有限公司11205万元竞得成交。
A16: 11 | B16: 区工业和信息化局 区土储中心 | C16: 工业用地 | D16: 风电产业园HJ-022-01-00402-3地块 | E16: 52 | F16: 2,862 | G16: 2,862 | H16: 2,862 | I16: 0 | J16: 2,862 | K16: 0 | L16: 挂牌 | M16: 4月19日成交。 | S16: 2862
A17: 12 | B17: 区工业和信息化局 区土储中心 | C17: 工业用地 | D17: 汕头市濠江区风电产业园01-00402-2地块内 | E17: 282 | F17: 15,371 | G17: 15,371 | H17: 15,371 | I17: 0 | J17: 15,371 | K17: 0 | L17: 挂牌 | M17: 2月1日成交。 | P17: 15370.75
A18: 13 | B18: 区工业和信息化局 区土储中心 | C18: 商务金融用地(商业用地) | D18: 广澳物流园南片HJ-03003-01904-1地块内 | E18: 25 | F18: 3,528 | G18: 3,528 | H18: 2,378 | I18: -1,150 | J18: 2,378 | K18: 1150 | L18: 挂牌 | M18: 6月19日华润新能源公司成交，区分成2377.9426万元。 | U18: 2377.9426
A19: 14 | B19: 区工业和信息化局 区土储中心 | C19: 工业用地 | D19: 中国（濠江）河浦片、台商片（电子电路工业基地）C05-03地块） | E19: 20 | G19: 0 | H19: 1,385 | I19: 1,385 | J19: 1,385 | K19: -1385 | L19: 挂牌 | M19: 8月25日盟信塑胶科技(汕头)有限公司1385万元竞得成交。 | V19: =265+1120 -> 1385
A20: 15 | B20: 区土储中心 | C20: 幼师二期项目地块 | G20: 0 | H20: 0 | I20: 7,000 | J20: 7,000 | K20: 0 | L20: 划拨
A21: 16 | B21: 区自然资源局 | C21: 划拨项目 | F21: 20,000 | G21: 20,000 | H21: 1,083 | I21: =-20000+16000+1083 -> -2,917 | J21: 17,083 | K21: 18917 | L21: 划拨 | M21: 用地项目划拨收入16000万元。 | Q21: 894.92 | R21: 124.9024 | V21: 63.28
A22: 17 | B22: 区自然资源局 | C22: 补缴项目 | F22: 5,000 | G22: 5,000 | H22: 670 | I22: -4,200 | J22: 800 | K22: 4330 | L22: 补缴 | N22: 1.1153 | O22: 294.2216 | P22: 4.4877 | Q22: 0.3994 | R22: 0.6082 | S22: 2.6603 | T22: 1.0633 | U22: 363.5795 | V22: 1.899
A23: 18 | B23: 区自然资源局 | C23: 其他土地出让收入 | F23: 16,000 | G23: =2000+6000+8000 -> 16,000 | H23: 266 | I23: -15,700 | J23: 300 | K23: 15734 | L23: 其他 | M23: 含滞纳金。主要减少海工装备产业砂土出让。 | N23: 20.061 | R23: 242.23 | S23: 3.307144
A24: 19 | B24: 区财政局代编 | C24: 上缴新增建设用地有偿使用费及计提有关资金 | F24: -10,000 | G24: -10,000 | H24: -6,490 | I24: =2000-3000 -> -1,000 | J24: -11,000 | K24: -3510 | M24: 计提教育资金和农田水利建设资金等。 | N24: -2309.804 | O24: =-727.8488-256.873058+179.811141 -> -804.910717 | P24: =-1750-540.7024 -> -2290.7024 | Q24: -896.8456 | R24: -124.9024 | V24: -63.28
A25: 土地基金区内项目小计 | E25: =SUM(E8:E24) -> 1,013 | F25: 149,681 | G25: 141,091 | H25: 45,942 | I25: -55,777 | J25: 85,314 | K25: 95149 | N25: =SUM(N8:N24) -> 1211 | O25: -511 | P25: 13085 | Q25: -2 | R25: 10818 | S25: 6006 | T25: 1 | U25: 2742 | V25: 1387 | W25: 0 | X25: 0 | Y25: 0
A26: 一、土地基金合计 | E26: =E25+E7 -> 1,235 | F26: 262,138 | G26: 227,892 | H26: 45,942 | I26: -135,118 | J26: 92,775 | K26: 181,950 | N26: =N25+N7 -> 1211 | O26: -511 | P26: 13085 | Q26: -2 | R26: 10818 | S26: 6006 | T26: 1 | U26: 2742 | V26: 1387 | W26: 0 | X26: 0 | Y26: 0
A27: 二、城市基础设施配套费收入 | F27: 12,000 | G27: 12,000 | H27: 10,082 | I27: =-700+1300-300 -> 300 | J27: 12,300 | K27: 1918 | N27: 2.9852 | O27: 15.4869 | P27: 259.0052 | Q27: 3073.1982 | R27: =118.278048+0.6848 -> 118.962848 | S27: 4405.6663 | T27: =0.4301+483.11 -> 483.5401 | U27: 1601.9127 | W27: =79.6602+41.9976 -> 121.6578
A28: 三、福彩公益金收入 | F28: 60 | G28: 60 | H28: 0 | I28: 33 | J28: 93 | K28: 60
A29: 2023年度政府性基金收入合计 | F29: =F26+F27+F28 -> 274,198 | G29: 239,952 | H29: 56,025 | I29: -134,785 | J29: 105,168 | K29: 183927 | N29: =N26+N27+N28 -> 1214 | O29: -495 | P29: 13344 | Q29: 3072 | R29: 10937 | S29: 10411.6337440 | T29: 485 | U29: 4343 | V29: 1387 | W29: 122 | X29: 0 | Y29: 0
A30: 其中：本级项目收入（不含中信项目） | F30: =F25+F27+F28 -> 161,741 | G30: 153,151 | H30: 56,025 | I30: -55,444 | J30: 97,707 | K30: 97126 | N30: =N25+N27+N28 -> 1214 | O30: -495 | P30: 13344 | Q30: 3072 | R30: 10937 | S30: 10412 | T30: 485 | U30: 4343 | V30: 1387 | W30: 122 | X30: 0 | Y30: 0

Sheet （附表7）政府性基金预算支出科目
A1: 附表7
A2: 汕头市濠江区2023年政府性基金预算支出科目调整表
T3: 单位：万元
A4: 功能分类代码 | C4: 功能分类名称 | D4: 年初预算数 | K4: 变动因素 | M4: 调整分解 | P4: 调整后计划数 | S4: 比增% | T4: 备注
D5: 合计 | E5: 补列预算 | F5: 结转资金 | G5: 消化暂付款 | H5: 23年预算 | I5: 本级支出 | J5: 上级支出 | K5: 政策性 调整 | L5: 上级支出 | M5: 综合提供 | N5: 债券+调出 | O5: 结转 | P5: 合计 | Q5: 本级支出 | R5: 上级支出
A6: 205 | C6: 教育 | D6: =+I6+J6 -> 0 | E6: =E7 -> 0 | F6: 0 | G6: 0 | H6: 0 | I6: 0 | J6: 0 | S6: =IF(#REF!=0,IF(D6=0,0,100),100*(D6/#REF!-1)) -> 
A7: 20510 | C7: 地方教育附加安排的支出 | D7: =+I7+J7 -> 0 | E7: =E8+E9 -> 0 | F7: 0 | G7: 0 | H7: 0 | I7: 0 | J7: 0 | S7: =IF(#REF!=0,IF(D7=0,0,100),100*(D7/#REF!-1)) -> 
A8: 2051001 | C8: 农村中小学校舍建设 | D8: =+I8+J8 -> 0 | E8: 0 | F8: 0 | G8: 0 | H8: 0 | I8: =SUM(E8:H8) -> 0 | S8: =IF(#REF!=0,IF(D8=0,0,100),100*(D8/#REF!-1)) -> 
A9: 2051099 | C9: 其他地方教育附加安排的支出 | D9: =+I9+J9 -> 0 | E9: 0 | F9: 0 | G9: 0 | H9: 0 | I9: 0 | S9: =IF(#REF!=0,IF(D9=0,0,100),100*(D9/#REF!-1)) -> 
A10: 207 | C10: 文化体育与传媒 | D10: =I10+J10 -> 4 | E10: =E11 -> 0 | F10: =F11 -> 4 | G10: =G11 -> 0 | H10: =H11 -> 0 | I10: 4 | K10: =Q10-I10 -> 0 | L10: =R10-J10 -> 2 | O10: =O11 -> 4 | P10: =Q10+R10 -> 6 | Q10: =Q11 -> 4 | R10: =R11 -> 2 | S10: =IF(D10=0,IF(P10=0,0,100),100*(P10/D10-1)) -> 49
A11: 20707 | C11: 国家电影事业发展专项资金及对应专项债务因收入安排的支出 | D11: =I11+J11 -> 4 | E11: =E12 -> 0 | F11: =F12 -> 4 | G11: =G12 -> 0 | H11: =H12 -> 0 | I11: 4 | K11: =Q11-I11 -> 0 | L11: =R11-J11 -> 2 | M11: 0 | O11: =O12 -> 4 | P11: =Q11+R11 -> 6 | Q11: =Q12 -> 4 | R11: =R12 -> 2 | S11: =IF(D11=0,IF(P11=0,0,100),100*(P11/D11-1)) -> 49
A12: 2070799 | C12: 其他国家电影事业发展专项资金的支出 | D12: =I12+J12 -> 4 | E12: 0 | F12: 4 | G12: 0 | H12: 0 | I12: 4 | K12: =Q12-I12 -> 0 | L12: =R12-J12 -> 2 | M12: 0 | O12: =3.7+0.2 -> 4 | P12: =Q12+R12 -> 6 | Q12: =M12+N12+O12+G12 -> 4 | R12: 2 | S12: 49
A13: 208 | C13: 社会保障和就业 | D13: =I13+J13 -> 0 | E13: =E14+E17 -> 0 | F13: =F14+F17 -> 0 | G13: =G14+G17 -> 0 | H13: =H14+H17 -> 0 | I13: 0 | S13: =IF(#REF!=0,IF(D13=0,0,100),100*(D13/#REF!-1)) -> 
A14: 20811 | C14: 残疾人事业 | D14: 0 | E14: =SUM(E15:E16) -> 0 | F14: =SUM(F15:F16) -> 0 | G14: =SUM(G15:G16) -> 0 | H14: =SUM(H15:H16) -> 0 | I14: 0 | S14: =IF(#REF!=0,IF(D14=0,0,100),100*(D14/#REF!-1)) -> 
A15: 2081107 | C15: 扶持农村残疾人生产 | D15: 0 | E15: 0 | F15: 0 | G15: 0 | H15: 0 | I15: 0 | S15: =IF(#REF!=0,IF(D15=0,0,100),100*(D15/#REF!-1)) -> 
A16: 2081199 | C16: 其他残疾人就业保障金支出 | D16: 0 | E16: 0 | F16: 0 | G16: 0 | H16: 0 | I16: 0 | S16: =IF(#REF!=0,IF(D16=0,0,100),100*(D16/#REF!-1)) -> 
A17: 20860 | C17: 残疾人就业保障金支出 | D17: 0 | E17: =E18 -> 0 | F17: =F18 -> 0 | G17: =G18 -> 0 | H17: =H18 -> 0 | I17: 0 | S17: =IF(#REF!=0,IF(D17=0,0,100),100*(D17/#REF!-1)) -> 
A18: 2086099 | C18: 其他残疾人就业保障金支出 | D18: 0 | E18: 0 | F18: 0 | G18: 0 | H18: 0 | I18: 0 | S18: =IF(#REF!=0,IF(D18=0,0,100),100*(D18/#REF!-1)) -> 
A19: 212 | C19: 城乡社区事务 | D19: 81,584 | E19: =E20+E39+E48+E51+E55+E43+E47+E23 -> 2,840 | F19: =F20+F39+F48+F51+F55+F43+F47+F23 -> 4,183 | G19: =G20+G39+G48+G51+G55+G43+G47+G23 -> 19,407 | H19: =H20+H39+H48+H51+H55+H43+H47+H23 -> 54,859 | I19: 81,288 | J19: =J20+J23+J39+J43+J47+J51+J55 -> 296 | K19: =Q19-I19 -> -6,979 | L19: =R19-J19 -> -135 | M19: =M20+M23+M39+M43+M47+M51+M55 -> 53,548 | N19: 0 | O19: 1,354 | P19: =Q19+R19 -> 74,470 | Q19: =M19+N19+O19+G19 -> 74,309 | R19: 161 | S19: =IF(D19=0,IF(P19=0,0,100),100*(P19/D19-1)) -> -9
A20: 21207 | C20: 政府住房基金支出 | D20: 0 | E20: =SUM(E21:E22) -> 0 | F20: =SUM(F21:F22) -> 0 | G20: =SUM(G21:G22) -> 0 | H20: =SUM(H21:H22) -> 0 | I20: 0 | S20: =IF(#REF!=0,IF(D20=0,0,100),100*(D20/#REF!-1)) -> 
A21: 2120705 | C21: 公共租赁住房租金支出 | D21: 0 | E21: 0 | F21: 0 | G21: 0 | H21: 0 | I21: 0 | S21: =IF(#REF!=0,IF(D21=0,0,100),100*(D21/#REF!-1)) -> 
A22: 2120799 | C22: 其他政府住房基金支出 | D22: 0 | E22: 0 | F22: 0 | G22: 0 | H22: 0 | I22: 0 | S22: =IF(#REF!=0,IF(D22=0,0,100),100*(D22/#REF!-1)) -> 
A23: 21208 | C23: 国有土地使用权出让收入安排的支出 | D23: =I23+J23 -> 70,835 | E23: =SUM(E24:E38) -> 2,702 | F23: =SUM(F24:F38) -> 4,183 | G23: =SUM(G24:G38) -> 19,351 | H23: =SUM(H24:H38) -> 44,334 | I23: 70,569 | J23: =SUM(J24:J38) -> 266 | K23: =Q23-I23 -> -3,532 | L23: =R23-J23 -> -135 | M23: =SUM(M24:M38) -> 46,332 | N23: 0 | O23: 1,354 | P23: =Q23+R23 -> 67,168 | Q23: =M23+N23+O23+G23 -> 67,037 | R23: 131 | S23: -5
A24: 2120801 | C24: 征地和拆迁补偿支出 | D24: 15,077 | E24: 300 | F24: 0 | G24: 0 | H24: =13528.7607+1248 -> 14,777 | I24: 15,077 | K24: -236 | L24: 0 | M24: 14,841 | P24: 14,841 | Q24: 14,841 | S24: -2
A25: 2120802 | C25: 土地开发支出 | D25: 18,696 | E25: 0 | F25: 0 | G25: 2,020 | H25: 16,676 | I25: 18,696 | K25: 1,760 | L25: 0 | M25: =23971.02-5534.78 -> 18,436 | P25: 20,456 | Q25: 20,456 | S25: 9
A26: 2120803 | C26: 城市建设支出 | D26: 14,565 | E26: =20.98-3.48 -> 18 | F26: 0 | G26: 10,486 | H26: 4,061 | I26: 14,565 | K26: -3,662 | L26: 0 | M26: 417 | P26: 10,903 | Q26: 10,903 | S26: -25
A27: 2120804 | C27: 农村基础设施建设支出 | D27: 3,917 | E27: 153 | F27: 845 | G27: 0 | H27: 2,701 | I27: 3,699 | J27: 218 | K27: 654 | L27: -165 | M27: =3030.6417+1071 -> 4,102 | O27: =225.99+25 -> 251 | P27: 4,406 | Q27: 4,353 | R27: 53 | S27: 12
A28: 2120805 | C28: 补助被征地农民支出 | D28: 617 | E28: 0 | F28: 0 | G28: 617 | H28: 0 | I28: 617 | K28: 0 | L28: 0 | M28: 0 | P28: 617 | Q28: 617 | S28: 0
A29: 2120806 | C29: 土地出让业务支出 | D29: 1,366 | E29: 36 | F29: 0 | G29: 0 | H29: 1,330 | I29: 1,366 | K29: -536 | L29: 0 | M29: 830 | P29: 830 | Q29: 830 | S29: -39
A30: 2120807 | C30: 廉租住房支出 | D30: 0 | E30: 0 | F30: 0 | G30: 0 | H30: 0 | I30: 0 | S30: =IF(#REF!=0,IF(D30=0,0,100),100*(D30/#REF!-1)) -> 
A31: 2120808 | C31: 教育资金安排的支出 | D31: 0 | E31: 0 | F31: 0 | G31: 0 | H31: 0 | I31: 0 | S31: =IF(#REF!=0,IF(D31=0,0,100),100*(D31/#REF!-1)) -> 
A32: 2120809 | C32: 支付破产或改制企业职工安置费 | D32: 0 | E32: 0 | F32: 0 | G32: 0 | H32: 0 | I32: 0 | S32: =IF(#REF!=0,IF(D32=0,0,100),100*(D32/#REF!-1)) -> 
A33: 2120810 | C33: 棚户区改造支出 | D33: 0 | E33: 0 | F33: 0 | G33: 0 | H33: 0 | I33: 0
A34: 2120811 | C34: 公共租赁住房支出 | D34: 0 | E34: 0 | F34: 0 | G34: 0 | H34: 0 | I34: 0 | K34: =Q34-I34 -> 0 | L34: =R34-J34 -> 0 | M34: 0 | P34: =Q34+R34 -> 0 | Q34: =M34+N34+O34+G34 -> 0 | S34: =IF(D34=0,IF(P34=0,0,100),100*(P34/D34-1)) -> 0
A35: 2120812 | C35: 农田水利建设资金安排的支出 | D35: 0 | E35: 0 | F35: 0 | G35: 0 | H35: 0 | I35: 0 | S35: =IF(#REF!=0,IF(D35=0,0,100),100*(D35/#REF!-1)) -> 
A36: 2120814 | C36: 农业生产发展支出 | D36: 344 | F36: 160 | H36: 184 | I36: 344 | K36: =Q36-I36 -> -156 | L36: =R36-J36 -> 15 | M36: 78 | O36: 110 | P36: =Q36+R36 -> 203 | Q36: =M36+N36+O36+G36 -> 188 | R36: 15 | S36: -41
A37: 2120816 | C37: 农业农村生态环境支出 | D37: 207 | E37: 0 | F37: 0 | G37: 0 | H37: 207 | I37: 207 | K37: =Q37-I37 -> 162 | L37: =R37-J37 -> 0 | M37: 224 | O37: 145 | P37: =Q37+R37 -> 369 | Q37: =M37+N37+O37+G37 -> 369 | S37: 78
A38: 2120899 | C38: 其他国有土地使用权出让收入安排的支出 | D38: 16,047 | E38: 2,195 | F38: 3,178 | G38: 6,228 | H38: 4,398 | I38: 15,999 | J38: 48 | K38: =Q38-I38 -> -1,519 | L38: =R38-J38 -> 15 | M38: 7,404 | O38: 848 | P38: =Q38+R38 -> 14,543 | Q38: =M38+N38+O38+G38 -> 14,480 | R38: 63 | S38: -9
A39: 21209 | C39: 城市公用事业附加安排的支出 | D39: 0 | E39: =SUM(E40:E42) -> 0 | F39: =SUM(F40:F42) -> 0 | G39: =SUM(G40:G42) -> 0 | H39: =SUM(H40:H42) -> 0 | I39: 0 | S39: =IF(#REF!=0,IF(D39=0,0,100),100*(D39/#REF!-1)) -> 
A40: 2120901 | C40: 城市公共设施 | D40: 0 | E40: 0 | F40: 0 | G40: 0 | H40: 0 | I40: =SUM(E40:H40) -> 0 | S40: =IF(#REF!=0,IF(D40=0,0,100),100*(D40/#REF!-1)) -> 
A41: 2120902 | C41: 城市环境卫生（城市公用事业附加安排的支出） | D41: 0 | E41: 0 | F41: 0 | G41: 0 | H41: 0 | I41: 0 | S41: =IF(#REF!=0,IF(D41=0,0,100),100*(D41/#REF!-1)) -> 
A42: 2120999 | C42: 其他城市公用事业附加安排的支出 | D42: 0 | E42: 0 | F42: 0 | G42: 0 | H42: 0 | I42: 0 | S42: =IF(#REF!=0,IF(D42=0,0,100),100*(D42/#REF!-1)) -> 
A43: 21210 | C43: 国有土地收益基金支出 | D43: 100 | E43: =SUM(E44:E46) -> 100 | F43: =SUM(F44:F46) -> 0 | G43: =SUM(G44:G46) -> 0 | H43: =SUM(H44:H46) -> 0 | I43: 100 | K43: =Q43-I43 -> -100 | L43: =R43-J43 -> 0 | M43: =M46 -> 0 | N43: =N46 -> 0 | O43: =O46 -> 0 | P43: =Q43+R43 -> 0 | Q43: =M43+N43+O43+G43 -> 0 | R43: =R46 -> 0 | S43: =IF(D43=0,IF(P43=0,0,100),100*(P43/D43-1)) -> -100
A44: 2121001 | C44: 征地和拆迁补偿支出 | D44: =I44+J44 -> 0 | E44: 0 | F44: 0 | G44: 0 | H44: 0 | I44: 0
A45: 2121002 | C45: 土地开发支出 | D45: 0 | E45: 0 | F45: 0 | G45: 0 | H45: 0 | I45: 0
A46: 2121099 | C46: 其他国有土地收益基金支出 | D46: 100 | E46: 100 | F46: 0 | G46: 0 | H46: 0 | I46: 100 | K46: =Q46-I46 -> -100 | L46: =R46-J46 -> 0 | M46: 0 | P46: =Q46+R46 -> 0 | Q46: =M46+N46+O46+G46 -> 0 | S46: -100
A47: 21211 | C47: 农业土地开发资金支出 | D47: 124 | E47: 38 | F47: 0 | G47: 56 | H47: 0 | I47: 94 | J47: 30 | K47: =Q47-I47 -> -38 | L47: =R47-J47 -> 0 | M47: 0 | P47: =Q47+R47 -> 86 | Q47: =M47+N47+O47+G47 -> 56 | R47: 30 | S47: -31
A48: 21212 | C48: 新增建设用地土地有偿使用费安排的支出 | D48: 0 | E48: =SUM(E49:E50) -> 0 | F48: =SUM(F49:F50) -> 0 | G48: =SUM(G49:G50) -> 0 | H48: =SUM(H49:H50) -> 0 | I48: 0 | S48: =IF(#REF!=0,IF(D48=0,0,100),100*(D48/#REF!-1)) -> 
A49: 2121202 | C49: 基本农田建设和保护支出 | D49: 0 | E49: 0 | F49: 0 | G49: 0 | H49: 0 | I49: 0 | S49: =IF(#REF!=0,IF(D49=0,0,100),100*(D49/#REF!-1)) -> 
A50: 2121203 | C50: 土地整理支出 | D50: 0 | E50: 0 | F50: 0 | G50: 0 | H50: 0 | I50: 0 | S50: =IF(#REF!=0,IF(D50=0,0,100),100*(D50/#REF!-1)) -> 
A51: 21213 | C51: 城市基础设施配套费安排的支出 | D51: 10,525 | E51: =SUM(E52:E54) -> 0 | F51: =SUM(F52:F54) -> 0 | G51: =SUM(G52:G54) -> 0 | H51: =SUM(H52:H54) -> 10,525 | I51: 10,525 | K51: =Q51-I51 -> -3,309 | L51: =R51-J51 -> 0 | M51: =M52+M53+M54 -> 7,216 | N51: =N52+N53+N54 -> 0 | O51: =O52+O53+O54 -> 0 | P51: =Q51+R51 -> 7,216 | Q51: =M51+N51+O51+G51 -> 7,216 | R51: =R52+R53+R54 -> 0 | S51: =IF(D51=0,IF(P51=0,0,100),100*(P51/D51-1)) -> -31
A52: 2121301 | C52: 城市公共设施 | D52: 4,778 | E52: 0 | F52: 0 | G52: 0 | H52: 4,778 | I52: 4,778 | K52: =Q52-I52 -> -821 | L52: =R52-J52 -> 0 | M52: 3,957 | P52: =Q52+R52 -> 3,957 | Q52: =M52+N52+O52+G52 -> 3,957 | S52: -17
A53: 2121302 | C53: 城市环境卫生 | D53: 5,415 | E53: 0 | F53: 0 | G53: 0 | H53: 5,415 | I53: 5,415 | K53: =Q53-I53 -> -2,236 | L53: =R53-J53 -> 0 | M53: 3,179 | P53: =Q53+R53 -> 3,179 | Q53: =M53+N53+O53+G53 -> 3,179 | S53: -41
A54: 2121399 | C54: 其他城市基础设施配套费安排的支出 | D54: 332 | E54: 0 | F54: 0 | G54: 0 | H54: 332 | I54: 332 | K54: =Q54-I54 -> -252 | L54: =R54-J54 -> 0 | M54: 80 | P54: =Q54+R54 -> 80 | Q54: =M54+N54+O54+G54 -> 80 | S54: -76
A55: 21219 | C55: 国有土地使用权出让收入对应专项债务收入安排的支出安排的支出 | D55: 0 | E55: =E56 -> 0 | F55: =F56 -> 0 | G55: =G56 -> 0 | H55: =H56 -> 0 | I55: 0 | S55: =IF(#REF!=0,IF(D55=0,0,100),100*(D55/#REF!-1)) -> 
A56: 2121902 | C56: 土地开发支出 | D56: 0 | E56: 0 | F56: 0 | G56: 0 | H56: 0 | I56: 0 | S56: =IF(#REF!=0,IF(D56=0,0,100),100*(D56/#REF!-1)) -> 
A57: 213 | C57: 农林水事务 | D57: 0 | E57: =E58+E61 -> 0 | F57: =F58+F61 -> 0 | G57: =G58+G61 -> 0 | H57: =H58+H61 -> 0 | I57: 0 | S57: =IF(#REF!=0,IF(D57=0,0,100),100*(D57/#REF!-1)) -> 
A58: 21362 | C58: 森林植被恢复费安排的支出 | D58: 0 | E58: =SUM(E59:E60) -> 0 | F58: =SUM(F59:F60) -> 0 | G58: =SUM(G59:G60) -> 0 | H58: =SUM(H59:H60) -> 0 | I58: 0 | S58: =IF(#REF!=0,IF(D58=0,0,100),100*(D58/#REF!-1)) -> 
A59: 2136203 | C59: 森林培育 | D59: 0 | E59: 0 | F59: 0 | G59: 0 | H59: 0 | I59: 0 | S59: =IF(#REF!=0,IF(D59=0,0,100),100*(D59/#REF!-1)) -> 
A60: 2136299 | C60: 其他森林植被恢复费安排的支出 | D60: 0 | E60: 0 | F60: 0 | G60: 0 | H60: 0 | I60: 0 | S60: =IF(#REF!=0,IF(D60=0,0,100),100*(D60/#REF!-1)) -> 
A61: 21364 | C61: 地方水利建设基金支出 | D61: 0 | E61: =E62 -> 0 | F61: =F62 -> 0 | G61: =G62 -> 0 | H61: =H62 -> 0 | I61: 0 | S61: =IF(#REF!=0,IF(D61=0,0,100),100*(D61/#REF!-1)) -> 
A62: 2136499 | C62: 其他地方水利建设基金支出 | D62: 0 | E62: 0 | F62: 0 | G62: 0 | H62: 0 | I62: 0 | S62: =IF(#REF!=0,IF(D62=0,0,100),100*(D62/#REF!-1)) -> 
A63: 213 | C63: 农林水支出 | D63: 0 | E63: =E64 -> 0 | F63: =F64 -> 0 | G63: =G64 -> 0 | H63: =H64 -> 0 | I63: 0 | S63: =IF(#REF!=0,IF(D63=0,0,100),100*(D63/#REF!-1)) -> 
A64: 21370 | C64: 水土保持补偿费安排的支出 | D64: 0 | E64: =E65 -> 0 | F64: =F65 -> 0 | G64: =G65 -> 0 | H64: =H65 -> 0 | I64: 0 | S64: =IF(#REF!=0,IF(D64=0,0,100),100*(D64/#REF!-1)) -> 
A65: 2137003 | C65: 其他水土保持补偿费安排的支出 | D65: 0 | E65: 0 | F65: 0 | G65: 0 | H65: 0 | I65: 0 | S65: =IF(#REF!=0,IF(D65=0,0,100),100*(D65/#REF!-1)) -> 
A66: 214 | C66: 交通运输 | D66: 0 | E66: =E67 -> 0 | F66: =F67 -> 0 | G66: =G67 -> 0 | H66: =H67 -> 0 | I66: 0 | S66: =IF(#REF!=0,IF(D66=0,0,100),100*(D66/#REF!-1)) -> 
A67: 21401 | C67: 公路水路运输 | D67: 0 | E67: =E68 -> 0 | F67: =F68 -> 0 | G67: =G68 -> 0 | H67: =H68 -> 0 | I67: 0 | S67: =IF(#REF!=0,IF(D67=0,0,100),100*(D67/#REF!-1)) -> 
A68: 2140190 | C68: 船舶港务费安排的支出 | D68: 0 | E68: 0 | F68: 0 | G68: 0 | H68: 0 | I68: 0 | S68: =IF(#REF!=0,IF(D68=0,0,100),100*(D68/#REF!-1)) -> 
A69: 215 | C69: 资源勘探信息等支出 | D69: 0 | E69: =E70+E72 -> 0 | F69: =F70+F72 -> 0 | G69: =G70+G72 -> 0 | H69: =H70+H72 -> 0 | I69: 0 | S69: =IF(#REF!=0,IF(D69=0,0,100),100*(D69/#REF!-1)) -> 
A70: 21560 | C70: 散装水泥专项资金及对应专项债务收入安排的支出 | D70: 0 | E70: =E71 -> 0 | F70: =F71 -> 0 | G70: =G71 -> 0 | H70: =H71 -> 0 | I70: 0 | S70: =IF(#REF!=0,IF(D70=0,0,100),100*(D70/#REF!-1)) -> 
A71: 2156099 | C71: 散装水泥专项资金安排的支出 | D71: 0 | E71: 0 | F71: 0 | G71: 0 | H71: 0 | I71: 0 | S71: =IF(#REF!=0,IF(D71=0,0,100),100*(D71/#REF!-1)) -> 
A72: 21560 | C72: 新型墙体材料专项基金及对应专项债务收入安排的支出 | D72: 0 | E72: =E73 -> 0 | F72: =F73 -> 0 | G72: =G73 -> 0 | H72: =H73 -> 0 | I72: 0 | S72: =IF(#REF!=0,IF(D72=0,0,100),100*(D72/#REF!-1)) -> 
A73: 2156199 | C73: 新型墙体材料专项基金安排的支出 | D73: 0 | E73: 0 | F73: 0 | G73: 0 | H73: 0 | I73: 0 | S73: =IF(#REF!=0,IF(D73=0,0,100),100*(D73/#REF!-1)) -> 
A74: 216 | C74: 商业服务也等事务 | D74: 0 | E74: =E75 -> 0 | F74: =F75 -> 0 | G74: =G75 -> 0 | H74: =H75 -> 0 | I74: =SUM(E74:H74) -> 0 | S74: =IF(#REF!=0,IF(D74=0,0,100),100*(D74/#REF!-1)) -> 
A75: 21660 | C75: 旅游发展基金支出 | D75: 0 | E75: =E76 -> 0 | F75: =F76 -> 0 | G75: =G76 -> 0 | H75: =H76 -> 0 | I75: 0 | S75: =IF(#REF!=0,IF(D75=0,0,100),100*(D75/#REF!-1)) -> 
A76: 2166004 | C76: 地方旅游开发项目补助 | D76: 0 | E76: 0 | F76: 0 | G76: 0 | H76: 0 | I76: 0 | S76: =IF(#REF!=0,IF(D76=0,0,100),100*(D76/#REF!-1)) -> 
A77: 229 | C77: 其他支出 | D77: =I77+J77 -> 25,706 | E77: =E78+E81+E83 -> 27 | F77: =F78+F81+F83 -> 637 | G77: =G78+G81+G83 -> 0 | H77: =H78+H81+H83 -> 24,829 | I77: 25,493 | J77: =J78+J83+J81 -> 213 | K77: =Q77-I77 -> 84,789 | L77: =R77-J77 -> -114 | M77: =M78+M83+M81 -> 179 | N77: 110,000 | O77: 104 | P77: =Q77+R77 -> 110,381 | Q77: =M77+N77+O77+G77 -> 110,282 | R77: 99 | S77: =IF(D77=0,IF(P77=0,0,100),100*(P77/D77-1)) -> 329
A78: 22904 | C78: 其他政府性基金及对应专项债务收入安排的支出 | D78: 25,200 | E78: =E80+E79 -> 0 | F78: =F80+F79 -> 500 | G78: =G80+G79 -> 0 | H78: =H80+H79 -> 24,700 | I78: 25,200 | J78: =J80 -> 0 | K78: 84,800 | L78: 0 | M78: =M79+M80 -> 0 | N78: =N79+N80 -> 110,000 | O78: =O79+O80 -> 0 | P78: 110,000 | Q78: 110,000 | R78: =R79+R80 -> 0 | S78: 337
A79: 2290401 | C79: 其他政府性基金安排的支出 | D79: 500 | F79: 500 | I79: 500 | K79: -500 | L79: 0 | M79: 0 | P79: 0 | Q79: 0 | S79: -100
A80: 2290402 | C80: 其他地方自行试点项目收益专项债券收入安排的支出 | D80: 24,700 | E80: 0 | F80: 0 | G80: 0 | H80: 24,700 | I80: =SUM(E80:H80) -> 24,700 | K80: 85,300 | L80: 0 | M80: 0 | N80: 110,000 | P80: 110,000 | Q80: 110,000 | S80: 345
A81: 22908 | C81: 彩票发行销售机构业务费安排的支出 | D81: 15 | E81: =E82 -> 0 | F81: =F82 -> 9 | G81: =G82 -> 0 | H81: =H82 -> 0 | I81: 9 | J81: =J82 -> 6 | K81: 0 | L81: -6 | M81: =M82 -> 0 | N81: 0 | O81: 9 | P81: 9 | Q81: 9 | R81: 0 | S81: -39
A82: 2290804 | C82: 福利彩票销售机构的业务费支出 | D82: 15 | E82: 0 | F82: 9 | G82: 0 | H82: 0 | I82: 9 | J82: 6 | K82: 0 | L82: -6 | M82: 0 | O82: 9 | P82: 9 | Q82: 9 | S82: -39
A83: 22960 | C83: 彩票公益金安排的支出 | D83: 491 | E83: =SUM(E84:E93) -> 27 | F83: =SUM(F84:F93) -> 127 | G83: =SUM(G84:G93) -> 0 | H83: =SUM(H84:H93) -> 129 | I83: 284 | J83: =SUM(J85:J93) -> 207 | K83: -11 | L83: -108 | M83: =SUM(M85:M93) -> 179 | N83: 0 | O83: 94 | P83: 372 | Q83: 273 | R83: 99 | S83: -24
A84: 2296001 | C84: 用于补充全国社会保障基金的彩票公益金支出 | D84: 0 | E84: 0 | F84: 0 | G84: 0 | H84: 0 | I84: 0 | S84: =IF(#REF!=0,IF(D84=0,0,100),100*(D84/#REF!-1)) -> 
A85: 2296002 | C85: 用于社会福利的彩票公益金支出 | D85: 276 | E85: 23 | F85: 86 | G85: 0 | H85: 0 | I85: 109 | J85: 167 | K85: =Q85-I85 -> -32 | L85: =R85-J85 -> -123 | M85: 13 | O85: 64 | P85: =Q85+R85 -> 122 | Q85: =M85+N85+O85+G85 -> 77 | R85: 44 | S85: =IF(D85=0,IF(P85=0,0,100),100*(P85/D85-1)) -> -56
A86: 2296003 | C86: 用于体育事业的彩票公益金支出 | D86: 16 | E86: 0 | F86: 16 | G86: 0 | H86: 0 | I86: 16 | K86: =Q86-I86 -> -11 | L86: =R86-J86 -> 0 | M86: 0 | O86: 5 | P86: =Q86+R86 -> 5 | Q86: =M86+N86+O86+G86 -> 5 | S86: -69
A87: 2296004 | C87: 用于教育事业的彩票公益金支出 | D87: 0 | E87: 0 | F87: 0 | G87: 0 | H87: 0 | I87: 0 | S87: =IF(#REF!=0,IF(D87=0,0,100),100*(D87/#REF!-1)) -> 
A88: 2296006 | C88: 用于残疾人事务的彩票公益金支出 | D88: 94 | E88: 4 | F88: 25 | G88: 0 | H88: 25 | I88: 54 | J88: 40 | K88: =Q88-I88 -> 8 | L88: =R88-J88 -> 15 | M88: 38 | O88: 25 | P88: =Q88+R88 -> 117 | Q88: =M88+N88+O88+G88 -> 63 | R88: 55 | S88: 24
A89: 2296007 | C89: 用于城市医疗救助的彩票公益金支出 | D89: 0 | E89: 0 | F89: 0 | G89: 0 | H89: 0 | I89: 0 | S89: =IF(#REF!=0,IF(D89=0,0,100),100*(D89/#REF!-1)) -> 
A90: 2296008 | C90: 用于农村医疗救助的彩票公益金支出 | D90: 0 | E90: 0 | F90: 0 | G90: 0 | H90: 0 | I90: 0 | S90: =IF(#REF!=0,IF(D90=0,0,100),100*(D90/#REF!-1)) -> 
A91: 2296010 | C91: 用于文化事业的彩票公益金支出 | D91: 0 | E91: 0 | F91: 0 | G91: 0 | H91: 0 | I91: 0 | S91: =IF(#REF!=0,IF(D91=0,0,100),100*(D91/#REF!-1)) -> 
A92: 2296013 | C92: 用于城乡医疗救助的彩票公益金支出 | D92: 28 | E92: 0 | F92: 0 | G92: 0 | H92: 28 | I92: 28 | K92: =Q92-I92 -> 6 | L92: =R92-J92 -> 0 | M92: 34 | P92: =Q92+R92 -> 34 | Q92: =M92+N92+O92+G92 -> 34 | S92: =IF(D92=0,IF(P92=0,0,100),100*(P92/D92-1)) -> 22
A93: 2296099 | C93: 用于其他社会公益事业的彩票公益金支出 | D93: 76 | E93: 0 | F93: 0 | G93: 0 | H93: 76 | I93: 76 | K93: =Q93-I93 -> 18 | L93: =R93-J93 -> 0 | M93: 94 | P93: =Q93+R93 -> 94 | Q93: =M93+N93+O93+G93 -> 94 | S93: 24
A94: 230 | C94: 转移性支出 | D94: 106,500 | E94: =E95+E96+E97 -> 0 | F94: =F95+F96+F97 -> 0 | G94: =G95+G96+G97 -> 0 | H94: =H95+H96+H97 -> 106,500 | I94: 106,500 | K94: =Q94-I94 -> -101,500 | L94: =R94-J94 -> 0 | M94: 0 | N94: 5,000 | P94: =Q94+R94 -> 5,000 | Q94: =M94+N94+O94+G94 -> 5,000 | S94: -95
A95: 23004 | C95: 政府性基金转移支付 | D95: 0 | E95: 0 | F95: 0 | G95: 0 | H95: 0 | I95: 0
A96: 23008 | C96: 调出资金 | D96: 106,500 | E96: 0 | F96: 0 | G96: 0 | H96: 106,500 | I96: 106,500 | K96: =Q96-I96 -> -101,500 | L96: =R96-J96 -> 0 | M96: 0 | N96: 5,000 | P96: =Q96+R96 -> 5,000 | Q96: =M96+N96+O96+G96 -> 5,000 | S96: =IF(D96=0,IF(P96=0,0,100),100*(P96/D96-1)) -> -95
A97: 23009 | C97: 年终结余 | D97: 0 | E97: 0 | F97: 0 | G97: 0 | H97: 0 | I97: 0 | S97: =IF(#REF!=0,IF(D97=0,0,100),100*(D97/#REF!-1)) -> 
A98: 231 | C98: 债务还本支出 | D98: 30,960 | E98: =E99 -> 0 | F98: =F99 -> 0 | G98: =G99 -> 0 | H98: =H99 -> 30,960 | I98: 30,960 | K98: =Q98-I98 -> 0 | L98: =R98-J98 -> 0 | M98: =M99 -> 30,960 | P98: =Q98+R98 -> 30,960 | Q98: =M98+N98+O98+G98 -> 30,960 | S98: 0
A99: 23104 | C99: 地方政府专项债务还本支出 | D99: 30,960 | E99: =SUM(E100:E102) -> 0 | F99: =SUM(F100:F102) -> 0 | G99: =SUM(G100:G102) -> 0 | H99: =SUM(H100:H102) -> 30,960 | I99: 30,960 | K99: =Q99-I99 -> 0 | L99: =R99-J99 -> 0 | M99: =M100+M101 -> 30,960 | N99: =N100+N101 -> 0 | O99: =O100+O101 -> 0 | P99: =Q99+R99 -> 30,960 | Q99: =M99+N99+O99+G99 -> 30,960 | R99: =R100+R101 -> 0 | S99: 0
A100: 2310411 | C100: 国有土地使用权出让金债务还本支出 | D100: 6,960 | E100: 0 | F100: 0 | G100: 0 | H100: 6,960 | I100: 6,960 | K100: =Q100-I100 -> 0 | L100: =R100-J100 -> 0 | M100: 6,960 | P100: =Q100+R100 -> 6,960 | Q100: =M100+N100+O100+G100 -> 6,960 | S100: 0
A101: 2310431 | C101: 土地储备专项债券还本支出 | D101: 24,000 | E101: 0 | F101: 0 | G101: 0 | H101: 24,000 | I101: 24,000 | K101: =Q101-I101 -> 0 | L101: =R101-J101 -> 0 | M101: 24,000 | P101: =Q101+R101 -> 24,000 | Q101: =M101+N101+O101+G101 -> 24,000 | S101: 0
A102: 2310498 | C102: 其他地方自行试点项目收益专项债券还本支出 | D102: 0 | E102: 0 | F102: 0 | G102: 0 | H102: 0 | I102: 0 | S102: =IF(#REF!=0,IF(D102=0,0,100),100*(D102/#REF!-1)) -> 
A103: 232 | C103: 债务付息支出 | D103: =I103+J103 -> 25,759 | E103: =E104 -> 0 | F103: =F104 -> 0 | G103: =G104 -> 0 | H103: =H104 -> 25,759 | I103: 25,759 | J103: =J104 -> 0 | K103: =Q103-I103 -> 789 | L103: =R103-J103 -> 0 | M103: =M104 -> 26,548 | N103: =N104 -> 0 | O103: =O104 -> 0 | P103: =Q103+R103 -> 26,548 | Q103: =M103+N103+O103+G103 -> 26,548 | R103: =R104 -> 0 | S103: =IF(D103=0,IF(P103=0,0,100),100*(P103/D103-1)) -> 3
A104: 23204 | C104: 地方政府专项债务付息支出 | D104: 25,759 | E104: =SUM(E105:E107) -> 0 | F104: =SUM(F105:F107) -> 0 | G104: =SUM(G105:G107) -> 0 | H104: =SUM(H105:H107) -> 25,759 | I104: 25,759 | J104: =J105+J106+J107 -> 0 | K104: 789 | L104: 0 | M104: =M105+M106+M107 -> 26,548 | N104: =N105+N106+N107 -> 0 | O104: =O105+O106+O107 -> 0 | P104: 26,548 | Q104: 26,548 | R104: =R105+R106+R107 -> 0 | S104: 3
A105: 2320411 | C105: 国有土地使用权出让金债务付息支出 | D105: 3,237 | E105: 0 | F105: 0 | G105: 0 | H105: 3,237 | I105: 3,237 | K105: 9 | L105: 0 | M105: 3,246 | P105: 3,246 | Q105: 3,246 | S105: 0
A106: 2320431 | C106: 土地储备专项债券付息支出 | D106: 975 | E106: 0 | F106: 0 | G106: 0 | H106: 975 | I106: 975 | K106: 0 | L106: 0 | M106: 975 | P106: 975 | Q106: 975 | S106: 0
A107: 2320498 | C107: 其他地方自行试点项目收益专项债券付息支出 | D107: 21,547 | E107: 0 | F107: 0 | G107: 0 | H107: 21,547 | I107: 21,547 | K107: 780 | L107: 0 | M107: 22,327 | P107: 22,327 | Q107: 22,327 | S107: 4
A108: 233 | C108: 债务发行费用支出 | D108: 250 | E108: =E109 -> 0 | F108: =F109 -> 0 | G108: =G109 -> 0 | H108: =H109 -> 250 | I108: 250 | J108: 0 | K108: -120 | L108: 0 | M108: 130 | P108: 130 | Q108: 130 | S108: -48
A109: 23304 | C109: 地方政府专项债务发行费用支出 | D109: 250 | E109: =SUM(E110:E118) -> 0 | F109: =SUM(F110:F118) -> 0 | G109: =SUM(G110:G118) -> 0 | H109: =SUM(H110:H118) -> 250 | I109: 250 | J109: =J110+J111 -> 0 | K109: -120 | L109: 0 | M109: =M110+M111+M112 -> 130 | P109: 130 | Q109: 130 | S109: -48
A110: 2330411 | C110: 国有土地使用权出让金债务发行费用支出 | D110: 5 | E110: 0 | F110: 0 | G110: 0 | H110: 5 | I110: 5 | K110: -2 | L110: 0 | M110: 3 | P110: 3 | Q110: 3 | S110: -39
A111: 2330431 | C111: 土地储备专项债券发行费用支出 | D111: 25 | E111: 0 | F111: 0 | G111: 0 | H111: 25 | I111: 25 | K111: -5 | L111: 0 | M111: 20 | P111: 20 | Q111: 20 | S111: -18
A112: 2330498 | C112: 其他地方自行试点项目收益专项债券发行费用支出 | D112: 220 | E112: 0 | F112: 0 | G112: 0 | H112: 220 | I112: 220 | K112: -113 | L112: 0 | M112: 107 | P112: 107 | Q112: 107 | S112: -52
A113: 234 | C113: 抗疫特别国债安排的支出 | D113: =+I113+J113 -> 0 | E113: 0 | F113: 0 | G113: 0 | H113: 0 | I113: 0 | S113: =IF(#REF!=0,IF(D113=0,0,100),100*(D113/#REF!-1)) -> 
A114: 23401 | C114: 基础设施建设 | D114: 0 | E114: 0 | F114: 0 | G114: 0 | H114: 0 | I114: 0 | S114: =IF(#REF!=0,IF(D114=0,0,100),100*(D114/#REF!-1)) -> 
A115: 2340101 | C115: 公共卫生体系建设 | D115: 0 | E115: 0 | F115: 0 | G115: 0 | H115: 0 | I115: 0 | S115: =IF(#REF!=0,IF(D115=0,0,100),100*(D115/#REF!-1)) -> 
A116: 2340199 | C116: 其他基础设施建设 | D116: 0 | E116: 0 | F116: 0 | G116: 0 | H116: 0 | I116: 0 | S116: =IF(#REF!=0,IF(D116=0,0,100),100*(D116/#REF!-1)) -> 
A117: 23402 | C117: 抗疫相关支出 | D117: 0 | E117: 0 | F117: 0 | G117: 0 | H117: 0 | I117: 0 | S117: =IF(#REF!=0,IF(D117=0,0,100),100*(D117/#REF!-1)) -> 
A118: 2340299 | C118: 其他抗疫相关支出 | D118: 0 | E118: 0 | F118: 0 | G118: 0 | H118: 0 | I118: 0 | S118: =IF(#REF!=0,IF(D118=0,0,100),100*(D118/#REF!-1)) -> 
A119: 支出合计 | D119: =D6+D10+D13+D19++D57+D66+D69+D74+D77+D94+D98+D103+D108+D113 -> 270,764 | E119: =E6+E10+E13+E19++E57+E66+E69+E74+E77+E94+E98+E103+E108+E113 -> 2,867 | F119: 4,823 | G119: 19,407 | H119: 243,158 | I119: 270,255 | J119: 509 | K119: -23,021 | L119: -247 | M119: 111,365 | N119: 115,000 | O119: 1,461 | P119: 247,495 | Q119: 247,234 | R119: 262 | S119: =IF(D119=0,IF(P119=0,0,100),100*(P119/D119-1)) -> -9

Sheet （附表8）政府性基金预算支出项目
A1: 附表8
A2: 汕头市濠江区2023年本级政府性基金预算支出项目调整表
G3: 单位：万元
A4: 序号 | B4: 股室 | C4: 单位 | D4: 项目名称 | E4: 年初预算数 | F4: 变动因素 | G4: 调整后计划数 | H4: 备注 | I4: （填及校对）支出功能科目（建议数为0的可空着）
A5: =ROW()-4 -> 1 | B5: 本级支出合计 | E5: =E6+E165+E166+E167+E168 -> 270,254 | F5: =F6+F165+F166+F167+F168 -> -23,020 | G5: =G6+G165+G166+G167+G168 -> 247,234
A6: =ROW()-4 -> 2 | B6: 一、本级基金项目合计 | E6: =E7+E139+E157 -> 114,824 | F6: =F7+F139+F157 -> -3,458 | G6: =G7+G139+G157 -> 111,366
A7: 3 | B7: （一）土地基金小计 | E7: =E8+E10+E29+E75+E77+E134 -> 104,431 | F7: =F8+F10+F29+F75+F77+F134 -> -381 | G7: =G8+G10+G29+G75+G77+G134 -> 104,051
A8: 4 | B8: 中信项目小计 | E8: =E9 -> 15,000 | F8: =F9 -> -15,000 | G8: =G9 -> 0
A9: 5 | B9: 综合股（土地基金） | C9: 区土储中心 | D9: 中信南滨片区统征地项目 | E9: 15,000 | F9: -15,000 | G9: =E9+F9 -> 0 | H9: 鉴于今年中信南滨片区统征地出让收入按照实际情况远不达预期，相应调减预算额度。
A10: 6 | B10: 征地收储小计 | E10: =SUM(E11:E28) -> 14,494 | F10: =SUM(F11:F28) -> 80 | G10: =SUM(G11:G28) -> 14,574
A11: 7 | B11: 综合股（土地基金） | C11: 区工业园区办 | D11: 三联工业区历史征地款及利息（违约金） | E11: 100 | F11: -100 | G11: =E11+F11 -> 0
A12: 8 | B12: 综合股（土地基金） | C12: 区土储中心 | D12: 河浦医院二期征地项目 | E12: 59 | F12: -59 | G12: =E12+F12 -> 0
A13: 9 | B13: 综合股（土地基金） | C13: 区土储中心 | D13: 河浦粮库用地平整项目 | E13: 46 | F13: 0 | G13: 46 | I13: 2120802
A14: 10 | B14: 综合股（土地基金） | C14: 区土储中心 | D14: 滨海临港产业片区项目（征地） | E14: 5,525 | F14: =-1770.07-150 -> -1,920 | G14: 3,605 | I14: 2120801
A15: 11 | B15: 综合股（土地基金） | C15: 区土储中心 | D15: 滨海工业区征地项目（部分锦纶项目征地） | E15: 113 | F15: -52 | G15: 61 | I15: 2120801
A16: =ROW()-4 -> 12 | B16: 综合股（土地基金） | C16: 区土储中心 | D16: 风电培训基地用地项目（征地项目） | E16: 850 | F16: =-650+90 -> -560 | G16: 290 | I16: 2120801
A17: 13 | B17: 综合股（土地基金） | C17: 区土储中心 | D17: 濠江区风电产业园扩围征收项目（征地项目） | E17: 1,512 | F17: -400 | G17: 1,112 | I17: 2120801
A18: 14 | B18: 综合股（土地基金） | C18: 区土储中心 | D18: 茂州片区A-04-02与玉新街道北片区A-7-02土地整理开发工程（平整） | E18: 100 | F18: -80 | G18: 20 | I18: 2120802
A19: 15 | B19: 综合股（土地基金） | C19: 区土储中心 | D19: 达濠渔港一期平整项目 | E19: 270 | F19: 0 | G19: 270 | I19: 2120802
A20: 16 | B20: 综合股（土地基金） | C20: 区土储中心 | D20: 青洲盐场一、二期平整项目 | E20: 770 | F20: =-550-40 -> -590 | G20: 180 | I20: 2120802
A21: 17 | B21: 综合股（土地基金） | C21: 区土储中心 | D21: 青洲盐场一、二期项目 | E21: 1,900 | F21: 0 | G21: 1,900 | I21: 2120801
A22: 18 | B22: 综合股（土地基金） | C22: 区土储中心 | D22: 马滘工业园区生活配套区基础设施工程项目（平整） | E22: 80 | F22: =-50-20 -> -70 | G22: 10 | I22: 2120802
A23: 19 | B23: 综合股（土地基金） | C23: 区土储中心 | D23: 广澳港海工装备产业园收储项目 | E23: 1,510 | F23: =-1460-40 -> -1,500 | G23: 10 | I23: 2120801
A24: 20 | B24: 综合股（土地基金） | C24: 区自然资源局 | D24: 收回雅伦公司国有建设用地使用权 | E24: 1,248 | F24: -1,248 | G24: 0
A25: 21 | B25: 综合股（土地基金） | C25: 区自然资源局 | D25: 收回河浦街道一工区18.366亩存量工业用地的国有建设用地使用权费用 | E25: 100 | F25: =-50-30 -> -80 | G25: 20 | I25: 2120801
A26: =ROW()-4 -> 22 | B26: 综合股（土地基金） | C26: 广澳街道 | D26: 广澳溪头工业区5宗地征地平整包干费 | E26: 300 | F26: =-200-50 -> -250 | G26: 50 | I26: 2120802
A27: 23 | B27: 金融股 | C27: 区住房城乡建设局 | D27: 广东省汕头市濠江区茂洲片区新型城镇化综合开发PPP项目 | E27: 11 | F27: -11 | G27: -0
A28: 24 | B28: 综合股（土地基金） | C28: 区土储中心 | D28: 幼师二期征地款 | E28: 0 | F28: 7,000 | G28: 7,000 | I28: 2120801
A29: 25 | B29: 基建小计 | E29: =SUM(E30:E74) -> 5,081 | F29: =SUM(F30:F74) -> 11,229 | G29: =SUM(G30:G74) -> 16,310
A30: 26 | B30: 国资股 | C30: 礐石街道 | D30: 礐石街道改善乡村人居环境综合建设项目 | E30: 107 | F30: -107 | G30: =E30+F30 -> 0
A31: 27 | B31: 经建股 | C31: 礐石街道 | D31: 汕头市英国领事署旧址修缮工程 | E31: 0 | F31: 40 | G31: =E31+F31 -> 40 | I31: 2120803
A32: 28 | B32: 农业股 | C32: 礐石街道 | D32: 礐石街道农村生活污水治理项目经费 | E32: 13 | F32: -13 | G32: 0
A33: 29 | B33: 国资股 | C33: 滨海街道 | D33: 滨海街道改善乡村人居环境综合建设项目 | E33: 180 | F33: -180 | G33: 0
A34: 30 | B34: 国资股 | C34: 达濠街道 | D34: 达濠街道改善乡村人居环境综合建设项目 | E34: 135 | F34: -135 | G34: 0
A35: 31 | B35: 农业股 | C35: 达濠街道 | D35: 会汀港截污管道建设工程建设资金 | E35: 20 | F35: -10 | G35: 10 | I35: 2120816
A36: =ROW()-4 -> 32 | B36: 国资股 | C36: 广澳街道 | D36: 广澳街道改善乡村人居环境综合建设项目 | E36: 82 | F36: -82 | G36: 0
A37: 33 | B37: 综合股（土地基金） | C37: 广澳街道 | D37: 开放公园建设 | E37: 225 | F37: =-225 -> -225 | G37: 0
A38: 34 | B38: 国资股 | C38: 河浦街道 | D38: 河浦街道改善乡村人居环境综合建设项目 | E38: 43 | F38: -43 | G38: 0
A39: 35 | B39: 国资股 | C39: 马滘街道 | D39: 马滘街道改善乡村人居环境综合建设项目 | E39: 149 | F39: -149 | G39: 0
A40: 36 | B40: 国资股 | C40: 玉新街道 | D40: 玉新街道改善乡村人居环境综合建设项目 | E40: 60 | F40: -60 | G40: 0
A41: 37 | B41: 经建股 | C41: 玉新街道 | D41: 玉新街道中心幼儿园项目其他费用 | E41: 0 | F41: 151 | G41: 151 | H41: 汕濠办文〔2023〕Z1—1476号。 | I41: 2120802
A42: 38 | B42: 农业股 | C42: 玉新街道 | D42: 2022年濠江区大坪排洪沟河浦高级中学段改建工程 | E42: 26 | F42: -26 | G42: 0
A43: 39 | B43: 经建股 | C43: 区房管所 | D43: 公租房修缮 | E43: 30 | F43: 0 | G43: 30 | I43: 2120803
A44: 40 | B44: 经建股 | C44: 区房管所 | D44: 濠江区棚户区抢险救灾工程项目 | E44: 50 | F44: -10 | G44: 40 | I44: 2120803
A45: 41 | B45: 经建股 | C45: 区妇幼保健计划生育服务中心 | D45: 濠江区妇幼保健院门诊部建设工程尾款 | E45: 3 | F45: -3 | G45: 0
A46: =ROW()-4 -> 42 | B46: 国资股 | C46: 区工业园区办 | D46: 党群中心基建及采购固定资产 | E46: 69 | F46: -69 | G46: 0
A47: 43 | B47: 综合股（土地基金） | C47: 区工业园区办 | D47: 汕头市滨海临港产业片区基础设施配套项目其他费用 | E47: 0 | F47: 4,954 | G47: 4,954 | H47: 汕濠办文〔2023〕Z2-1123号。 | I47: 2120899
A48: 44 | B48: 综合股（土地基金） | C48: 区工业园区办 | D48: 汕头市台商投资区台纵二路、台横三路道路工程及配套（续建）工程 | E48: 55 | F48: -55 | G48: 0
A49: 45 | B49: 综合股（土地基金） | C49: 区工业园区办 | D49: 科林路临时道路建设工程项目 | E49: 30 | F49: -30 | G49: 0
A50: 46 | B50: 综合股（土地基金） | C50: 区工业园区办 | D50: 汕头市台商投资区（濠江片）道路及市政配套工程 | E50: 5 | F50: -5 | G50: 0
A51: 47 | B51: 国资股 | C51: 区教育局 | D51: 达濠华侨中学学生宿舍楼及配套建设 | E51: 31 | F51: -31 | G51: 0
A52: 48 | B52: 经建股 | C52: 区民政局 | D52: 区民政局办公用房维修专项资金 | E52: 20 | F52: -18 | G52: 2 | I52: 2120803
A53: 49 | B53: 国资股 | C53: 区农业农村水务局 | D53: 濠江区五南沟片区内涝整治工程 | E53: 80 | F53: -80 | G53: 0
A54: 50 | B54: 农业股 | C54: 区农业农村水务局 | D54: 濠江东西岸堤围达标加固工程尾款 | E54: 30 | F54: -30 | G54: 0
A55: 51 | B55: 农业股 | C55: 区农业农村水务局 | D55: 三屿围海堤达标加固工程 | E55: 20 | F55: -20 | G55: 0
A56: =ROW()-4 -> 52 | B56: 农业股 | C56: 区水利与渔港建设管养中心 | D56: 后江湾海堤修复加固工程其他费用（暂时名） | E56: 0 | F56: =775+1071 -> 1,846 | G56: 1,846 | I56: 2120804
A57: 53 | B57: 国资股 | C57: 区卫生健康局 | D57: 区人民医院改扩建工程 | E57: 60 | F57: -60 | G57: 0
A58: 54 | B58: 经建股 | C58: 区文化广电旅游体育局 | D58: 区综合文化活动中心建设项目夹胶钢化玻璃屋面及新建冲孔板外墙装饰面工程 | E58: 5 | F58: -5 | G58: 0
A59: 55 | B59: 经建股 | C59: 区文化广电旅游体育局 | D59: 濠江区博物馆装饰装修工程项目 | E59: 5 | F59: -5 | G59: 0
A60: 56 | B60: 经建股 | C60: 区文化广电旅游体育局 | D60: 濠江区图书馆搬迁修缮工程包干经费 | E60: 10 | F60: -10 | G60: 0
A61: 57 | B61: 国资股 | C61: 区住房城乡建设局 | D61: 三路一桥 | E61: 500 | F61: -500 | G61: 0
A62: 58 | B62: 国资股 | C62: 区住房城乡建设局 | D62: 濠江区改善乡村人居环境综合建设项目（雪亮工程) | E62: 43 | F62: -43 | G62: 0
A63: 59 | B63: 金融股 | C63: 区住房城乡建设局 | D63: 濠江“一江两岸”生态环境治理及产城融合开发建设项目 | E63: 596 | F63: -596 | G63: 0
A64: 60 | B64: 金融股 | C64: 区住房城乡建设局 | D64: 汕头市濠江区全区污水管网完善建设PPP项目 | E64: 1,000 | F64: -290 | G64: 710 | I64: 2120899
A65: 61 | B65: 经建股 | C65: 区住房城乡建设局 | D65: 濠江北路（磊口大桥-河浦花桥）道路建设工程、濠江北路（河浦花桥-达南路）道路建设工程项目其他费用 | E65: 0 | F65: 7,244 | G65: 7,244 | I65: 2120802
A66: =ROW()-4 -> 62 | B66: 经建股 | C66: 区住房城乡建设局 | D66: 广达大道等道路公交站亭（牌）建设项目 | E66: 8 | F66: -8 | G66: 0
A67: 63 | B67: 经建股 | C67: 区住房城乡建设局 | D67: 汕头市濠江区2019年四好农村路建设工程项目 | E67: 442 | F67: -442 | G67: 0
A68: 64 | B68: 经建股 | C68: 区住房城乡建设局 | D68: 濠江区东湖东路和周边基础设施及东湖西路污水管网建设项目 | E68: 10 | F68: 0 | G68: 10 | I68: 2120803
A69: 65 | B69: 经建股 | C69: 区住房城乡建设局 | D69: 2020年市级涉农专项转移支付资金（市级“百村示范、千村整治”补助资金） | F69: 600 | G69: 600 | I69: 2120899
A70: 66 | B70: 综合股（土地基金） | C70: 区自然资源局 | D70: 汕头市濠江区达濠街道葛洲居委会现有耕地提质改造项目 | E70: 40 | F70: -40 | G70: 0 | H70: 今年预计不开展。
A71: 67 | B71: 综合股（土地基金） | C71: 区自然资源局 | D71: 汕头市濠江区农村建设用地拆旧复垦项目 | E71: 10 | F71: -10 | G71: 0 | H71: 今年预计不开展。
A72: 68 | B72: 金融股 | C72: 区政府办公室 | D72: 汕头市濠江区智慧型机械式公共停车楼PPP项目绩效服务费 | E72: 723 | F72: -50 | G72: 673 | I72: 2120899
A73: 69 | B73: 国资股 | C73: 粤鑫公司 | D73: 濠江“一江两岸”生态环境治理及产城融合开发建设项目 | E73: 56 | F73: -56 | G73: 0
A74: 70 | B74: 综合股（土地基金） | C74: 粤鑫公司 | D74: 澳旺路、同盛路及三寮路建设项目 | E74: 110 | F74: -110 | G74: 0
A75: 71 | B75: 土地有偿划拨相关项目小计 | E75: =SUM(E76:E76) -> 0 | F75: =SUM(F76:F76) -> 10,466 | G75: =SUM(G76:G76) -> 10,466
A76: =ROW()-4 -> 72 | B76: 经建股、综合股（土地基金） | C76: 各受让主体单位 | D76: 濠江区批而未供土地进一步消化处置方案项目 | E76: 0 | F76: =16000-5534.5 -> 10,466 | G76: =E76+F76 -> 10,466 | H76: 根据区政府批复《濠江区批而未供土地进一步消化处置方案项目》（汕濠办文〔2023〕Z2-1733号）进行具体分配拨付。 | I76: 2120802
A77: 73 | B77: 其他小计 | E77: =SUM(E78:E133) -> 65,856 | F77: =SUM(F78:F133) -> -3,985 | G77: =SUM(G78:G133) -> 61,871
A78: 74 | B78: 综合股（土地基金） | C78: 礐石街道 | D78: 324国道磊口-棉花路段两侧拆迁经费及社区补助资金 | E78: 138 | F78: 0 | G78: =E78+F78 -> 138 | I78: 2120816
A79: 75 | B79: 综合股（土地基金） | C79: 河浦街道 | D79: 324国道两侧环境风貌品质提升拆迁安置补偿经费 | E79: 36 | F79: -0 | G79: =E79+F79 -> 36 | I79: 2120816
A80: 76 | B80: 综合股 | C80: 马滘街道 | D80: 汕头市濠江区2021年绿道建设项目（马滘凤岗段） | E80: 18 | F80: -13 | G80: 5 | I80: 2120803
A81: 77 | B81: 综合股（土地基金） | C81: 玉新街道 | D81: 燎原社区排洪改道青苗和附着物补偿 | E81: 10 | F81: -10 | G81: 0
A82: 78 | B82: 预算股 | C82: 达濠、礐石、马滘街道 | D82: 农村保洁员工资待遇保障补助区级配套（2022年，区级） | E82: 138 | F82: -70 | G82: 68 | I82: 2120804
A83: 79 | B83: 预算股 | C83: 各街道 | D83: 农村保洁员工资待遇保障补助区级配套 | E83: 2,183 | F83: 0 | G83: 2,183 | I83: 2120804
A84: 80 | B84: 农业股 | C84: 各相关单位 | D84: 2021年市级涉农专项转移支付资金 | E84: 853 | F84: -853 | G84: 0
A85: 81 | B85: 农业股 | C85: 各相关单位 | D85: 2021年市级涉农专项转移支付资金（第二批） | E85: 130 | F85: -120 | G85: 10 | I85: 2120899
A86: =ROW()-4 -> 82 | B86: 经建股 | C86: 区房管所 | D86: 教师公寓、海马池、金碧湾公寓公租房物业管理费 | E86: 100 | F86: -10 | G86: 90 | I86: 2120803
A87: 83 | B87: 农业股 | C87: 区农业农村水务局 | D87: 扶持村级集体经济发展试点区级配套资金 | E87: 50 | F87: -50 | G87: 0
A88: 84 | B88: 农业股 | C88: 区农业农村水务局 | D88: 驻镇帮镇扶村区级配套（2023年） | E88: 1,500 | F88: -1,450 | G88: 50 | I88: 2120899
A89: 85 | B89: 农业股 | C89: 区农业农村水务局 | D89: 2021年农村生活污水治理即“源头截污、雨污分流”市级奖补资金（第一批） | E89: 835 | F89: -795 | G89: 40 | I89: 2120816
A90: 86 | B90: 农业股 | C90: 区农业农村水务局 | D90: 2021年乡村振兴战略专项资金-实施河长制“一河一策”市级财政奖补 | E90: 3 | F90: -0.1435 | G90: 2 | I90: 2120804
A91: 87 | B91: 综合股（土地基金） | C91: 区土储中心 | D91: 储备用地巡查和管养围护费用 | E91: 40 | F91: -20 | G91: 20 | I91: 2120806
A92: 88 | B92: 综合股（土地基金） | C92: 区土储中心 | D92: 土地储备业务费补充经费 | E92: 60 | F92: -30 | G92: 30 | I92: 2120806
A93: 89 | B93: 综合股（土地基金） | C93: 区土储中心 | D93: 土地储备项目前期经费支出 | E93: 120 | F93: -50 | G93: 70 | I93: 2120806
A94: 90 | B94: 国资股 | C94: 区住房城乡建设局 | D94: 增设汕头南站保函手续费 | E94: 3 | F94: 0 | G94: 3 | I94: 2120899
A95: 91 | B95: 农业股 | C95: 区住房城乡建设局 | D95: 2021年度替代原汽车、替代原摩托车养路费地养资金 | E95: 12 | F95: -10 | G95: 2 | I95: 2120804
A96: =ROW()-4 -> 92 | B96: 综合股（土地基金） | C96: 区住房城乡建设局 | D96: 汕汕铁路汕头段征地拆迁不可预见费 | E96: 300 | F96: 0 | G96: 300 | I96: 2120801
A97: 93 | B97: 农业股 | C97: 区自然资源局 | D97: 基本农田保护经济补偿区级补助资金 | E97: 114 | F97: -56 | G97: 58 | I97: 2120814
A98: 94 | B98: 农业股 | C98: 区自然资源局 | D98: 基本农田保护经济补偿区级补助资金 | E98: 38 | F98: -38 | G98: 0
A99: 95 | B99: 综合股 | C99: 区自然资源局 | D99: 规划编制经费 | E99: 200 | F99: =-182+5 -> -177 | G99: 23 | I99: 2121399
A100: 96 | B100: 综合股 | C100: 区自然资源局 | D100: 汕头市国土空间总体规划濠江区发展规划大纲（2020-2035年） | E100: 20 | F100: 0 | G100: 20 | I100: 2120899
A101: 97 | B101: 综合股 | C101: 区自然资源局 | D101: 汕头市濠江区“一江两岸”城市设计整合优化及开发建设行动计划 | E101: 27 | F101: -20 | G101: 7 | I101: 2121399
A102: 98 | B102: 综合股 | C102: 区自然资源局 | D102: 濠江区国土空间生态修复规划(2020-2035年)编制工作方案 | E102: 20 | F102: -5 | G102: 15 | I102: 2120899
A103: 99 | B103: 综合股 | C103: 区自然资源局 | D103: 濠江区土地利用总体规划调整完善 | E103: 10 | F103: 0 | G103: 10 | I103: 2120899
A104: 100 | B104: 综合股 | C104: 区自然资源局 | D104: 规划管理工作经费 | E104: 5 | F104: -5 | G104: 0
A105: 101 | B105: 综合股 | C105: 区自然资源局 | D105: 濠江区全域土地综合整治专项规划 | E105: 0 | F105: =10-5 -> 5 | G105: 5 | I105: 2120899
A106: =ROW()-4 -> 102 | B106: 综合股 | C106: 区自然资源局 | D106: 2021年市级绿道规划建设、南粤古驿道活化利用工作补助资金 | E106: 18 | F106: =17.5-17.5 -> 0 | G106: 18 | I106: 2120899
A107: 103 | B107: 综合股（土地基金） | C107: 区自然资源局 | D107: 其他自然资源事务支出 | E107: 100 | F107: 0 | G107: 100 | I107: 2120806
A108: 104 | B108: 综合股（土地基金） | C108: 区自然资源局 | D108: 自然资源业务工作经费 | E108: 100 | F108: -10 | G108: 90 | I108: 2120806
A109: 105 | B109: 综合股（土地基金） | C109: 区自然资源局 | D109: 不动产登记业务经费 | E109: 120 | F109: =-20-30-10 -> -60 | G109: 60 | I109: 2120806
A110: 106 | B110: 综合股（土地基金） | C110: 区自然资源局 | D110: 农村地籍调查项目 | E110: 6 | F110: -0 | G110: 6 | I110: 2120806
A111: 107 | B111: 综合股（土地基金） | C111: 区自然资源局 | D111: 执法工作经费 | E111: 50 | F111: =-30-10 -> -40 | G111: =E111+F111 -> 10 | I111: 2120806
A112: 108 | B112: 综合股（土地基金） | C112: 区自然资源局 | D112: 围填海历史遗留问题生态保护修复项目 | E112: 20 | F112: -20 | G112: 0
A113: 109 | B113: 综合股（土地基金） | C113: 区自然资源局 | D113: 土地征收与土地出让工作经费 | E113: 100 | F113: =-30-20 -> -50 | G113: 50 | I113: 2120801 33万、2120806 17万
A114: 110 | B114: 综合股（土地基金） | C114: 区自然资源局 | D114: 汕头市濠江区“房地一体”农村宅基地和集体建设用地确权登记发证 | E114: 300 | F114: =-150-50-5 -> -205 | G114: 95 | I114: 2120806
A115: 111 | B115: 综合股（土地基金） | C115: 区自然资源局 | D115: 濠江区农村占用耕地建房摸排工作数据处理及外业核查服务 | E115: 20 | F115: =8.62-8.62 -> 0 | G115: 20 | I115: 2120814
A116: =ROW()-4 -> 112 | B116: 综合股（土地基金） | C116: 区自然资源局 | D116: 第三次全国土地调查 | E116: 50 | F116: -30 | G116: 20 | I116: 2120806
A117: 113 | B117: 综合股（土地基金） | C117: 区自然资源局 | D117: 自然资源管理业务工作与其他业务工作委托业务费 | E117: 240 | F117: 0 | G117: 240 | I117: 2120806
A118: 114 | B118: 综合股（土地基金） | C118: 区自然资源局 | D118: 自然资源调查监测与确权登记相关工作经费 | E118: 40 | F118: -10 | G118: 30 | I118: 2120806
A119: 115 | B119: 综合股（土地基金） | C119: 区自然资源局 | D119: 濠江区国土空间基础信息平台与一张图实施监督系统 | E119: 30 | F119: -30 | G119: 0 | H119: 项目尚未实施。
A120: 116 | B120: 综合股（土地基金） | C120: 区自然资源局 | D120: 其他自然资源事务支出 | E120: 15 | F120: 0 | G120: 15 | I120: 2120806
A121: 117 | B121: 综合股（土地基金） | C121: 区自然资源局 | D121: 自然资源管理业务工作与其他业务工作委托业务费 | E121: 20 | F121: -8 | G121: 12 | I121: 2120806
A122: 118 | B122: 综合股（土地基金） | C122: 区自然资源局 | D122: 执法监督经费 | E122: 1 | F122: -1 | G122: 0
A123: 119 | B123: 行财股 | C123: 职教中心 | D123: 2022年区级购置新建学生宿舍楼和综合实训楼及周边监控设备及网络设备项目 | E123: 60 | F123: -60 | G123: 0
A124: 120 | B124: 行财股 | C124: 职教中心 | D124: 2022年区级购置新建学生宿舍楼和综合实训楼空气能热水系统设备项目 | E124: 40 | F124: -40 | G124: 0
A125: 121 | B125: 国资股 | C125: 区财政局代编 | D125: 汕汕铁路（濠江段）项目区级储备用地管养经费 | E125: 20 | F125: -10 | G125: 10 | I125: 2120899
A126: =ROW()-4 -> 122 | B126: 农业股 | C126: 区财政局代编 | D126: 2023年区级涉农资金 | E126: 200 | F126: =-150-50 -> -200 | G126: 0
A127: 123 | B127: 工贸股 | C127: 区工业和信息化局 | D127: 2021年市级标准厂房建设资金（第一批） | E127: 150 | F127: -100 | G127: 50 | I127: 2120899
A128: 124 | B128: 工贸股 | C128: 区工业和信息化局 | D128: 2021年市级工业企业上规模专项资金（贷款贴息） | E128: 201 | F128: 0 | G128: 201 | I128: 2120899
A129: 125 | B129: 工贸股 | C129: 玉新街道 | D129: 2020年市级生活垃圾分类专项资金 | E129: 0 | F129: 5 | G129: 5 | H129: 因分配原因需由城管局分配至街道。 | I129: 2120899
A130: 126 | B130: 工贸股 | C130: 区工业园区办 | D130: 汕头市产业转移工业园濠江片区土地集约利用监测 | E130: 24 | F130: -9 | G130: 15 | I130: 2120806
A131: 127 | B131: 预算股 | C131: 区财政局代编 | D131: 地方政府专项债券还本支出 | E131: 30,960 | F131: 0 | G131: 30,960 | I131: 2310411 6960万、2310431 24000万
A132: 128 | B132: 预算股 | C132: 区财政局代编 | D132: 地方政府专项债券付息支出 | E132: 25,759 | F132: 789 | G132: 26,548 | I132: 2320411 3245.906万、2320431 975.2万、2320498 22326.84万
A133: 129 | B133: 预算股 | C133: 区财政局代编 | D133: 地方政府专项债务发行费用支出 | E133: 250 | F133: =130.165493-250 -> -120 | G133: 130 | I133: 2330411 3.067097万、2330431 20.44876万、2330498 106.649636万
A134: 130 | B134: 预留土地基金相关项目资金小计 | E134: =E135+E136+E137+E138 -> 4,000 | F134: =F135+F136+F137+F138 -> -3,170 | G134: =G135+G136+G137+G138 -> 830
A135: 131 | B135: 国资股 | C135: 区财政局代编 | D135: 国资预留经费 | E135: 100 | F135: -30 | G135: =E135+F135 -> 70 | I135: 2120899
A136: =ROW()-4 -> 132 | B136: 经建股 | C136: 区财政局代编 | D136: 预留重点项目前期及建设费用 | E136: 2,000 | F136: -1,800 | G136: 200 | I136: 2120803
A137: 133 | B137: 综合股 | C137: 区财政局代编 | D137: 预留城市基础设施配套费 | E137: 100 | F137: -50 | G137: 50 | I137: 2121399
A138: 134 | B138: 综合股（土地基金） | C138: 区财政局代编 | D138: 预留土地收储平整资金 | E138: 1,800 | F138: =-1690+400 -> -1,290 | G138: 510 | H138: 预留资金。其中根据汕濠办文（2023〕Z3—0724号已安排30万元，汕濠办文（2023〕Z4—1513号安排80万元。 | I138: 2120801
A139: 135 | B139: （二）城市基础设施配套费支出（市政路灯管养、保洁、规划编制项目）小计 | E139: =SUM(E140:E156) -> 10,237 | F139: =SUM(F140:F156) -> -3,101 | G139: =SUM(G140:G156) -> 7,136
A140: 136 | B140: 工贸股 | C140: 区市政园林设施管理所 | D140: 市政设施路灯电费 | E140: 800 | F140: 50 | G140: 850 | H140: 付至2023年12月电费。 | I140: 2121301
A141: 137 | B141: 工贸股 | C141: 区市政园林设施管理所 | D141: 疏港大道助航标志养护经费 | E141: 25 | F141: 0 | G141: =E141+F141 -> 25 | I141: 2121301
A142: 138 | B142: 工贸股 | C142: 区城管局 | D142: 2020年市级生活垃圾分类专项资金 | E142: 9 | F142: -9 | G142: 0 | H142: 因分配原因需调整给玉新街道。
A143: 139 | B143: 工贸股 | C143: 区城管局 | D143: 排水设施管养及内涝布防抢险项目 | E143: 1,896 | F143: -571 | G143: 1,325 | I143: 2121301
A144: 140 | B144: 工贸股 | C144: 区城管局 | D144: 市政设施购买服务管养维护经费 | E144: 2,057 | F144: -300 | G144: 1,757 | I144: 2121301
A145: 141 | B145: 工贸股 | C145: 区城管局 | D145: 濠江区道路环卫作业市场化管理采购项目 | E145: 146 | F145: 0 | G145: 146 | I145: 2121302
A146: =ROW()-4 -> 142 | B146: 工贸股 | C146: 区城管局 | D146: 区管公园管养经费 | E146: 400 | F146: -350 | G146: 50 | I146: 2121302
A147: 143 | B147: 工贸股 | C147: 区城管局 | D147: 濠江区（河浦片区）环卫作业市场化运营管理项目 | E147: 1,701 | F147: -686 | G147: 1,015 | H147: 汕濠办文〔2022〕Z3-N0866号，按实际工作量调整。 | I147: 2121302
A148: 144 | B148: 工贸股 | C148: 区城管局 | D148: 濠江区（达濠片区）环卫作业市场化运营管理项目 | E148: 2,803 | F148: -1,200 | G148: 1,603 | H148: 汕濠办文〔2021〕Z3-N0866号，按实际工作量调整。 | I148: 2121302
A149: 145 | B149: 工贸股 | C149: 区城管局 | D149: 濠江区园区道路环卫作业市场化管理采购项目 | E149: 34 | F149: 0 | G149: 34 | I149: 2121302
A150: 146 | B150: 工贸股 | C150: 区城管局 | D150: 公厕管理项目 | E150: 12 | F150: 0 | G150: 12 | I150: 2121302
A151: 147 | B151: 工贸股 | C151: 区城管局 | D151: 南山湾绿道沙滩管养经费 | E151: 17 | F151: 0 | G151: 17 | I151: 2121302
A152: 148 | B152: 工贸股 | C152: 区城管局 | D152: 全区生活垃圾前端转运项目 | E152: 51 | F152: 0 | G152: 51 | I152: 2121302
A153: 149 | B153: 工贸股 | C153: 区城管局 | D153: 全区生活垃圾后端转运项目 | E153: 47 | F153: 0 | G153: 47 | I153: 2121302
A154: 150 | B154: 工贸股 | C154: 区城管局 | D154: 环卫作业市场化管理经费（主次干道清扫保洁项目） | E154: 205 | F154: 0 | G154: 205 | I154: 2121302
A155: 151 | B155: 工贸股 | C155: 区工业园区办 | D155: 达南路西侧南山湾产业公园配套工程项目 | E155: 20 | F155: -20 | G155: 0
A156: =ROW()-4 -> 152 | B156: 工贸股 | C156: 区工业园区办 | D156: 疏港大道、广达大道交通信号灯和电子警察等设施拆除项目 | E156: 15 | F156: -15 | G156: -0
A157: 153 | B157: （三）彩票公益金支出小计 | E157: =SUM(E158:E164) -> 156 | F157: =SUM(F158:F164) -> 23 | G157: =SUM(G158:G164) -> 179
A158: 154 | B158: 社保股 | C158: 市医疗保障局濠江分局 | D158: 城乡医疗救助 | E158: 28 | F158: 7 | G158: =E158+F158 -> 34 | I158: 2296013
A159: 155 | B159: 社保股 | C159: 区民政局 | D159: 区级福彩公益金用于养老服务体系（“汕头呼援通”濠江区长者呼援公益服务平台） | E159: =42.9+33 -> 76 | F159: 18 | G159: =E159+F159 -> 94 | H159: 含2022年结余33万元。调剂至达濠、广澳、马滘街道办事处。 | I159: 2296099
A160: 156 | B160: 社保股 | C160: 区残疾人联合会 | D160: 残疾人医疗康复救助基金区级配套 | E160: 25 | F160: 2 | G160: 27 | I160: 2296006
A161: 157 | B161: 社保股 | C161: 区残疾人联合会 | D161: 0-6周岁残疾儿童康复训练购买服务经费 | E161: 0 | F161: 6 | G161: 6 | I161: 2296006
A162: 158 | B162: 社保股 | C162: 区民政局 | D162: 2021年度市级福彩公益金 | E162: 15 | F162: -10 | G162: 5 | I162: 2296002
A163: 159 | B163: 社保股 | C163: 区残疾人联合会 | D163: 2021年中央专项彩票公益金支持地方社会公益事业发展资金-0-6岁残疾儿童机构康复（汕市财社〔2021〕178号） | E163: 4 | F163: 0 | G163: 4 | I163: 2296006
A164: 160 | B164: 社保股 | C164: 广澳街道 | D164: 2021中央集中彩票公益金支持社会福利事业专项资金（濠江区）-广澳街道 | E164: 8 | F164: 0 | G164: 8 | I164: 2296002
A165: 161 | B165: 二、消化2022年暂付款调整支出 | E165: 19,407 | F165: 0 | G165: 19,407
A166: 162 | B166: 三、调出资金 | E166: 106,500 | F166: -101,500 | G166: 5,000
A167: 163 | B167: 四、上年结转支出 | E167: 4,823 | F167: =-3387+25 -> -3,362 | G167: 1,461
A168: 164 | B168: 五、新增专项债券支出 | E168: 24,700 | F168: 85,300 | G168: 110,000

Sheet （附表9）国有资本经营收入
A1: 附表9
A2: 汕头市濠江区2023年国有资本经营预算收入计划调整表
E3: 单位：万元
A4: 科目名称 | B4: 年初预算数 | C4: 变动因素 | D4: 调整后计划数 | E4: 备注
A5: 一、国有资本经营收入 | B5: 75 | C5: =C6+C10 -> 868 | D5: =B5+C5 -> 943
A6: 1.利润收入 | B6: 75 | C6: -75 | D6: =B6+C6 -> 0
A7: 2.股利、股息收入 | D7: 0
A8: 3.产权转让收入 | D8: 0
A9: 4.清算收入 | D9: 0
A10: 5.其他国有资本经营预算收入 | C10: 943 | D10: 943
A11: 二、上级专项补助收入 | B11: 7 | D11: 7
A12: 三、上年结余收入 | B12: 720 | D12: 720
A13: 其中：净结余 | B13: 715 | D13: 715
A14: 收入合计 | B14: =B5+B11+B12 -> 802 | C14: 868 | D14: 1,670

Sheet （附表10）国有资本经营支出
A1: 附表10
A2: 汕头市濠江区2023年国有资本经营预算支出计划调整表
M3: 单位：万元
A4: 功能分类代码 | C4: 功能分类名称 | D4: 年初预算数 | G4: 变动因素 | I4: 调整后计划数 | L4: 比增% | M4: 备注
D5: 合计 | E5: 本级支出 | F5: 上级支出 | G5: 政策性 调整 | H5: 上级支出 | I5: 合计 | J5: 本级支出 | K5: 上级支出
A6: 一、国有资本经营预算支出 | D6: =D7+D10+D12 -> 779 | E6: =E7+E10+E12 -> 772 | F6: =F7+F10+F12 -> 7 | G6: =G7+G10+G12 -> -314 | H6: =H7+H10+H12 -> 0 | I6: =J6+K6 -> 465 | J6: =E6+G6 -> 458 | K6: =F6+H6 -> 7 | L6: =IF(D6=0,IF(I6=0,0,100),100*(I6/D6-1)) -> -40
A7: 22301 | C7: 解决历史遗留问题及改革成本支出 | D7: 64 | E7: =E8+E9 -> 57 | F7: =F8+F9 -> 7 | G7: =G8+G9 -> -52 | H7: =H8+H9 -> 0 | I7: =J7+K7 -> 12 | J7: =E7+G7 -> 5 | K7: =F7+H7 -> 7 | L7: =IF(D7=0,IF(I7=0,0,100),100*(I7/D7-1)) -> -81
A8: 2230105 | C8: 国有企业退休人员社会化管理补助支出 | D8: 12 | E8: 5 | F8: 7 | I8: 12 | J8: 5 | K8: 7 | L8: 0
A9: 2230199 | C9: 其他解决历史遗留问题及改革成本支出 | D9: 52 | E9: 52 | G9: -52 | I9: 0 | J9: 0 | K9: 0 | L9: -100
A10: 22302 | C10: 国有企业资本金注入 | D10: 500 | E10: 500 | G10: =-300+200 -> -100 | I10: 400 | J10: 400 | K10: 0 | L10: -20
A11: 2230299 | C11: 其他国有企业资本金注入 | D11: 500 | E11: 500 | G11: =-300+200 -> -100 | I11: 400 | J11: 400 | K11: 0 | L11: -20
A12: 22399 | C12: 其他国有资本经营预算支出 | D12: 215 | E12: 215 | G12: -162 | I12: 53 | J12: 53 | K12: 0 | L12: -75
A13: 2239999 | C13: 其他国有资本经营预算支出 | D13: 215 | E13: 215 | G13: -162 | I13: 53 | J13: 53 | K13: 0 | L13: -75
A14: 二、转移性支出 | D14: =D15+D16 -> 23 | E14: =E15+E16 -> 23 | G14: =G15+G16 -> 1,182 | H14: =H15+H16 -> 0 | I14: 1,205 | J14: 1,205 | K14: 0 | L14: 5,139
A15: 23008 | C15: 调出资金 | D15: 23 | E15: 23 | G15: =J15-E15 -> 721 | I15: 744 | J15: 744 | K15: 0 | L15: 3,135
A16: 23009 | C16: 年终结余 | G16: 461 | I16: 461 | J16: 461 | K16: 0 | L16: 100
A17: 支出合计 | D17: =D6+D14 -> 802 | E17: =E6+E14 -> 795 | F17: =F6+F14 -> 7 | G17: =G6+G14 -> 868 | H17: =H6+H14 -> 0 | I17: 1,670 | J17: 1,663 | K17: 7 | L17: 108

Sheet （附表11）社会保险基金收入
A1: 附表11
A2: 汕头市濠江区2023年社会保险基金预算收入计划调整表
E3: 单位：万元
A4: 科目 | B4: 年初预算数 | C4: 变动因素 | D4: 调整后计划数 | E4: 备注
A5: 一、社会保险基金预算收入 | B5: =B6 -> 20,847 | C5: =C6 -> -4,975 | D5: =D6 -> 15,872
A6: 机关事业单位基本养老保险基金收入 | B6: 20,847 | C6: =D6-B6 -> -4,975 | D6: =SUM(D7:D11) -> 15,872
A7: 机关事业单位基本养老保险费收入 | B7: 17,188 | C7: -3,740 | D7: 13,448
A8: 机关事业单位基本养老保险基金财政补助收入 | B8: 3,000 | C8: -1,250 | D8: 1,750
A9: 机关事业单位基本养老保险基金利息收入 | B9: 299 | C9: 14 | D9: 313
A10: 机关事业单位基本养老保险基金转移收入 | B10: 360 | C10: 0 | D10: 360
A11: 机关事业单位基本养老保险基金其他收入 | B11: 0 | C11: 1 | D11: 1
A12: 征收收入小计 | B12: =SUM(B5) -> 20,847 | C12: =D12-B12 -> -4,975 | D12: =SUM(D5) -> 15,872
A13: 二、转移性收入 | B13: =B14+B16 -> 16,544 | C13: =C14+C16 -> 0 | D13: =D14+D16 -> 16,544
A14: 上年结余收入 | B14: =SUM(B15:B15) -> 16,544 | D14: 16,544
A15: 机关养老保险 | B15: 16,544 | C15: 0 | D15: 16,544
A16: 机关事业单位基本养老保险基金上级补助收入 | B16: 0 | C16: 0 | D16: 0
A17: 收入合计 | B17: =B12+B13 -> 37,391 | C17: -4,975 | D17: =D12+D13 -> 32,416

Sheet （附表12）社会保险基金支出
A1: 附表十二 | B1: 附表12
A2: 汕头市濠江区2023年社会保险基金预算支出计划调整表
F3: 单位：万元
A4: 科目分类 | B4: 科目 | C4: 年初预算数 | D4: 变动因素 | E4: 调整后计划数 | F4: 备注
A5: 209 | B5: 社会保险基金预算支出 | C5: =C6 -> 14,336 | D5: =D6 -> -481 | E5: =E6 -> 13,855
A6: 20911 | B6: 机关事业单位基本养老保险基金支出 | C6: 14,336 | D6: =E6-C6 -> -481 | E6: =SUM(E7:E9) -> 13,855
A7: 2091101 | B7: 基本养老金支出 | C7: 14,304 | D7: -561 | E7: 13,743
B8: 转移支出 | C8: 22 | D8: 23 | E8: 45
B9: 其他支出 | C9: 10 | D9: 57 | E9: 67
A10: 230 | B10: 转移性支出 | C10: =C11+C12 -> 23,055 | D10: =D11+D12 -> -4,494 | E10: =E11+E12 -> 18,561
B11: 机关事业单位基本养老保险基金上解上级支出 | C11: 1,373 | D11: -81 | E11: 1,292
A12: 2300903 | B12: 社会保险基金预算年终结余 | C12: 21,682 | D12: =SUM(D13:D13) -> -4,413 | E12: =E13 -> 17,269
B13: 机关养老保险年终结余 | C13: 21,682 | D13: =E13-C13 -> -4,413 | E13: 17,269
B14: 支出合计 | C14: =C5+C10 -> 37,391 | D14: =E14-C14 -> -4,975 | E14: =E5+E10 -> 32,416

Sheet （附表13）新增债券资金年限利率
A1: 附表13
A2: 汕头市濠江区2023年新增债券资金年限利率表
O3: 单位：万元
A4: 序号 | B4: 债券类型 | C4: 债券期限 | D4: 合计 | E4: 其中： | O4: 备注
E5: 1月发行 （已纳入年初预算） | G5: 4月发行 | I5: 5月发行 | K5: 8月上旬发行 | M5: 8月下旬发行
E6: 金额 | F6: 利率 | G6: 金额 | H6: 利率 | I6: 金额 | J6: 利率 | K6: 金额 | L6: 利率 | M6: 金额 | N6: 利率
A7: 合计 | D7: =SUM(D8:D13) -> 137,300 | E7: =SUM(E8:E13) -> 28,900 | G7: =SUM(G8:G13) -> 1,600 | I7: =SUM(I8:I13) -> 24,500 | K7: =SUM(K8:K13) -> 26,200 | M7: =SUM(M8:M13) -> 56,100
A8: 1 | B8: 一般债券 | C8: 10年 | D8: =E8+G8+I8+K8+M8 -> 7,300 | E8: 4,200 | F8: 2.98% | I8: 800 | J8: 2.76% | K8: 2,000 | L8: 2.75% | M8: 300 | N8: 2.70%
A9: 2 | B9: 专项债券 | C9: 15年 | D9: 29,700 | E9: 20,700 | F9: 3.12% | I9: 1,000 | J9: 2.92% | K9: 1,000 | L9: 2.99% | M9: 7,000 | N9: 2.96%
A10: 3 | B10: 专项债券 | C10: 20年 | D10: 28,600 | E10: 4,000 | F10: 3.19% | G10: 1,600 | H10: 3.16% | I10: 2,000 | J10: 3.00% | K10: 5,200 | L10: 3.06% | M10: 15,800 | N10: 3.00%
A11: 4 | B11: 专项债券 | C11: 30年 | D11: 46,700 | I11: 15,700 | J11: 3.12% | K11: 12,500 | L11: 3.10% | M11: 18,500 | N11: 2.99%
A12: 5 | B12: 专项债券 | C12: 15年（分年还本，第11-15年每年还本20%） | D12: 20,000 | K12: 5,500 | L12: 2.99% | M12: 14,500 | N12: 2.96%
A13: 6 | B13: 专项债券 | C13: 30年（分年还本，第21-30年每年还本10%） | D13: 5,000 | I13: 5,000 | J13: 3.12%

Sheet （附表14）新增债券资金分配
A1: 附表14
A2: 汕头市濠江区2023年新增债券资金分配表
S3: 单位：万元
A4: 序号 | B4: 项目单位 | C4: 项目名称 | D4: 合计 | E4: 其中： | O4: 调整 | S4: 备注
E5: 1月发行 （已纳入年初预算） | G5: 4月发行 | I5: 5月发行 | K5: 8月上旬发行 | M5: 8月下旬发行 | O5: 9月调整 | Q5: 11月调整
E6: 债券名称 | F6: 金额 | G6: 债券名称 | H6: 金额 | I6: 债券名称 | J6: 金额 | K6: 债券名称 | L6: 金额 | M6: 债券名称 | N6: 金额 | O6: 债券名称 | P6: 金额 | Q6: 债券名称 | R6: 金额
A7: 合计（17个） | D7: =D8+D13 -> 117,300 | F7: =F8+F13 -> 28,900 | H7: 1,600 | J7: =J8+J13 -> 24,500 | L7: 26,200 | N7: 56,100 | P7: =P8+P13 -> 0 | R7: =R8+R13 -> -20,000
A8: （一）一般债券小计（4个） | D8: =SUM(D9:D12) -> 7,300 | F8: 4,200 | H8: 0 | J8: =SUM(J9:J12) -> 800 | L8: 2,000 | N8: 300 | P8: =SUM(P9:P12) -> 0 | R8: =SUM(R9:R12) -> 0
A9: 1 | B9: 汕头市濠江区住房和城乡建设局 | C9: 汕头市濠江区东湖路（X053河棣线东湖至澳头线）及延长线改造工程以及汕头市濠江区濠江一桥建设工程 | D9: =F9+H9+J9+L9+N9 -> 4,500 | E9: 2023年广东省政府一般债券（一期） | F9: 4,200 | I9: 2023年广东省政府一般债券（九期） | J9: 300
A10: 2 | B10: 汕头市濠江区水利与渔港建设管养中心 | C10: 濠江区铁鸟坑水库、大脚虾水库、陈厝坑水库、长坑水库除险加固工程 | D10: 300 | I10: 2023年广东省政府一般债券（九期） | J10: 300
A11: 3 | B11: 汕头市濠江区水利与渔港建设管养中心 | C11: 濠江区水望底水库、东南坑水库、井仔内水库、径内水库除险加固工程 | D11: 500 | I11: 2023年广东省政府一般债券（九期） | J11: 200 | M11: 2023年广东省政府一般债券（十三期） | N11: 300
A12: 4 | B12: 汕头市濠江区教育局 | C12: 濠江区教育校舍综合改造及运动场配套设施建设项目 | D12: 2,000 | K12: 2023年广东省政府一般债券（十一期） | L12: 2,000
A13: （二）专项债券小计（13个） | D13: =SUM(D14:D28) -> 110,000 | F13: =SUM(F14:F28) -> 24,700 | H13: 1,600 | J13: =SUM(J14:J28) -> 23,700 | L13: 24,200 | N13: 55,800 | P13: =SUM(P14:P28) -> 0 | R13: =SUM(R14:R28) -> -20,000
A14: 1 | B14: 汕头市濠江区人民政府达濠街道办事处 | C14: 汕头市达濠古城及周边老旧小区改造项目 | D14: =F14+H14+J14+L14+N14+P14+R14 -> 7,000 | E14: 2023年广东省政府专项债券（三期） | F14: 3,000 | K14: 2023年广东省政府专项债券（三十五期） | L14: 1,000 | M14: 2023年广东省政府专项债券（五十二期） | N14: 4,000 | Q14: 2023年广东省政府专项债券（五十二期） | R14: -1,000
A15: 2 | B15: 汕头市濠江区卫生健康局 | C15: 汕头市濠江区公共医疗卫生基础设施及信息化改造提升工程项目 | D15: 3,200 | E15: 2023年广东省政府专项债券（三期） | F15: 3,200 | M15: 2023年广东省政府专项债券（五十二期） | N15: 1,500 | Q15: 2023年广东省政府专项债券（五十二期） | R15: -1,500
A16: 3 | B16: 汕头市濠江区乡村振兴战略发展中心 | C16: 汕头市濠江区乡村振兴示范带建设项目（一期） | D16: 5,000 | E16: 2023年广东省政府专项债券（三期） | F16: 12,000 | O16: 2023年广东省政府专项债券（三期） | P16: -1,200 | Q16: 2023年广东省政府专项债券（三期） | R16: -5,800
A17: 4 | B17: 汕头市濠江区农产品质量安全中心 | C17: 濠江区农田综合整治项目 | D17: 3,183 | E17: 2023年广东省政府专项债券（三期） | F17: 2,500 | I17: 2023年广东省政府专项债券（二十二期） | J17: 1,000 | M17: 2023年广东省政府专项债券（五十二期） | N17: 1,500 | O17: 2023年广东省政府专项债券（二十二期） | P17: -317 | Q17: 2023年广东省政府专项债券（五十二期） | R17: -1,500
A18: 5 | B18: 汕头市濠江区住房和城乡建设局 | C18: 濠江区东湖园区基础设施及污水管网建设项目 | D18: 6,000 | E18: 2023年广东省政府专项债券（五期） | F18: 4,000 | I18: 2023年广东省政府专项债券（二十三期） | J18: 2,000
A19: 6 | B19: 汕头市濠江区住房和城乡建设局 | C19: 新建汕头至汕尾铁路汕头南站项目 | D19: 1,600 | G19: 2023年广东省政府专项债券（十三期） | H19: 1,600
A20: 7 | B20: 汕头市濠江区人民政府达濠街道办事处 | C20: 汕头市濠江区渔港新产业集聚与综合体验区建设项目 | D20: 20,700 | I20: 2023年广东省政府专项债券（二十五期） | J20: 15,700 | M20: 2023年广东省政府专项债券（五十五期） | N20: 6,000 | Q20: 2023年广东省政府专项债券（五十五期） | R20: -1,000
A21: 8 | B21: 汕头市濠江区住房和城乡建设局 | C21: 汕头南站站前广场建设项目（配套项目） | D21: 11,850 | I21: 2023年广东省政府专项债券（二十七期） | J21: 5,000 | K21: 2023年广东省政府专项债券（三十六期） | L21: 2,300 | M21: 2023年广东省政府专项债券（五十四期） | N21: 3,700 | O21: 2023年广东省政府专项债券（三期） | P21: 850
A22: 9 | B22: 汕头市濠江区城市管理和综合执法局 | C22: 濠江区城乡基础设施治理及配套建设项目 | D22: =F22+H22+J22+L22+N22+P22+R22+R23 -> 1,500 | K22: 2023年广东省政府专项债券（三十六期） | L22: 2,900 | M22: 2023年广东省政府专项债券（五十四期） | N22: 2,100 | Q22: 2023年广东省政府专项债券（三十六期） | R22: -1,400
Q23: 2023年广东省政府专项债券（五十四期） | R23: -2,100
A24: 10 | B24: 汕头市濠江区工业园区办公室 | C24: 汕头市滨海临港产业片区基础设施配套项目 | D24: =F24+H24+J24+L24+N24+P24+R24+P25 -> 25,667 | K24: 2023年广东省政府专项债券（三十七期） | L24: 12,500 | M24: 2023年广东省政府专项债券（五十五期） | N24: 12,500 | O24: 2023年广东省政府专项债券（三期） | P24: 350
O25: 2023年广东省政府专项债券（二十二期） | P25: 317
A26: 11 | B26: 汕头市濠江区工业园区办公室 | C26: 汕头海上风电产业园基础设施配套项目 | D26: =F26+H26+J26+L26+N26+P26+R26 -> 19,600 | K26: 2023年广东省政府专项债券（四十期） | L26: 5,500 | M26: 2023年广东省政府专项债券（五十七期） | N26: 14,500 | Q26: 2023年广东省政府专项债券（五十七期） | R26: -400
A27: 12 | B27: 汕头市濠江区工业园区办公室 | C27: 汕头国际风电创新港基础设施配套项目 | D27: 3,900 | M27: 2023年广东省政府专项债券（五十四期） | N27: 5,000 | Q27: 2023年广东省政府专项债券（五十四期） | R27: -1,100
A28: 13 | B28: 汕头市濠江区乡村振兴战略发展中心 | C28: 汕头市濠江区水利设施和水系综合治理建设项目 | D28: 800 | M28: 2023年广东省政府专项债券（五十四期） | N28: 5,000 | Q28: 2023年广东省政府专项债券（五十四期） | R28: -4,200

Sheet （附表15）新增债券资金用途调整
A1: 附表15
A2: 汕头市濠江区新增债券资金用途调整明细表
P3: 单位：万元
A4: 地市 | B4: 债券全称 | C4: 发行 年度 | D4: 原项目信息 | I4: 调整情形 | J4: 拟调整项目信息 | P4: 备注
D5: 县区 | E5: 项目名称 | F5: 建设状态 | G5: 本次拟调整用途金额 | H5: 其中：用于资本金金额 | J5: 县区 | K5: 项目名称 | L5: 项目投向 | M5: 建设状态 | N5: 本次拟安排债券金额 | O5: 其中：用于资本金金额
A6: 合计 | G6: =SUM(G7:G29) -> 37,286 | H6: =SUM(H7:H29) -> 0 | N6: =SUM(N7:N29) -> 17,286 | O6: =SUM(O7:O29) -> 0
A7: 汕头市 | B7: 2022年广东省政府专项债券（二十四期） | C7: 2022年 | D7: 濠江区 | E7: 濠江区学前教育园舍及配套设施建设项目 | F7: 在建 | G7: 1,464 | H7: 0 | I7: 其他需要调整情形 | J7: 濠江区 | K7: 汕头市濠江区渔港新产业集聚与综合体验区建设项目 | L7: 产业园区基础设施 | M7: 在建 | N7: 1,464 | O7: 0
A8: 汕头市 | B8: 2022年广东省政府专项债券（二十四期） | C8: 2022年 | D8: 濠江区 | E8: 濠江区医疗产业园区基础设施建设项目 | F8: 在建 | G8: 900 | H8: 0 | I8: 其他需要调整情形 | J8: 濠江区 | K8: 汕头市濠江区渔港新产业集聚与综合体验区建设项目 | L8: 产业园区基础设施 | M8: 在建 | N8: 900 | O8: 0
A9: 汕头市 | B9: 2022年广东省政府专项债券（二十四期） | C9: 2022年 | D9: 濠江区 | E9: 濠江区医疗产业园区基础设施建设项目 | F9: 在建 | G9: 671 | H9: 0 | I9: 其他需要调整情形 | J9: 濠江区 | K9: 汕头市濠江区乡村振兴示范带建设项目（一期） | L9: 其他农村建设 | M9: 在建 | N9: 671 | O9: 0
A10: 汕头市 | B10: 2022年广东省政府专项债券（二十四期） | C10: 2022年 | D10: 濠江区 | E10: 濠江区迎亚青会礐石大桥南岸片区及南滨基础设施改造项目 | F10: 在建 | G10: 6,714 | H10: 0 | I10: 其他需要调整情形 | J10: 濠江区 | K10: 汕头市濠江区乡村振兴示范带建设项目（一期） | L10: 其他农村建设 | M10: 在建 | N10: 6,714 | O10: 0
A11: 汕头市 | B11: 2022年广东省政府专项债券（二十一期） | C11: 2022年 | D11: 濠江区 | E11: 汕头市濠江区河玉围农田片区综合整治项目 | F11: 在建 | G11: 1,370 | H11: 0 | I11: 其他需要调整情形 | J11: 濠江区 | K11: 濠江区农田综合整治项目 | L11: 高标准农田建设 | M11: 在建 | N11: 1,370 | O11: 0
A12: 汕头市 | B12: 2022年广东省政府专项债券（二十二期） | C12: 2022年 | D12: 濠江区 | E12: 汕头市濠江区会汀港排洪渠污水整治及生态修复工程 | F12: 在建 | G12: 400 | H12: 0 | I12: 其他需要调整情形 | J12: 濠江区 | K12: 汕头市达濠古城及周边老旧小区改造项目 | L12: 城镇老旧小区改造 | M12: 在建 | N12: 400 | O12: 0
A13: 汕头市 | B13: 2022年广东省政府专项债券（二十二期） | C13: 2022年 | D13: 濠江区 | E13: 汕头市濠江区会汀港排洪渠污水整治及生态修复工程 | F13: 在建 | G13: 400 | H13: 0 | I13: 其他需要调整情形 | J13: 濠江区 | K13: 汕头市濠江区乡村振兴示范带建设项目（一期） | L13: 其他农村建设 | M13: 在建 | N13: 400 | O13: 0
A14: 汕头市 | B14: 2022年广东省政府专项债券（三十期） | C14: 2022年 | D14: 濠江区 | E14: 汕头市濠江区疾病预防控制中心易地重建工程 | F14: 在建 | G14: 1,250 | H14: 0 | I14: 其他需要调整情形 | J14: 濠江区 | K14: 汕头市濠江区公共医疗卫生基础设施及信息化改造提升工程项目 | L14: 公共卫生设施 | M14: 在建 | N14: 1,250 | O14: 0
A15: 汕头市 | B15: 2022年广东省政府专项债券（十五期） | C15: 2022年 | D15: 濠江区 | E15: 汕头市濠江区老旧小区改造项目 | F15: 在建 | G15: 1,600 | H15: 0 | I15: 其他需要调整情形 | J15: 濠江区 | K15: 濠江区东湖园区基础设施及污水管网建设项目 | L15: 产业园区基础设施 | M15: 在建 | N15: 1,600 | O15: 0
A16: 汕头市 | B16: 2022年广东省政府专项债券（二十九期） | C16: 2022年 | D16: 濠江区 | E16: 汕头市台商投资区（濠江区二期）市政配套工程、台商投资区产业公园（一期） | F16: 在建 | G16: 1,000 | H16: 0 | I16: 其他需要调整情形 | J16: 濠江区 | K16: 汕头市滨海临港产业片区基础设施配套项目 | L16: 产业园区基础设施 | M16: 在建 | N16: 1,000 | O16: 0
A17: 汕头市 | B17: 2023年广东省政府专项债券（三期） | C17: 2023年 | D17: 濠江区 | E17: 汕头市濠江区乡村振兴示范带建设项目（一期） | F17: 在建 | G17: 850 | H17: 0 | I17: 其他需要调整情形 | J17: 濠江区 | K17: 汕头南站站前广场建设项目（配套项目） | L17: 产业园区基础设施 | M17: 在建 | N17: 850 | O17: 0
A18: 汕头市 | B18: 2023年广东省政府专项债券（三期） | C18: 2023年 | D18: 濠江区 | E18: 汕头市濠江区乡村振兴示范带建设项目（一期） | F18: 在建 | G18: 350 | H18: 0 | I18: 其他需要调整情形 | J18: 濠江区 | K18: 汕头市滨海临港产业片区基础设施配套项目 | L18: 产业园区基础设施 | M18: 在建 | N18: 350 | O18: 0
A19: 汕头市 | B19: 2023年广东省政府专项债券（二十二期） | C19: 2023年 | D19: 濠江区 | E19: 濠江区农田综合整治项目 | F19: 在建 | G19: 317 | H19: 0 | I19: 其他需要调整情形 | J19: 濠江区 | K19: 汕头市滨海临港产业片区基础设施配套项目 | L19: 产业园区基础设施 | M19: 在建 | N19: 317 | O19: 0
A20: 汕头市 | B20: 2023年广东省政府专项债券（三期） | C20: 2023年 | D20: 濠江区 | E20: 汕头市濠江区乡村振兴示范带建设项目（一期） | F20: 在建 | G20: 5,800 | H20: 0 | I20: 其他需要调整情形
A21: 汕头市 | B21: 2023年广东省政府专项债券（三十六期） | C21: 2023年 | D21: 濠江区 | E21: 濠江区城乡基础设施治理及配套建设项目 | F21: 未开工 | G21: 1,400 | H21: 0 | I21: 其他需要调整情形
A22: 汕头市 | B22: 2023年广东省政府专项债券（五十二期） | C22: 2023年 | D22: 濠江区 | E22: 濠江区农田综合整治项目 | F22: 在建 | G22: 1,500 | H22: 0 | I22: 其他需要调整情形
A23: 汕头市 | B23: 2023年广东省政府专项债券（五十二期） | C23: 2023年 | D23: 濠江区 | E23: 汕头市达濠古城及周边老旧小区改造项目 | F23: 在建 | G23: 1,000 | H23: 0 | I23: 其他需要调整情形
A24: 汕头市 | B24: 2023年广东省政府专项债券（五十二期） | C24: 2023年 | D24: 濠江区 | E24: 汕头市濠江区公共医疗卫生基础设施及信息化改造提升工程项目 | F24: 在建 | G24: 1,500 | H24: 0 | I24: 其他需要调整情形
A25: 汕头市 | B25: 2023年广东省政府专项债券（五十四期） | C25: 2023年 | D25: 濠江区 | E25: 濠江区城乡基础设施治理及配套建设项目 | F25: 未开工 | G25: 2,100 | H25: 0 | I25: 其他需要调整情形
A26: 汕头市 | B26: 2023年广东省政府专项债券（五十四期） | C26: 2023年 | D26: 濠江区 | E26: 汕头国际风电创新港基础设施配套项目 | F26: 在建 | G26: 1,100 | H26: 0 | I26: 其他需要调整情形
A27: 汕头市 | B27: 2023年广东省政府专项债券（五十四期） | C27: 2023年 | D27: 濠江区 | E27: 汕头市濠江区水利设施和水系综合治理建设项目 | F27: 未开工 | G27: 4,200 | H27: 0 | I27: 其他需要调整情形
A28: 汕头市 | B28: 2023年广东省政府专项债券（五十五期） | C28: 2023年 | D28: 濠江区 | E28: 汕头市濠江区渔港新产业集聚与综合体验区建设项目 | F28: 在建 | G28: 1,000 | H28: 0 | I28: 其他需要调整情形
A29: 汕头市 | B29: 2023年广东省政府专项债券（五十七期） | C29: 2023年 | D29: 濠江区 | E29: 汕头海上风电产业园基础设施配套项目 | F29: 在建 | G29: 400 | H29: 0 | I29: 其他需要调整情形

Sheet （附表16）盘活资金
A1: 附表16
A2: 汕头市濠江区2023年收回存量资金及安排表
D3: 单位：万元
A4: 单位 | B4: 项目名称 | C4: 金额 | D4: 备注
A5: 收回存量资金收入合计 | C5: =SUM(C6:C9) -> 5,546
A6: 区工业园区办 | B6: 汕头海上风电产业园基础设施配套项目（2022年重大项目前期工作经费） | C6: 2,065 | D6: 年初预算原列2165万元，已使用100万元，余额重新收回。
A7: 区财政局代编 | B7: 财政委托业务支出经费 | C7: 479 | D7: 年初预算原列507万元，已使用28万元，余额重新收回。
A8: 各单位 | B8: 缴入存量资金 | C8: 2,990
A9: 区财政局代编 | B9: 上年度多计提利息挂账 | C9: 12
A10: 安排存量资金支出合计 | C10: =SUM(C11:C11) -> 5,534
A11: 区工业园区办 | B11: 工业用地划拨成本 | C11: 5,534
A12: 结余 | C12: =C5-C10 -> 12 | D12: 年度终了时将12月收回的存量资金和本次结余资金统筹用于预算内项目。
